Workbook

Sheet CAMP PILOTO EVOL
A1: PARA DESTACAR UM PILOTO MARQUE/DESMARQUE COM UM "X" AO LADO DO NOME E CLIQUE NO BOTÃO. => | D1: OK | F1: OK | H1: OK | J1: OK | L1: OK | N1: OK | P1: OK | R1: OK | T1: OK | V1: OK | X1: OK | Z1: DIF. LIDER | AA1: DIF. 5º | AB1: DIF. PRÓXIMO | AC1: OK | AE1: DIF. LIDER | AF1: DIF. 5º | AG1: DIF. PRÓXIMO
D2: 1ª etapa | F2: 2ª etapa | H2: 3ª etapa | J2: 4ª etapa | L2: 5ª etapa | N2: 6ª etapa | P2: 7ª etapa | R2: 8ª etapa | T2: 9ª etapa | V2: 10ª etapa | X2: 11ª etapa | AC2: 12ª etapa
B4: Nome do (a) Piloto (a) | D4: PILOTO | E4: PONTOS | F4: PILOTO | G4: PONTOS | H4: PILOTO | I4: PONTOS | J4: PILOTO | K4: PONTOS | L4: PILOTO | M4: PONTOS | N4: PILOTO | O4: PONTOS | P4: PILOTO | Q4: PONTOS | R4: PILOTO | S4: PONTOS | T4: PILOTO | U4: PONTOS | V4: PILOTO | W4: PONTOS | X4: PILOTO | Y4: PONTOS | AC4: PILOTO | AD4: PONTOS
B5: Alan Moreira | C5: 1 | D5: Léo Oliveira | E5: 62 | F5: Gui Figueiredo | G5: 100 | H5: Léo Oliveira | I5: 114 | J5: Léo Oliveira | K5: 117 | L5: Léo Oliveira | M5: 172 | N5: Léo Oliveira | O5: 224 | P5: Léo Oliveira | Q5: 274 | R5: Léo Oliveira | S5: 322 | T5: Léo Oliveira | U5: 382 | V5: Léo Oliveira | W5: 442 | X5: Léo Oliveira | Y5: 488 | Z5: - | AA5: - | AB5: - | AC5: Léo Oliveira | AD5: 550 | AE5: - | AF5: - | AG5: -
B6: Alexandre Melillo | C6: 2 | D6: Saulo Chagas | E6: 55 | F6: Christian Guedes | G6: 100 | H6: Gui Figueiredo | I6: 102 | J6: Rafael Miranda | K6: 115 | L6: Rafael Miranda | M6: 165 | N6: Rafael Miranda | O6: 220 | P6: Rafael Miranda | Q6: 270 | R6: Rafael Miranda | S6: 316 | T6: Rafael Miranda | U6: 366 | V6: Gui Figueiredo | W6: 397 | X6: Rafael Miranda | Y6: 449 | Z6: =Y$5-Y6 -> 39 | AA6: - | AB6: =Y5-Y6 -> 39 | AC6: Rafael Miranda | AD6: 504 | AE6: =AD$5-AD6 -> 46 | AF6: - | AG6: =AD5-AD6 -> 46
B7: Anderson Teixeira | C7: 3 | D7: Guilherme Alves | E7: 52 | F7: Diego Rodrigues | G7: 90 | H7: Christian Guedes | I7: 100 | J7: Lucas Rabelo | K7: 104 | L7: Anderson Teixeira | M7: 156 | N7: Gui Figueiredo | O7: 202 | P7: Gui Figueiredo | Q7: 242 | R7: Gui Figueiredo | S7: 294 | T7: Gui Figueiredo | U7: 351 | V7: Rafael Miranda | W7: 394 | X7: Gui Figueiredo | Y7: 439 | Z7: =Y$5-Y7 -> 49 | AA7: - | AB7: =Y6-Y7 -> 10 | AC7: Gui Figueiredo | AD7: 485 | AE7: =AD$5-AD7 -> 65 | AF7: - | AG7: =AD6-AD7 -> 19
A8: X | B8: Aparecido Arantes | C8: 4 | D8: Pedro Fialho | E8: 50 | F8: Guilherme Alves | G8: 88 | H8: Alexandre Melillo | I8: 99 | J8: Gui Figueiredo | K8: 102 | L8: Gui Figueiredo | M8: 150 | N8: Anderson Teixeira | O8: 200 | P8: Christian Guedes | Q8: 240 | R8: Christian Guedes | S8: 278 | T8: Christian Guedes | U8: 324 | V8: Christian Guedes | W8: 374 | X8: Christian Guedes | Y8: 406 | Z8: =Y$5-Y8 -> 82 | AA8: - | AB8: =Y7-Y8 -> 33 | AC8: Christian Guedes | AD8: 456 | AE8: =AD$5-AD8 -> 94 | AF8: - | AG8: =AD7-AD8 -> 29
B9: Bruno Camargos | C9: 5 | D9: Christian Guedes | E9: 48 | F9: Alexandre Melillo | G9: 83 | H9: Diego Rodrigues | I9: 90 | J9: Christian Guedes | K9: 100 | L9: Christian Guedes | M9: 146 | N9: Christian Guedes | O9: 178 | P9: Anderson Teixeira | Q9: 232 | R9: Diego Rodrigues | S9: 263 | T9: Diego Rodrigues | U9: 286 | V9: Bruno Nosse | W9: 328 | X9: Guilherme Alves | Y9: 360 | Z9: =Y$5-Y9 -> 128 | AA9: - | AB9: =Y8-Y9 -> 46 | AC9: Guilherme Alves | AD9: 396 | AE9: =AD$5-AD9 -> 154 | AF9: - | AG9: =AD8-AD9 -> 60
B10: Bruno Nosse | C10: 6 | D10: Marcus Silva | E10: 46 | F10: Bruno Nosse | G10: 78 | H10: Guilherme Alves | I10: 88 | J10: Alexandre Melillo | K10: 99 | L10: Alexandre Melillo | M10: 137 | N10: Lucas Rabelo | O10: 175 | P10: Diego Rodrigues | Q10: 227 | R10: Anderson Teixeira | S10: 256 | T10: Anderson Teixeira | U10: 280 | V10: Diego Rodrigues | W10: 316 | X10: Bruno Nosse | Y10: 358 | Z10: =Y$5-Y10 -> 130 | AA10: =Y$9-Y10 -> 2 | AB10: =Y9-Y10 -> 2 | AC10: Bruno Nosse | AD10: 390 | AE10: =AD$5-AD10 -> 160 | AF10: =AD$9-AD10 -> 6 | AG10: =AD9-AD10 -> 6
B11: Celso Dantas | C11: 7 | D11: Diego Rodrigues | E11: 44 | F11: Lucas Rabelo | G11: 75 | H11: PetrÔnio Junior | I11: 88 | J11: Anderson Teixeira | K11: 94 | L11: PetrÔnio Junior | M11: 132 | N11: Diego Rodrigues | O11: 172 | P11: Alexandre Melillo | Q11: 217 | R11: Lucas Rabelo | S11: 248 | T11: Lucas Rabelo | U11: 276 | V11: Guilherme Alves | W11: 312 | X11: Lucas Rabelo | Y11: 341 | Z11: =Y$5-Y11 -> 147 | AA11: =Y$9-Y11 -> 19 | AB11: =Y10-Y11 -> 17 | AC11: Diego Rodrigues | AD11: 389 | AE11: =AD$5-AD11 -> 161 | AF11: =AD$9-AD11 -> 7 | AG11: =AD10-AD11 -> 1
B12: Carlos Gomes | C12: 8 | D12: Lucio Chequer | E12: 42 | F12: Jean Paul | G12: 72 | H12: Bruno Nosse | I12: 88 | J12: Guilherme Alves | K12: 94 | L12: Diego Rodrigues | M12: 132 | N12: PetrÔnio Junior | O12: 168 | P12: Bruno Nosse | Q12: 198 | R12: Alexandre Melillo | S12: 241 | T12: Bruno Nosse | U12: 276 | V12: Anderson Teixeira | W12: 306 | X12: Anderson Teixeira | Y12: 340 | Z12: =Y$5-Y12 -> 148 | AA12: =Y$9-Y12 -> 20 | AB12: =Y11-Y12 -> 1 | AC12: Anderson Teixeira | AD12: 384 | AE12: =AD$5-AD12 -> 166 | AF12: =AD$9-AD12 -> 12 | AG12: =AD11-AD12 -> 5
A13: X | B13: Christian Guedes | C13: 9 | D13: Gui Figueiredo | E13: 40 | F13: Jarbas Reis | G13: 66 | H13: Anderson Teixeira | I13: 86 | J13: Diego Rodrigues | K13: 90 | L13: Guilherme Alves | M13: 130 | N13: Alexandre Melillo | O13: 165 | P13: Guilherme Alves | Q13: 192 | R13: Bruno Nosse | S13: 240 | T13: Alexandre Melillo | U13: 271 | V13: Alexandre Melillo | W13: 295 | X13: Alexandre Melillo | Y13: 339 | Z13: =Y$5-Y13 -> 149 | AA13: =Y$9-Y13 -> 21 | AB13: =Y12-Y13 -> 1 | AC13: Alexandre Melillo | AD13: 367 | AE13: =AD$5-AD13 -> 183 | AF13: =AD$9-AD13 -> 29 | AG13: =AD12-AD13 -> 17
B14: Diego Rodrigues | C14: 10 | D14: Bruno Nosse | E14: 38 | F14: Raphael Reis | G14: 64 | H14: Saulo Chagas | I14: 83 | J14: PetrÔnio Junior | K14: 88 | L14: Lucas Rabelo | M14: 127 | N14: Bruno Nosse | O14: 160 | P14: Raphael Reis | Q14: 192 | R14: Guilherme Alves | S14: 228 | T14: Guilherme Alves | U14: 270 | V14: Lucas Rabelo | W14: 291 | X14: Diego Rodrigues | Y14: 337 | Z14: =Y$5-Y14 -> 151 | AA14: =Y$9-Y14 -> 23 | AB14: =Y13-Y14 -> 2 | AC14: Raphael Reis | AD14: 346 | AE14: =AD$5-AD14 -> 204 | AF14: =AD$9-AD14 -> 50 | AG14: =AD13-AD14 -> 21
B15: Edmárcio Júnior | C15: 11 | D15: Fernando Mota | E15: 36 | F15: Léo Oliveira | G15: 62 | H15: Jarbas Reis | I15: 78 | J15: Bruno Nosse | K15: 88 | L15: Bruno Nosse | M15: 126 | N15: Guilherme Alves | O15: 158 | P15: Lucas Rabelo | Q15: 191 | R15: Raphael Reis | S15: 216 | T15: Raphael Reis | U15: 264 | V15: Wesley Canuto | W15: 289 | X15: Raphael Reis | Y15: 316 | Z15: =Y$5-Y15 -> 172 | AA15: =Y$9-Y15 -> 44 | AB15: =Y14-Y15 -> 21 | AC15: Wesley Canuto | AD15: 345 | AE15: =AD$5-AD15 -> 205 | AF15: =AD$9-AD15 -> 51 | AG15: =AD14-AD15 -> 1
B16: Felipe Curi | C16: 12 | D16: Jean Paul | E16: 34 | F16: Lucio Chequer | G16: 60 | H16: Felipe Curi | I16: 76 | J16: Raphael Reis | K16: 84 | L16: Raphael Reis | M16: 114 | N16: Jarbas Reis | O16: 154 | P16: Jarbas Reis | Q16: 190 | R16: Jarbas Reis | S16: 212 | T16: Wesley Canuto | U16: 245 | V16: Raphael Reis | W16: 288 | X16: Wesley Canuto | Y16: 311 | Z16: =Y$5-Y16 -> 177 | AA16: =Y$9-Y16 -> 49 | AB16: =Y15-Y16 -> 5 | AC16: Lucas Rabelo | AD16: 344 | AE16: =AD$5-AD16 -> 206 | AF16: =AD$9-AD16 -> 52 | AG16: =AD15-AD16 -> 1
B17: Fernando Mota | C17: 13 | D17: Samuel Farley | E17: 32 | F17: Saulo Chagas | G17: 55 | H17: Lucas Rabelo | I17: 75 | J17: Saulo Chagas | K17: 83 | L17: Jarbas Reis | M17: 112 | N17: Raphael Reis | O17: 148 | P17: PetrÔnio Junior | Q17: 179 | R17: Wesley Canuto | S17: 211 | T17: Jarbas Reis | U17: 238 | V17: Jarbas Reis | W17: 272 | X17: Jarbas Reis | Y17: 302 | Z17: =Y$5-Y17 -> 186 | AA17: =Y$9-Y17 -> 58 | AB17: =Y16-Y17 -> 9 | AC17: Lucio Chequer | AD17: 319 | AE17: =AD$5-AD17 -> 231 | AF17: =AD$9-AD17 -> 77 | AG17: =AD16-AD17 -> 25
B18: Frederico Papatella | C18: 14 | D18: Raphael Reis | E18: 30 | F18: Thales Almeida | G18: 51 | H18: Rafael Miranda | I18: 73 | J18: Jarbas Reis | K18: 78 | L18: Saulo Chagas | M18: 105 | N18: Wesley Canuto | O18: 143 | P18: Wesley Canuto | Q18: 171 | R18: PetrÔnio Junior | S18: 194 | T18: PetrÔnio Junior | U18: 226 | V18: Frederico Papatella | W18: 253 | X18: PetrÔnio Junior | Y18: 300 | Z18: =Y$5-Y18 -> 188 | AA18: =Y$9-Y18 -> 60 | AB18: =Y17-Y18 -> 2 | AC18: Jarbas Reis | AD18: 316 | AE18: =AD$5-AD18 -> 234 | AF18: =AD$9-AD18 -> 80 | AG18: =AD17-AD18 -> 3
A19: X | B19: Gui Figueiredo | C19: 15 | D19: Alexandre Melillo | E19: 28 | F19: Pedro Fialho | G19: 50 | H19: Jean Paul | I19: 72 | J19: Felipe Curi | K19: 76 | L19: Wesley Canuto | M19: 103 | N19: Samuel Farley | O19: 132 | P19: Saulo Chagas | Q19: 168 | R19: Lucio Chequer | S19: 185 | T19: Matheus Rocha | U19: 218 | V19: PetrÔnio Junior | W19: 248 | X19: Lucio Chequer | Y19: 271 | Z19: =Y$5-Y19 -> 217 | AA19: =Y$9-Y19 -> 89 | AB19: =Y18-Y19 -> 29 | AC19: Samuel Farley | AD19: 310 | AE19: =AD$5-AD19 -> 240 | AF19: =AD$9-AD19 -> 86 | AG19: =AD18-AD19 -> 6
A20: X | B20: Guilherme Alves | C20: 16 | D20: Matheus Rocha | E20: 26 | F20: Luiz Azevedo | G20: 48 | H20: Samuel Farley | I20: 70 | J20: Thales Almeida | K20: 72 | L20: Felipe Curi | M20: 100 | N20: Matheus Rocha | O20: 122 | P20: Samuel Farley | Q20: 154 | R20: Saulo Chagas | S20: 182 | T20: Frederico Papatella | U20: 213 | V20: Lucio Chequer | W20: 247 | X20: Samuel Farley | Y20: 270 | Z20: =Y$5-Y20 -> 218 | AA20: =Y$9-Y20 -> 90 | AB20: =Y19-Y20 -> 1 | AC20: Matheus Rocha | AD20: 304 | AE20: =AD$5-AD20 -> 246 | AF20: =AD$9-AD20 -> 92 | AG20: =AD19-AD20 -> 6
B21: Guilherme Camarano | C21: 17 | D21: Anderson Teixeira | E21: 24 | F21: Anderson Teixeira | G21: 48 | H21: Raphael Reis | I21: 64 | J21: Jean Paul | K21: 72 | L21: Matheus Rocha | M21: 96 | N21: Saulo Chagas | O21: 120 | P21: Matheus Rocha | Q21: 140 | R21: Samuel Farley | S21: 182 | T21: Lucio Chequer | U21: 209 | V21: Felipe Curi | W21: 246 | X21: Frederico Papatella | Y21: 270 | Z21: =Y$5-Y21 -> 218 | AA21: =Y$9-Y21 -> 90 | AB21: =Y20-Y21 -> 0 | AC21: PetrÔnio Junior | AD21: 290 | AE21: =AD$5-AD21 -> 260 | AF21: =AD$9-AD21 -> 106 | AG21: =AD20-AD21 -> 14
B22: Gustavo Barros | C22: 18 | D22: Lucas Rabelo | E22: 23 | F22: Marcus Silva | G22: 46 | H22: Lucio Chequer | I22: 62 | J22: Tafarel Henrique | K22: 68 | L22: Frederico Papatella | M22: 93 | N22: Frederico Papatella | O22: 113 | P22: Lucio Chequer | Q22: 135 | R22: Frederico Papatella | S22: 175 | T22: Matheus Azevedo | U22: 208 | V22: Matheus Rocha | W22: 236 | X22: Matheus Rocha | Y22: 266 | Z22: =Y$5-Y22 -> 222 | AA22: =Y$9-Y22 -> 94 | AB22: =Y21-Y22 -> 4 | AC22: Frederico Papatella | AD22: 272 | AE22: =AD$5-AD22 -> 278 | AF22: =AD$9-AD22 -> 124 | AG22: =AD21-AD22 -> 18
B23: Henry Douglas | C23: 19 | D23: Jarbas Reis | E23: 22 | F23: Guilherme Camarano | G23: 46 | H23: Matheus Rocha | I23: 52 | J23: Marcus Silva | K23: 66 | L23: Jean Paul | M23: 92 | N23: Lucio Chequer | O23: 112 | P23: Fernando Mota | Q23: 133 | R23: Matheus Rocha | S23: 174 | T23: Felipe Curi | U23: 199 | V23: Samuel Farley | W23: 234 | X23: Matheus Azevedo | Y23: 251 | Z23: =Y$5-Y23 -> 237 | AA23: =Y$9-Y23 -> 109 | AB23: =Y22-Y23 -> 15 | AC23: Fernando Mota | AD23: 253 | AE23: =AD$5-AD23 -> 297 | AF23: =AD$9-AD23 -> 143 | AG23: =AD22-AD23 -> 19
B24: Jarbas Reis | C24: 20 | D24: Wesley Canuto | E24: 21 | F24: Samuel Farley | G24: 44 | H24: Thales Almeida | I24: 51 | J24: Lucio Chequer | K24: 65 | L24: Thales Almeida | M24: 91 | N24: Jean Paul | O24: 111 | P24: Jean Paul | Q24: 132 | R24: Felipe Curi | S24: 159 | T24: Samuel Farley | U24: 198 | V24: Matheus Azevedo | W24: 231 | X24: Felipe Curi | Y24: 236 | Z24: =Y$5-Y24 -> 252 | AA24: =Y$9-Y24 -> 124 | AB24: =Y23-Y24 -> 15 | AC24: Matheus Azevedo | AD24: 251 | AE24: =AD$5-AD24 -> 299 | AF24: =AD$9-AD24 -> 145 | AG24: =AD23-AD24 -> 2
B25: Jean Paul | C25: 21 | D25: Luiz Azevedo | E25: 20 | F25: Wesley Canuto | G25: 44 | H25: Luiz Azevedo | I25: 51 | J25: Guilherme Camarano | K25: 61 | L25: Tafarel Henrique | M25: 90 | N25: Tafarel Henrique | O25: 104 | P25: Frederico Papatella | Q25: 131 | R25: Matheus Azevedo | S25: 156 | T25: Saulo Chagas | U25: 182 | V25: Saulo Chagas | W25: 196 | X25: Fernando Mota | Y25: 221 | Z25: =Y$5-Y25 -> 267 | AA25: =Y$9-Y25 -> 139 | AB25: =Y24-Y25 -> 15 | AC25: Felipe Curi | AD25: 226 | AE25: =AD$5-AD25 -> 324 | AF25: =AD$9-AD25 -> 170 | AG25: =AD24-AD25 -> 25
A26: X | B26: Léo Oliveira | C26: 22 | D26: Thales Almeida | E26: 19 | F26: Felipe Curi | G26: 43 | H26: Pedro Fialho | I26: 50 | J26: Henry Douglas | K26: 56 | L26: Lucio Chequer | M26: 86 | N26: Fernando Mota | O26: 93 | P26: Felipe Curi | Q26: 126 | R26: Jean Paul | S26: 154 | T26: Jean Paul | U26: 171 | V26: Jean Paul | W26: 185 | X26: Jean Paul | Y26: 199 | Z26: =Y$5-Y26 -> 289 | AA26: =Y$9-Y26 -> 161 | AB26: =Y25-Y26 -> 22 | AC26: Renato Martins | AD26: 211 | AE26: =AD$5-AD26 -> 339 | AF26: =AD$9-AD26 -> 185 | AG26: =AD25-AD26 -> 15
B27: Levindo Neto | C27: 23 | D27: Rafael Miranda | E27: 18 | F27: Matheus Rocha | G27: 42 | H27: Aparecido Arantes | I27: 47 | J27: Samuel Farley | K27: 54 | L27: Samuel Farley | M27: 86 | N27: Felipe Curi | O27: 90 | P27: Matheus Azevedo | Q27: 124 | R27: Guilherme Camarano | S27: 145 | T27: Guilherme Camarano | U27: 160 | V27: Guilherme Camarano | W27: 173 | X27: Saulo Chagas | Y27: 196 | Z27: =Y$5-Y27 -> 292 | AA27: =Y$9-Y27 -> 164 | AB27: =Y26-Y27 -> 3 | AC27: Jean Paul | AD27: 201 | AE27: =AD$5-AD27 -> 349 | AF27: =AD$9-AD27 -> 195 | AG27: =AD26-AD27 -> 10
B28: Lucas Rabelo | C28: 24 | D28: Frederico Papatella | E28: 17 | F28: PetrÔnio Junior | G28: 38 | H28: Guilherme Camarano | I28: 46 | J28: Frederico Papatella | K28: 53 | L28: Guilherme Camarano | M28: 65 | N28: Alan Moreira | O28: 84 | P28: Renato Martins | Q28: 106 | R28: Fernando Mota | S28: 123 | T28: Renato Martins | U28: 144 | V28: Fernando Mota | W28: 161 | X28: Renato Martins | Y28: 185 | Z28: =Y$5-Y28 -> 303 | AA28: =Y$9-Y28 -> 175 | AB28: =Y27-Y28 -> 11 | AC28: Saulo Chagas | AD28: 186 | AE28: =AD$5-AD28 -> 364 | AF28: =AD$9-AD28 -> 210 | AG28: =AD27-AD28 -> 15
B29: Luciano Robervine | C29: 25 | D29: Pedro Avelar | E29: 16 | F29: Fernando Mota | G29: 36 | H29: Wesley Canuto | I29: 45 | J29: Matheus Rocha | K29: 52 | L29: Luiz Azevedo | M29: 61 | N29: Renato Martins | O29: 82 | P29: Thales Almeida | Q29: 100 | R29: Renato Martins | S29: 123 | T29: Henry Douglas | U29: 136 | V29: Renato Martins | W29: 159 | X29: Guilherme Camarano | Y29: 163 | Z29: =Y$5-Y29 -> 325 | AA29: =Y$9-Y29 -> 197 | AB29: =Y28-Y29 -> 22 | AC29: Henry Douglas | AD29: 177 | AE29: =AD$5-AD29 -> 373 | AF29: =AD$9-AD29 -> 219 | AG29: =AD28-AD29 -> 9
B30: Lucio Chequer | C30: 26 | D30: Alan Moreira | E30: 15 | F30: Tafarel Henrique | G30: 36 | H30: Alan Moreira | I30: 41 | J30: Wesley Canuto | K30: 51 | L30: Renato Martins | M30: 60 | N30: Matheus Azevedo | O30: 82 | P30: Henry Douglas | Q30: 94 | R30: Henry Douglas | S30: 113 | T30: Alan Moreira | U30: 131 | V30: Henry Douglas | W30: 155 | X30: Henry Douglas | Y30: 155 | Z30: =Y$5-Y30 -> 333 | AA30: =Y$9-Y30 -> 205 | AB30: =Y29-Y30 -> 8 | AC30: Celso Dantas | AD30: 162 | AE30: =AD$5-AD30 -> 388 | AF30: =AD$9-AD30 -> 234 | AG30: =AD29-AD30 -> 15
B31: Luiz Azevedo | C31: 27 | D31: Tafarel Henrique | E31: 14 | F31: Matheus Azevedo | G31: 32 | H31: Marcus Silva | I31: 36 | J31: Luiz Azevedo | K31: 51 | L31: Henry Douglas | M31: 59 | N31: Thales Almeida | O31: 81 | P31: Tafarel Henrique | Q31: 94 | R31: Alan Moreira | S31: 109 | T31: Fernando Mota | U31: 113 | V31: Celso Dantas | W31: 122 | X31: Celso Dantas | Y31: 138 | Z31: =Y$5-Y31 -> 350 | AA31: =Y$9-Y31 -> 222 | AB31: =Y30-Y31 -> 17 | AC31: Guilherme Camarano | AD31: 153 | AE31: =AD$5-AD31 -> 397 | AF31: =AD$9-AD31 -> 243 | AG31: =AD30-AD31 -> 9
B32: Márcio Tadeu | C32: 28 | D32: Felipe Curi | E32: 13 | F32: Celso Dantas | G32: 27 | H32: Fernando Mota | I32: 36 | J32: Pedro Fialho | K32: 50 | L32: Thiago Santos | M32: 59 | N32: Henry Douglas | O32: 80 | P32: Bruno Camargos | Q32: 91 | R32: Thales Almeida | S32: 102 | T32: Thales Almeida | U32: 102 | V32: Alan Moreira | W32: 121 | X32: Aparecido Arantes | Y32: 135 | Z32: =Y$5-Y32 -> 353 | AA32: =Y$9-Y32 -> 225 | AB32: =Y31-Y32 -> 3 | AC32: Aparecido Arantes | AD32: 135 | AE32: =AD$5-AD32 -> 415 | AF32: =AD$9-AD32 -> 261 | AG32: =AD31-AD32 -> 18
B33: Marcus Silva | C33: 29 | D33: Matheus Azevedo | E33: 12 | F33: Aparecido Arantes | G33: 26 | H33: Tafarel Henrique | I33: 36 | J33: Aparecido Arantes | K33: 47 | L33: Matheus Azevedo | M33: 59 | N33: Bruno Camargos | O33: 72 | P33: Guilherme Camarano | Q33: 81 | R33: Aparecido Arantes | S33: 97 | T33: Celso Dantas | U33: 101 | V33: Bruno Camargos | W33: 121 | X33: Bruno Camargos | Y33: 121 | Z33: =Y$5-Y33 -> 367 | AA33: =Y$9-Y33 -> 239 | AB33: =Y32-Y33 -> 14 | AC33: Levindo Neto | AD33: 127 | AE33: =AD$5-AD33 -> 423 | AF33: =AD$9-AD33 -> 269 | AG33: =AD32-AD33 -> 8
B34: Matheus Azevedo | C34: 30 | D34: Luciano Robervine | E34: 11 | F34: Thiago Santos | G34: 26 | H34: Thiago Santos | I34: 36 | J34: Gustavo Barros | K34: 42 | L34: Marcus Silva | M34: 56 | N34: Thiago Santos | O34: 72 | P34: Celso Dantas | Q34: 80 | R34: Tafarel Henrique | S34: 93 | T34: Aparecido Arantes | U34: 97 | V34: Aparecido Arantes | W34: 97 | X34: Alan Moreira | Y34: 111 | Z34: =Y$5-Y34 -> 377 | AA34: =Y$9-Y34 -> 249 | AB34: =Y33-Y34 -> 10 | AC34: Bruno Camargos | AD34: 111 | AE34: =AD$5-AD34 -> 439 | AF34: =AD$9-AD34 -> 285 | AG34: =AD33-AD34 -> 16
B35: Matheus Rocha | C35: 31 | D35: Celso Dantas | E35: 10 | F35: Thiago Azevedo | G35: 25 | H35: Gustavo Barros | I35: 32 | J35: Alan Moreira | K35: 41 | L35: Pedro Fialho | M35: 50 | N35: Celso Dantas | O35: 63 | P35: Thiago Santos | Q35: 77 | R35: Celso Dantas | S35: 91 | T35: Thiago Santos | U35: 84 | V35: Thales Almeida | W35: 92 | X35: Levindo Neto | Y35: 107 | Z35: =Y$5-Y35 -> 381 | AA35: =Y$9-Y35 -> 253 | AB35: =Y34-Y35 -> 4 | AC35: Alan Moreira | AD35: 101 | AE35: =AD$5-AD35 -> 449 | AF35: =AD$9-AD35 -> 295 | AG35: =AD34-AD35 -> 10
B36: Pedro Avelar | C36: 32 | D36: Bruno Camargos | E36: 9 | F36: Rafael Miranda | G36: 25 | H36: Matheus Azevedo | I36: 32 | J36: Matheus Azevedo | K36: 41 | L36: Aparecido Arantes | M36: 47 | N36: Gustavo Barros | O36: 56 | P36: Alan Moreira | Q36: 74 | R36: Bruno Camargos | S36: 90 | T36: Tafarel Henrique | U36: 83 | V36: Levindo Neto | W36: 87 | X36: Thales Almeida | Y36: 92 | Z36: =Y$5-Y36 -> 396 | AA36: =Y$9-Y36 -> 268 | AB36: =Y35-Y36 -> 15 | AC36: Thiago Azevedo | AD36: 97 | AE36: =AD$5-AD36 -> 453 | AF36: =AD$9-AD36 -> 299 | AG36: =AD35-AD36 -> 4
B37: Pedro Fialho | C37: 33 | D37: Renato Martins | E37: 8 | F37: Luciano Robervine | G37: 25 | H37: Frederico Papatella | I37: 29 | J37: Thiago Santos | K37: 36 | L37: Celso Dantas | M37: 47 | N37: Guilherme Camarano | O37: 55 | P37: Aparecido Arantes | Q37: 67 | R37: Gustavo Barros | S37: 74 | T37: Bruno Camargos | U37: 80 | V37: Thiago Santos | W37: 84 | X37: Thiago Santos | Y37: 84 | Z37: =Y$5-Y37 -> 404 | AA37: =Y$9-Y37 -> 276 | AB37: =Y36-Y37 -> 8 | AC37: Thiago Santos | AD37: 84 | AE37: =AD$5-AD37 -> 466 | AF37: =AD$9-AD37 -> 312 | AG37: =AD36-AD37 -> 13
B38: PetrÔnio Junior | C38: 34 | D38: Edmárcio Júnior | E38: 7 | F38: Alan Moreira | G38: 24 | H38: Celso Dantas | I38: 27 | J38: Thiago Azevedo | K38: 33 | L38: Alan Moreira | M38: 46 | N38: Luiz Azevedo | O38: 51 | P38: Gustavo Barros | Q38: 56 | R38: Thiago Santos | S38: 67 | T38: Gustavo Barros | U38: 74 | V38: Tafarel Henrique | W38: 73 | X38: Thiago Azevedo | Y38: 76 | Z38: =Y$5-Y38 -> 412 | AA38: =Y$9-Y38 -> 284 | AB38: =Y37-Y38 -> 8 | AC38: Thales Almeida | AD38: 82 | AE38: =AD$5-AD38 -> 468 | AF38: =AD$9-AD38 -> 314 | AG38: =AD37-AD38 -> 2
A39: X | B39: Rafael Miranda | C39: 35 | D39: Thiago Azevedo | E39: 6 | F39: Renato Martins | G39: 23 | H39: Thiago Azevedo | I39: 26 | J39: Celso Dantas | K39: 28 | L39: Gustavo Barros | M39: 44 | N39: Pedro Fialho | O39: 50 | P39: Pedro Fialho | Q39: 50 | R39: Levindo Neto | S39: 52 | T39: Levindo Neto | U39: 71 | V39: Gustavo Barros | W39: 64 | X39: Gustavo Barros | Y39: 64 | Z39: =Y$5-Y39 -> 424 | AA39: =Y$9-Y39 -> 296 | AB39: =Y38-Y39 -> 12 | AC39: Gustavo Barros | AD39: 54 | AE39: =AD$5-AD39 -> 496 | AF39: =AD$9-AD39 -> 342 | AG39: =AD38-AD39 -> 28
B40: Raphael Reis | C40: 36 | D40: Thiago Santos | E40: 5 | F40: Bruno Camargos | G40: 19 | H40: Bruno Camargos | I40: 26 | J40: Renato Martins | K40: 28 | L40: Thiago Azevedo | M40: 43 | N40: Thiago Azevedo | O40: 50 | P40: Levindo Neto | Q40: 46 | R40: Luiz Azevedo | S40: 49 | T40: Thiago Azevedo | U40: 44 | V40: Thiago Azevedo | W40: 54 | X40: Tafarel Henrique | Y40: 63 | Z40: =Y$5-Y40 -> 425 | AA40: =Y$9-Y40 -> 297 | AB40: =Y39-Y40 -> 1 | AC40: Tafarel Henrique | AD40: 53 | AE40: =AD$5-AD40 -> 497 | AF40: =AD$9-AD40 -> 343 | AG40: =AD39-AD40 -> 1
B41: Renato Martins | C41: 37 | D41: Guilherme Camarano | E41: 4 | F41: Edmárcio Júnior | G41: 18 | H41: Luciano Robervine | I41: 25 | J41: Bruno Camargos | K41: 26 | L41: Bruno Camargos | M41: 42 | N41: Aparecido Arantes | O41: 47 | P41: Luiz Azevedo | Q41: 41 | R41: Pedro Fialho | S41: 40 | T41: Luiz Azevedo | U41: 39 | V41: Luiz Azevedo | W41: 29 | X41: Luiz Azevedo | Y41: 19 | Z41: =Y$5-Y41 -> 469 | AA41: =Y$9-Y41 -> 341 | AB41: =Y40-Y41 -> 44 | AC41: Luiz Azevedo | AD41: 9 | AE41: =AD$5-AD41 -> 541 | AF41: =AD$9-AD41 -> 387 | AG41: =AD40-AD41 -> 44
B42: Robert Freitas | C42: 38 | D42: Levindo Neto | E42: 3 | F42: Frederico Papatella | G42: 17 | H42: Renato Martins | I42: 23 | J42: Edmárcio Júnior | K42: 18 | L42: Fernando Mota | M42: 31 | N42: Marcus Silva | O42: 46 | P42: Thiago Azevedo | Q42: 40 | R42: Thiago Azevedo | S42: 36 | T42: Pedro Fialho | U42: 30 | V42: Pedro Fialho | W42: 20 | X42: Pedro Fialho | Y42: 10 | Z42: =Y$5-Y42 -> 478 | AA42: =Y$9-Y42 -> 350 | AB42: =Y41-Y42 -> 9 | AC42: Pedro Fialho | AD42: 0 | AE42: =AD$5-AD42 -> 550 | AF42: =AD$9-AD42 -> 396 | AG42: =AD41-AD42 -> 9
B43: Samuel Farley | C43: 39 | D43: Gustavo Barros | E43: 2 | F43: Pedro Avelar | G43: 16 | H43: Henry Douglas | I43: 21 | J43: Fernando Mota | K43: 16 | L43: Edmárcio Júnior | M43: 29 | N43: Levindo Neto | O43: 30 | P43: Marcus Silva | Q43: 36 | R43: Marcus Silva | S43: 26 | T43: Marcus Silva | U43: 16 | V43: Marcus Silva | W43: 6 | X43: Marcus Silva | Y43: 0 | Z43: =Y$5-Y43 -> 488 | AA43: =Y$9-Y43 -> 360 | AB43: =Y42-Y43 -> 10 | AC43: Marcus Silva | AD43: 0 | AE43: =AD$5-AD43 -> 550 | AF43: =AD$9-AD43 -> 396 | AG43: =AD42-AD43 -> 0
B44: Saulo Chagas | C44: 40 | D44: Aparecido Arantes | E44: 0 | F44: Levindo Neto | G44: 11 | H44: Edmárcio Júnior | I44: 18 | J44: Pedro Avelar | K44: 16 | L44: Pedro Avelar | M44: 16 | N44: Edmárcio Júnior | O44: 29 | P44: Edmárcio Júnior | Q44: 19 | R44: Edmárcio Júnior | S44: 19 | T44: Edmárcio Júnior | U44: 9 | V44: Pedro Avelar | W44: 0 | X44: Luciano Robervine | Y44: 0 | Z44: =Y$5-Y44 -> 488 | AA44: =Y$9-Y44 -> 360 | AB44: =Y43-Y44 -> 0 | AC44: Luciano Robervine | AD44: 0 | AE44: =AD$5-AD44 -> 550 | AF44: =AD$9-AD44 -> 396 | AG44: =AD43-AD44 -> 0
B45: Tafarel Henrique | C45: 41 | D45: Carlos Gomes | E45: 0 | F45: Henry Douglas | G45: 3 | H45: Pedro Avelar | I45: 16 | J45: Luciano Robervine | K45: 15 | L45: Levindo Neto | M45: 16 | N45: Pedro Avelar | O45: 16 | P45: Pedro Avelar | Q45: 16 | R45: Pedro Avelar | S45: 6 | T45: Pedro Avelar | U45: 0 | V45: Luciano Robervine | W45: 0 | X45: Pedro Avelar | Y45: 0 | Z45: =Y$5-Y45 -> 488 | AA45: =Y$9-Y45 -> 360 | AB45: =Y44-Y45 -> 0 | AC45: Pedro Avelar | AD45: 0 | AE45: =AD$5-AD45 -> 550 | AF45: =AD$9-AD45 -> 396 | AG45: =AD44-AD45 -> 0
B46: Thales Almeida | C46: 42 | D46: Henry Douglas | E46: 0 | F46: Gustavo Barros | G46: 2 | H46: Levindo Neto | I46: 13 | J46: Levindo Neto | K46: 13 | L46: Luciano Robervine | M46: 5 | N46: Luciano Robervine | O46: 0 | P46: Luciano Robervine | Q46: 0 | R46: Luciano Robervine | S46: 0 | T46: Luciano Robervine | U46: 0 | V46: Edmárcio Júnior | W46: 0 | X46: Edmárcio Júnior | Y46: 0 | Z46: =Y$5-Y46 -> 488 | AA46: =Y$9-Y46 -> 360 | AB46: =Y45-Y46 -> 0 | AC46: Edmárcio Júnior | AD46: 0 | AE46: =AD$5-AD46 -> 550 | AF46: =AD$9-AD46 -> 396 | AG46: =AD45-AD46 -> 0
B47: Thiago Azevedo | C47: 43 | D47: Márcio Tadeu | E47: 0 | F47: Carlos Gomes | G47: 0 | H47: Carlos Gomes | I47: 0 | J47: Márcio Tadeu | K47: 0 | L47: Márcio Tadeu | M47: 0 | N47: Márcio Tadeu | O47: 0 | P47: Márcio Tadeu | Q47: 0 | R47: Márcio Tadeu | S47: 0 | T47: Márcio Tadeu | U47: 0 | V47: Márcio Tadeu | W47: 0 | X47: Márcio Tadeu | Y47: 0 | Z47: =Y$5-Y47 -> 488 | AA47: =Y$9-Y47 -> 360 | AB47: =Y46-Y47 -> 0 | AC47: Márcio Tadeu | AD47: 0 | AE47: =AD$5-AD47 -> 550 | AF47: =AD$9-AD47 -> 396 | AG47: =AD46-AD47 -> 0
B48: Thiago Santos | C48: 44 | D48: PetrÔnio Junior | E48: 0 | F48: Robert Freitas | G48: 0 | H48: Robert Freitas | I48: 0 | J48: Carlos Gomes | K48: 0 | L48: Carlos Gomes | M48: 0 | N48: Carlos Gomes | O48: 0 | P48: Carlos Gomes | Q48: 0 | R48: Carlos Gomes | S48: 0 | T48: Carlos Gomes | U48: 0 | V48: Carlos Gomes | W48: 0 | X48: Carlos Gomes | Y48: 0 | Z48: =Y$5-Y48 -> 488 | AA48: =Y$9-Y48 -> 360 | AB48: =Y47-Y48 -> 0 | AC48: Carlos Gomes | AD48: 0 | AE48: =AD$5-AD48 -> 550 | AF48: =AD$9-AD48 -> 396 | AG48: =AD47-AD48 -> 0
B49: Wesley Canuto | C49: 45 | D49: Robert Freitas | E49: 0 | F49: Márcio Tadeu | G49: -4 | H49: Márcio Tadeu | I49: -4 | J49: Robert Freitas | K49: 0 | L49: Robert Freitas | M49: 0 | N49: Robert Freitas | O49: 0 | P49: Robert Freitas | Q49: 0 | R49: Robert Freitas | S49: 0 | T49: Robert Freitas | U49: 0 | V49: Robert Freitas | W49: 0 | X49: Robert Freitas | Y49: 0 | Z49: =Y$5-Y49 -> 488 | AA49: =Y$9-Y49 -> 360 | AB49: =Y48-Y49 -> 0 | AC49: Robert Freitas | AD49: 0 | AE49: =AD$5-AD49 -> 550 | AF49: =AD$9-AD49 -> 396 | AG49: =AD48-AD49 -> 0

Sheet CAMP EQUIPE EVOL
A1: 2021 | B1: OK | D1: OK | F1: OK | H1: OK | J1: OK | L1: OK | N1: OK | P1: OK | R1: OK | T1: OK | V1: OK | X1: DIF. LIDER | Y1: DIF. 3º | Z1: DIF. PRÓXIMO | AA1: OK | AC1: DIF. LIDER | AD1: DIF. 3º | AE1: DIF. PRÓXIMO
B2: 1ª etapa | D2: 2ª etapa | F2: 3ª etapa | H2: 4ª etapa | J2: 5ª etapa | L2: 6ª etapa | N2: 7ª etapa | P2: 8ª etapa | R2: 9ª etapa | T2: 10ª etapa | V2: 11ª etapa | AA2: 12ª etapa
D3: 0 | F3: 00:00:00 | H3: 00:00:00 | J3: 00:00:00 | L3: 00:00:00 | N3: 00:00:00 | P3: 00:00:00 | R3: 00:00:00 | T3: 00:00:00 | V3: 00:00:00 | AA3: 00:00:00
A4: EQUIPES | B4: EQUIPES | C4: Pontuação Geral | D4: EQUIPES | E4: Pontuação Geral | F4: EQUIPES | G4: Pontuação Geral | H4: EQUIPES | I4: Pontuação Geral | J4: EQUIPES | K4: Pontuação Geral | L4: EQUIPES | M4: Pontuação Geral | N4: Posição | O4: Pontos | P4: Posição | Q4: Pontos | R4: Posição | S4: Pontos | T4: Posição | U4: Pontos | V4: Posição | W4: Pontos | AA4: Posição | AB4: Pontos
A5: 1º | B5: VIAKART | C5: 103 | D5: LOKAMIG1 | E5: 220 | F5: LOKAMIG | G5: 224 | H5: LOKAMIG | I5: 269 | J5: AST ESTRUTURAS | K5: 417 | L5: AST ESTRUTURAS | M5: 536 | N5: AST ESTRUTURAS | O5: 636 | P5: AST ESTRUTURAS | Q5: 742 | R5: AST ESTRUTURAS | S5: 830 | T5: AST ESTRUTURAS | U5: 924 | V5: AST ESTRUTURAS | W5: 1030 | X5: - | Y5: - | Z5: - | AA5: AST ESTRUTURAS | AB5: 1129 | AC5: - | AD5: - | AE5: -
B6: Jarbas Reis | C6: 22 | D6: Alexandre Melillo | E6: 83 | F6: Léo Oliveira | G6: 114 | H6: Léo Oliveira | I6: 109 | J6: Anderson Teixeira | K6: 124 | L6: Anderson Teixeira | M6: 168 | N6: Anderson Teixeira | O6: 200 | P6: Anderson Teixeira | Q6: 216 | R6: Anderson Teixeira | S6: 240 | T6: Anderson Teixeira | U6: 266 | V6: Anderson Teixeira | W6: 300 | X6: - | Y6: - | Z6: - | AA6: Anderson Teixeira | AB6: 344 | AC6: - | AD6: - | AE6: -
B7: Wesley Canuto | C7: 0 | D7: Lucio Chequer | E7: 42 | F7: Alan Moreira | G7: 41 | H7: Alan Moreira | I7: 26 | J7: Frederico Papatella | K7: 88 | L7: Frederico Papatella | M7: 108 | N7: Frederico Papatella | O7: 126 | P7: Frederico Papatella | Q7: 170 | R7: Frederico Papatella | S7: 170 | T7: Frederico Papatella | U7: 210 | V7: Frederico Papatella | W7: 227 | X7: - | Y7: - | Z7: - | AA7: Frederico Papatella | AB7: 227 | AC7: - | AD7: - | AE7: -
B8: Matheus Rocha | C8: 26 | D8: Lucas Rabelo | E8: 75 | F8: PetrÔnio Junior | G8: 50 | H8: PetrÔnio Junior | I8: 94 | J8: Carlos Gomes | K8: 0 | L8: Carlos Gomes | M8: 0 | N8: Carlos Gomes | O8: 0 | P8: Carlos Gomes | Q8: 0 | R8: Carlos Gomes | S8: 0 | T8: Carlos Gomes | U8: 0 | V8: Carlos Gomes | W8: 0 | X8: - | Y8: - | Z8: - | AA8: Carlos Gomes | AB8: 0 | AC8: - | AD8: - | AE8: -
B9: Saulo Chagas | C9: 55 | D9: Matheus Azevedo | E9: 20 | F9: Thales Almeida | G9: 19 | H9: Thales Almeida | I9: 40 | J9: Rafael Miranda | K9: 165 | L9: Rafael Miranda | M9: 220 | N9: Rafael Miranda | O9: 270 | P9: Rafael Miranda | Q9: 316 | R9: Rafael Miranda | S9: 334 | T9: Rafael Miranda | U9: 362 | V9: Rafael Miranda | W9: 417 | X9: - | Y9: - | Z9: - | AA9: Rafael Miranda | AB9: 472 | AC9: - | AD9: - | AE9: -
B10: XXXXXX | C10: 0 | D10: XXXXXX | E10: 0 | F10: XXXXXX | G10: 0 | H10: XXXXXX | I10: 0 | J10: Marcus Silva | K10: 40 | L10: Marcus Silva | M10: 40 | N10: Marcus Silva | O10: 40 | P10: Marcus Silva | Q10: 40 | R10: Marcus Silva | S10: 86 | T10: Marcus Silva | U10: 86 | V10: Marcus Silva | W10: 86 | X10: - | Y10: - | Z10: - | AA10: Marcus Silva | AB10: 86 | AC10: - | AD10: - | AE10: -
A11: 2º | B11: APLHA ENGENHARIA | C11: 100 | D11: APLHA ENGENHARIA | E11: 214 | F11: LOKAMIG1 | G11: 220 | H11: AST ESTRUTURAS | I11: 265 | J11: LOKAMIG | K11: 372 | L11: LOKAMIG | M11: 471 | N11: LOKAMIG | O11: 565 | P11: LOKAMIG1 | Q11: 673 | R11: LOKAMIG1 | S11: 783 | T11: LOKAMIG1 | U11: 868 | V11: LOKAMIG1 | W11: 988 | X11: =W5-W11 -> 42 | Y11: - | Z11: =W5-W11 -> 42 | AA11: LOKAMIG1 | AB11: 1065 | AC11: =AB5-AB11 -> 64 | AD11: - | AE11: =AB5-AB11 -> 64
B12: Raphael Reis | C12: 30 | D12: Raphael Reis | E12: 64 | F12: Alexandre Melillo | G12: 83 | H12: Anderson Teixeira | I12: 62 | J12: Léo Oliveira | K12: 164 | L12: Léo Oliveira | M12: 214 | N12: Léo Oliveira | O12: 274 | P12: Alexandre Melillo | Q12: 183 | R12: Alexandre Melillo | S12: 213 | T12: Alexandre Melillo | U12: 237 | V12: Alexandre Melillo | W12: 281 | X12: - | Y12: - | Z12: - | AA12: Alexandre Melillo | AB12: 325 | AC12: - | AD12: - | AE12: -
B13: Fernando Mota | C13: 36 | D13: Fernando Mota | E13: 36 | F13: Lucio Chequer | G13: 42 | H13: Frederico Papatella | I13: 48 | J13: Alan Moreira | K13: 26 | L13: Alan Moreira | M13: 64 | N13: Alan Moreira | O13: 79 | P13: Lucio Chequer | Q13: 164 | R13: Lucio Chequer | S13: 164 | T13: Lucio Chequer | U13: 202 | V13: Lucio Chequer | W13: 226 | X13: - | Y13: - | Z13: - | AA13: Lucio Chequer | AB13: 246 | AC13: - | AD13: - | AE13: -
B14: Jean Paul | C14: 34 | D14: Jean Paul | E14: 72 | F14: Lucas Rabelo | G14: 75 | H14: Carlos Gomes | I14: 0 | J14: PetrÔnio Junior | K14: 130 | L14: PetrÔnio Junior | M14: 141 | N14: PetrÔnio Junior | O14: 141 | P14: Lucas Rabelo | Q14: 232 | R14: Lucas Rabelo | S14: 260 | T14: Lucas Rabelo | U14: 260 | V14: Lucas Rabelo | W14: 310 | X14: - | Y14: - | Z14: - | AA14: Lucas Rabelo | AB14: 323 | AC14: - | AD14: - | AE14: -
B15: Guilherme Camarano | C15: 0 | D15: Guilherme Camarano | E15: 42 | F15: Matheus Azevedo | G15: 20 | H15: Rafael Miranda | I15: 115 | J15: Thales Almeida | K15: 52 | L15: Thales Almeida | M15: 52 | N15: Thales Almeida | O15: 71 | P15: Matheus Azevedo | Q15: 94 | R15: Matheus Azevedo | S15: 146 | T15: Matheus Azevedo | U15: 169 | V15: Matheus Azevedo | W15: 171 | X15: - | Y15: - | Z15: - | AA15: Matheus Azevedo | AB15: 171 | AC15: - | AD15: - | AE15: -
B16: XXXXXX | C16: 0 | D16: XXXXXX | E16: 0 | F16: XXXXXX | G16: 0 | H16: Marcus Silva | I16: 40 | J16: XXXXXX | K16: 0 | L16: XXXXXX | M16: 0 | N16: XXXXXX | O16: 0 | P16: XXXXXX | Q16: 0 | R16: XXXXXX | S16: 0 | T16: XXXXXX | U16: 0 | V16: XXXXXX | W16: 0 | X16: - | Y16: - | Z16: - | AA16: XXXXXX | AB16: 0 | AC16: - | AD16: - | AE16: -
A17: 3º | B17: LOKAMIG | C17: 96 | D17: VIAKART | E17: 186 | F17: AST ESTRUTURAS | G17: 217 | H17: LOKAMIG1 | I17: 226 | J17: VIAKART | K17: 331 | L17: VIAKART | M17: 431 | N17: VIAKART | O17: 543 | P17: LOKAMIG | Q17: 654 | R17: LOKAMIG | S17: 768 | T17: LOKAMIG | U17: 857 | V17: LOKAMIG | W17: 955 | X17: =W5-W17 -> 75 | Y17: - | Z17: =W11-W17 -> 33 | AA17: LOKAMIG | AB17: 1039 | AC17: =AB5-AB17 -> 90 | AD17: - | AE17: =AB11-AB17 -> 26
B18: Léo Oliveira | C18: 62 | D18: Jarbas Reis | E18: 66 | F18: Anderson Teixeira | G18: 86 | H18: Alexandre Melillo | I18: 79 | J18: Jarbas Reis | K18: 90 | L18: Jarbas Reis | M18: 132 | N18: Jarbas Reis | O18: 168 | P18: Léo Oliveira | Q18: 274 | R18: Léo Oliveira | S18: 334 | T18: Léo Oliveira | U18: 382 | V18: Léo Oliveira | W18: 428 | X18: - | Y18: - | Z18: - | AA18: Léo Oliveira | AB18: 490 | AC18: - | AD18: - | AE18: -
B19: Alan Moreira | C19: 15 | D19: Wesley Canuto | E19: 23 | F19: Frederico Papatella | G19: 12 | H19: Lucio Chequer | I19: 23 | J19: Wesley Canuto | K19: 52 | L19: Wesley Canuto | M19: 92 | N19: Wesley Canuto | O19: 120 | P19: Alan Moreira | Q19: 88 | R19: Alan Moreira | S19: 110 | T19: Alan Moreira | U19: 136 | V19: Alan Moreira | W19: 136 | X19: - | Y19: - | Z19: - | AA19: Alan Moreira | AB19: 136 | AC19: - | AD19: - | AE19: -
B20: PetrÔnio Junior | C20: 0 | D20: Matheus Rocha | E20: 42 | F20: Carlos Gomes | G20: 0 | H20: Lucas Rabelo | I20: 104 | J20: Matheus Rocha | K20: 106 | L20: Matheus Rocha | M20: 124 | N20: Matheus Rocha | O20: 124 | P20: PetrÔnio Junior | Q20: 189 | R20: PetrÔnio Junior | S20: 221 | T20: PetrÔnio Junior | U20: 236 | V20: PetrÔnio Junior | W20: 288 | X20: - | Y20: - | Z20: - | AA20: PetrÔnio Junior | AB20: 310 | AC20: - | AD20: - | AE20: -
B21: Thales Almeida | C21: 19 | D21: Saulo Chagas | E21: 55 | F21: Rafael Miranda | G21: 73 | H21: Matheus Azevedo | I21: 20 | J21: Saulo Chagas | K21: 83 | L21: Saulo Chagas | M21: 83 | N21: Saulo Chagas | O21: 131 | P21: Thales Almeida | Q21: 103 | R21: Thales Almeida | S21: 103 | T21: Thales Almeida | U21: 103 | V21: Thales Almeida | W21: 103 | X21: - | Y21: - | Z21: - | AA21: Thales Almeida | AB21: 103 | AC21: - | AD21: - | AE21: -
B22: XXXXXX | C22: 0 | D22: XXXXXX | E22: 0 | F22: Marcus Silva | G22: 46 | H22: XXXXXX | I22: 0 | J22: XXXXXX | K22: 0 | L22: XXXXXX | M22: 0 | N22: XXXXXX | O22: 0 | P22: XXXXXX | Q22: 0 | R22: XXXXXX | S22: 0 | T22: XXXXXX | U22: 0 | V22: XXXXXX | W22: 0 | X22: - | Y22: - | Z22: - | AA22: XXXXXX | AB22: 0 | AC22: - | AD22: - | AE22: -
A23: 4º | B23: LOKAMIG1 | C23: 93 | D23: LOKAMIG | E23: 185 | F23: APLHA ENGENHARIA | G23: 214 | H23: APLHA ENGENHARIA | I23: 214 | J23: LOKAMIG1 | K23: 319 | L23: APLHA ENGENHARIA | M23: 418 | N23: LOKAMIG1 | O23: 534 | P23: APLHA ENGENHARIA | Q23: 634 | R23: VIAKART | S23: 735 | T23: VIAKART | U23: 831 | V23: VIAKART | W23: 916 | X23: =W$5-W23 -> 114 | Y23: =W$17-W23 -> 39 | Z23: =W17-W23 -> 39 | AA23: GUI FIGUEIREDO | AB23: 1000 | AC23: =AB$5-AB23 -> 129 | AD23: =AB$17-AB23 -> 39 | AE23: =AB17-AB23 -> 39
B24: Alexandre Melillo | C24: 28 | D24: Léo Oliveira | E24: 62 | F24: Raphael Reis | G24: 64 | H24: Raphael Reis | I24: 64 | J24: Alexandre Melillo | K24: 107 | L24: Raphael Reis | M24: 148 | N24: Alexandre Melillo | O24: 183 | P24: Raphael Reis | Q24: 216 | R24: Jarbas Reis | S24: 208 | T24: Jarbas Reis | U24: 242 | V24: Jarbas Reis | W24: 272 | X24: - | Y24: - | Z24: - | AA24: Gui Figueiredo | AB24: 485 | AC24: - | AD24: - | AE24: -
B25: Lucio Chequer | C25: 42 | D25: Alan Moreira | E25: 24 | F25: Fernando Mota | G25: 36 | H25: Fernando Mota | I25: 36 | J25: Lucio Chequer | K25: 65 | L25: Fernando Mota | M25: 98 | N25: Lucio Chequer | O25: 114 | P25: Fernando Mota | Q25: 138 | R25: Wesley Canuto | S25: 194 | T25: Wesley Canuto | U25: 238 | V25: Wesley Canuto | W25: 253 | X25: - | Y25: - | Z25: - | AA25: Samuel Farley | AB25: 284 | AC25: - | AD25: - | AE25: -
B26: Lucas Rabelo | C26: 23 | D26: PetrÔnio Junior | E26: 48 | F26: Jean Paul | G26: 72 | H26: Jean Paul | I26: 72 | J26: Lucas Rabelo | K26: 127 | L26: Jean Paul | M26: 111 | N26: Lucas Rabelo | O26: 175 | P26: Jean Paul | Q26: 133 | R26: Matheus Rocha | S26: 202 | T26: Matheus Rocha | U26: 220 | V26: Matheus Rocha | W26: 260 | X26: - | Y26: - | Z26: - | AA26: Bruno Camargos | AB26: 104 | AC26: - | AD26: - | AE26: -
B27: Matheus Azevedo | C27: 0 | D27: Thales Almeida | E27: 51 | F27: Guilherme Camarano | G27: 42 | H27: Guilherme Camarano | I27: 42 | J27: Matheus Azevedo | K27: 20 | L27: Guilherme Camarano | M27: 61 | N27: Matheus Azevedo | O27: 62 | P27: Guilherme Camarano | Q27: 147 | R27: Saulo Chagas | S27: 131 | T27: Saulo Chagas | U27: 131 | V27: Saulo Chagas | W27: 131 | X27: - | Y27: - | Z27: - | AA27: Celso Dantas | AB27: 127 | AC27: - | AD27: - | AE27: -
B28: XXXXXX | C28: 0 | D28: XXXXXX | E28: 0 | F28: XXXXXX | G28: 0 | H28: XXXXXX | I28: 0 | J28: XXXXXX | K28: 0 | L28: XXXXXX | M28: 0 | N28: XXXXXX | O28: 0 | P28: XXXXXX | Q28: 0 | R28: XXXXXX | S28: 0 | T28: XXXXXX | U28: 0 | V28: XXXXXX | W28: 0 | X28: - | Y28: - | Z28: - | AA28: XXXXXX | AB28: 0 | AC28: - | AD28: - | AE28: -
A29: 5º | B29: AST ESTRUTURAS | C29: 88 | D29: GUI FIGUEIREDO | E29: 171 | F29: RBC | G29: 208 | H29: RBC | I29: 208 | J29: APLHA ENGENHARIA | K29: 303 | L29: LOKAMIG1 | M29: 417 | N29: APLHA ENGENHARIA | O29: 528 | P29: VIAKART | Q29: 631 | R29: APLHA ENGENHARIA | S29: 711 | T29: GUI FIGUEIREDO | U29: 796 | V29: GUI FIGUEIREDO | W29: 890 | X29: =W$5-W29 -> 140 | Y29: =W$17-W29 -> 65 | Z29: =W23-W29 -> 26 | AA29: VIAKART | AB29: 999 | AC29: =AB$5-AB29 -> 130 | AD29: =AB$17-AB29 -> 40 | AE29: =AB23-AB29 -> 1
B30: Anderson Teixeira | C30: 24 | D30: Gui Figueiredo | E30: 100 | F30: Bruno Nosse | G30: 88 | H30: Bruno Nosse | I30: 88 | J30: Raphael Reis | K30: 114 | L30: Alexandre Melillo | M30: 131 | N30: Raphael Reis | O30: 192 | P30: Jarbas Reis | Q30: 182 | R30: Raphael Reis | S30: 264 | T30: Gui Figueiredo | U30: 397 | V30: Gui Figueiredo | W30: 439 | X30: - | Y30: - | Z30: - | AA30: Jarbas Reis | AB30: 316 | AC30: - | AD30: - | AE30: -
B31: Frederico Papatella | C31: 0 | D31: Samuel Farley | E31: 44 | F31: Gustavo Barros | G31: 30 | H31: Gustavo Barros | I31: 30 | J31: Fernando Mota | K31: 36 | L31: Lucio Chequer | M31: 91 | N31: Fernando Mota | O31: 138 | P31: Wesley Canuto | Q31: 160 | R31: Fernando Mota | S31: 138 | T31: Samuel Farley | U31: 208 | V31: Samuel Farley | W31: 244 | X31: - | Y31: - | Z31: - | AA31: Wesley Canuto | AB31: 276 | AC31: - | AD31: - | AE31: -
B32: Carlos Gomes | C32: 0 | D32: Bruno Camargos | E32: 0 | F32: Luciano Robervine | G32: 14 | H32: Luciano Robervine | I32: 14 | J32: Jean Paul | K32: 92 | L32: Lucas Rabelo | M32: 175 | N32: Jean Paul | O32: 111 | P32: Matheus Rocha | Q32: 158 | R32: Jean Paul | S32: 147 | T32: Bruno Camargos | U32: 104 | V32: Bruno Camargos | W32: 104 | X32: - | Y32: - | Z32: - | AA32: Matheus Rocha | AB32: 276 | AC32: - | AD32: - | AE32: -
B33: Rafael Miranda | C33: 18 | D33: Celso Dantas | E33: 27 | F33: Felipe Curi | G33: 76 | H33: Felipe Curi | I33: 76 | J33: Guilherme Camarano | K33: 61 | L33: Matheus Azevedo | M33: 20 | N33: Guilherme Camarano | O33: 87 | P33: Saulo Chagas | Q33: 131 | R33: Guilherme Camarano | S33: 162 | T33: Celso Dantas | U33: 87 | V33: Celso Dantas | W33: 103 | X33: - | Y33: - | Z33: - | AA33: Saulo Chagas | AB33: 131 | AC33: - | AD33: - | AE33: -
B34: Marcus Silva | C34: 46 | D34: XXXXXX | E34: 0 | F34: XXXXXX | G34: 0 | H34: XXXXXX | I34: 0 | J34: XXXXXX | K34: 0 | L34: XXXXXX | M34: 0 | N34: XXXXXX | O34: 0 | P34: XXXXXX | Q34: 0 | R34: XXXXXX | S34: 0 | T34: XXXXXX | U34: 0 | V34: XXXXXX | W34: 0 | X34: - | Y34: - | Z34: - | AA34: XXXXXX | AB34: 0 | AC34: - | AD34: - | AE34: -
A35: 6º | B35: GUI FIGUEIREDO | C35: 82 | D35: CLEMENTE CAR | E35: 162 | F35: VIAKART | G35: 201 | H35: VIAKART | I35: 201 | J35: RBC | K35: 284 | L35: GUI FIGUEIREDO | M35: 406 | N35: GUI FIGUEIREDO | O35: 488 | P35: GUI FIGUEIREDO | Q35: 589 | R35: GUI FIGUEIREDO | S35: 682 | T35: APLHA ENGENHARIA | U35: 789 | V35: APLHA ENGENHARIA | W35: 877 | X35: =W$5-W35 -> 153 | Y35: =W$17-W35 -> 78 | Z35: =W29-W35 -> 13 | AA35: APLHA ENGENHARIA | AB35: 949 | AC35: =AB$5-AB35 -> 180 | AD35: =AB$17-AB35 -> 90 | AE35: =AB29-AB35 -> 50
B36: Gui Figueiredo | C36: 40 | D36: Christian Guedes | E36: 100 | F36: Jarbas Reis | G36: 56 | H36: Jarbas Reis | I36: 56 | J36: Bruno Nosse | K36: 122 | L36: Gui Figueiredo | M36: 202 | N36: Gui Figueiredo | O36: 242 | P36: Gui Figueiredo | Q36: 294 | R36: Gui Figueiredo | S36: 351 | T36: Raphael Reis | U36: 281 | V36: Raphael Reis | W36: 309 | X36: - | Y36: - | Z36: - | AA36: Raphael Reis | AB36: 339 | AC36: - | AD36: - | AE36: -
B37: Samuel Farley | C37: 32 | D37: Edmárcio Júnior | E37: 7 | F37: Wesley Canuto | G37: 0 | H37: Wesley Canuto | I37: 0 | J37: Gustavo Barros | K37: 42 | L37: Samuel Farley | M37: 96 | N37: Samuel Farley | O37: 128 | P37: Samuel Farley | Q37: 156 | R37: Samuel Farley | S37: 172 | T37: Fernando Mota | U37: 186 | V37: Fernando Mota | W37: 246 | X37: - | Y37: - | Z37: - | AA37: Fernando Mota | AB37: 288 | AC37: - | AD37: - | AE37: -
B38: Bruno Camargos | C38: 0 | D38: Tafarel Henrique | E38: 36 | F38: Matheus Rocha | G38: 62 | H38: Matheus Rocha | I38: 62 | J38: Luciano Robervine | K38: 14 | L38: Bruno Camargos | M38: 72 | N38: Bruno Camargos | O38: 72 | P38: Bruno Camargos | Q38: 72 | R38: Bruno Camargos | S38: 72 | T38: Jean Paul | U38: 147 | V38: Jean Paul | W38: 147 | X38: - | Y38: - | Z38: - | AA38: Jean Paul | AB38: 147 | AC38: - | AD38: - | AE38: -
B39: Celso Dantas | C39: 10 | D39: Thiago Azevedo | E39: 19 | F39: Saulo Chagas | G39: 83 | H39: Saulo Chagas | I39: 83 | J39: Felipe Curi | K39: 106 | L39: Celso Dantas | M39: 36 | N39: Celso Dantas | O39: 46 | P39: Celso Dantas | Q39: 67 | R39: Celso Dantas | S39: 87 | T39: Guilherme Camarano | U39: 175 | V39: Guilherme Camarano | W39: 175 | X39: - | Y39: - | Z39: - | AA39: Guilherme Camarano | AB39: 175 | AC39: - | AD39: - | AE39: -
B40: XXXXXX | C40: 0 | D40: XXXXXX | E40: 0 | F40: XXXXXX | G40: 0 | H40: XXXXXX | I40: 0 | J40: XXXXXX | K40: 0 | L40: XXXXXX | M40: 0 | N40: XXXXXX | O40: 0 | P40: XXXXXX | Q40: 0 | R40: XXXXXX | S40: 0 | T40: XXXXXX | U40: 0 | V40: XXXXXX | W40: 0 | X40: - | Y40: - | Z40: - | AA40: XXXXXX | AB40: 0 | AC40: - | AD40: - | AE40: -
A41: 7º | B41: DELCAR | C41: 80 | D41: DELCAR | E41: 159 | F41: GUI FIGUEIREDO | G41: 185 | H41: GUI FIGUEIREDO | I41: 185 | J41: GUI FIGUEIREDO | K41: 278 | L41: RBC | M41: 346 | N41: RBC | O41: 430 | P41: RBC | Q41: 490 | R41: RBC | S41: 566 | T41: RBC | U41: 675 | V41: RBC | W41: 729 | X41: =W$5-W41 -> 301 | Y41: =W$17-W41 -> 226 | Z41: =W35-W41 -> 148 | AA41: RBC | AB41: 784 | AC41: =AB$5-AB41 -> 345 | AD41: =AB$17-AB41 -> 255 | AE41: =AB35-AB41 -> 165
B42: Guilherme Alves | C42: 52 | D42: Guilherme Alves | E42: 88 | F42: Gui Figueiredo | G42: 102 | H42: Gui Figueiredo | I42: 102 | J42: Gui Figueiredo | K42: 150 | L42: Bruno Nosse | M42: 160 | N42: Bruno Nosse | O42: 198 | P42: Bruno Nosse | Q42: 240 | R42: Bruno Nosse | S42: 276 | T42: Bruno Nosse | U42: 328 | V42: Bruno Nosse | W42: 358 | X42: - | Y42: - | Z42: - | AA42: Bruno Nosse | AB42: 390 | AC42: - | AD42: - | AE42: -
B43: Renato Martins | C43: 8 | D43: Renato Martins | E43: 23 | F43: Samuel Farley | G43: 50 | H43: Samuel Farley | I43: 50 | J43: Samuel Farley | K43: 50 | L43: Gustavo Barros | M43: 42 | N43: Gustavo Barros | O43: 42 | P43: Gustavo Barros | Q43: 60 | R43: Gustavo Barros | S43: 60 | T43: Gustavo Barros | U43: 60 | V43: Gustavo Barros | W43: 60 | X43: - | Y43: - | Z43: - | AA43: Gustavo Barros | AB43: 60 | AC43: - | AD43: - | AE43: -
B44: Luiz Azevedo | C44: 20 | D44: Luiz Azevedo | E44: 48 | F44: Bruno Camargos | G44: 16 | H44: Bruno Camargos | I44: 16 | J44: Bruno Camargos | K44: 42 | L44: Luciano Robervine | M44: 25 | N44: Luciano Robervine | O44: 25 | P44: Luciano Robervine | Q44: 25 | R44: Luciano Robervine | S44: 25 | T44: Luciano Robervine | U44: 25 | V44: Luciano Robervine | W44: 25 | X44: - | Y44: - | Z44: - | AA44: Luciano Robervine | AB44: 48 | AC44: - | AD44: - | AE44: -
B45: Robert Freitas | C45: 0 | D45: Robert Freitas | E45: 0 | F45: Celso Dantas | G45: 17 | H45: Celso Dantas | I45: 17 | J45: Celso Dantas | K45: 36 | L45: Felipe Curi | M45: 119 | N45: Felipe Curi | O45: 165 | P45: Felipe Curi | Q45: 165 | R45: Felipe Curi | S45: 205 | T45: Felipe Curi | U45: 262 | V45: Felipe Curi | W45: 286 | X45: - | Y45: - | Z45: - | AA45: Felipe Curi | AB45: 286 | AC45: - | AD45: - | AE45: -
B46: XXXXXX | C46: 0 | D46: XXXXXX | E46: 0 | F46: XXXXXX | G46: 0 | H46: XXXXXX | I46: 0 | J46: XXXXXX | K46: 0 | L46: XXXXXX | M46: 0 | N46: XXXXXX | O46: 0 | P46: XXXXXX | Q46: 0 | R46: XXXXXX | S46: 0 | T46: XXXXXX | U46: 0 | V46: XXXXXX | W46: 0 | X46: - | Y46: - | Z46: - | AA46: XXXXXX | AB46: 0 | AC46: - | AD46: - | AE46: -
A47: 8º | B47: CLEMENTE CAR | C47: 69 | D47: TIRA GRILOS | E47: 158 | F47: TIRA GRILOS | G47: 169 | H47: CLEMENTE CAR | I47: 179 | J47: CLEMENTE CAR | K47: 267 | L47: CLEMENTE CAR | M47: 336 | N47: CLEMENTE CAR | O47: 398 | P47: CLEMENTE CAR | Q47: 450 | R47: CLEMENTE CAR | S47: 514 | T47: CLEMENTE CAR | U47: 584 | V47: CLEMENTE CAR | W47: 638 | X47: =W$5-W47 -> 392 | Y47: =W$17-W47 -> 317 | Z47: =W41-W47 -> 91 | AA47: CLEMENTE CAR | AB47: 709 | AC47: =AB$5-AB47 -> 420 | AD47: =AB$17-AB47 -> 330 | AE47: =AB41-AB47 -> 75
B48: Christian Guedes | C48: 48 | D48: Diego Rodrigues | E48: 90 | F48: Diego Rodrigues | G48: 86 | H48: Christian Guedes | I48: 78 | J48: Christian Guedes | K48: 124 | L48: Christian Guedes | M48: 172 | N48: Christian Guedes | O48: 234 | P48: Christian Guedes | Q48: 266 | R48: Christian Guedes | S48: 312 | T48: Christian Guedes | U48: 362 | V48: Christian Guedes | W48: 394 | X48: - | Y48: - | Z48: - | AA48: Christian Guedes | AB48: 444 | AC48: - | AD48: - | AE48: -
B49: Edmárcio Júnior | C49: 7 | D49: Thiago Santos | E49: 26 | F49: Thiago Santos | G49: 36 | H49: Edmárcio Júnior | I49: 0 | J49: Edmárcio Júnior | K49: 0 | L49: Edmárcio Júnior | M49: 7 | N49: Edmárcio Júnior | O49: 7 | P49: Edmárcio Júnior | Q49: 18 | R49: Edmárcio Júnior | S49: 18 | T49: Edmárcio Júnior | U49: 18 | V49: Edmárcio Júnior | W49: 18 | X49: - | Y49: - | Z49: - | AA49: Edmárcio Júnior | AB49: 18 | AC49: - | AD49: - | AE49: -
B50: Tafarel Henrique | C50: 14 | D50: Aparecido Arantes | E50: 26 | F50: Aparecido Arantes | G50: 47 | H50: Tafarel Henrique | I50: 68 | J50: Tafarel Henrique | K50: 90 | L50: Tafarel Henrique | M50: 104 | N50: Tafarel Henrique | O50: 104 | P50: Tafarel Henrique | Q50: 113 | R50: Tafarel Henrique | S50: 113 | T50: Tafarel Henrique | U50: 113 | V50: Tafarel Henrique | W50: 113 | X50: - | Y50: - | Z50: - | AA50: Tafarel Henrique | AB50: 113 | AC50: - | AD50: - | AE50: -
B51: Thiago Azevedo | C51: 0 | D51: Pedro Avelar | E51: 16 | F51: Pedro Avelar | G51: 0 | H51: Thiago Azevedo | I51: 33 | J51: Thiago Azevedo | K51: 53 | L51: Thiago Azevedo | M51: 53 | N51: Thiago Azevedo | O51: 53 | P51: Thiago Azevedo | Q51: 53 | R51: Thiago Azevedo | S51: 71 | T51: Thiago Azevedo | U51: 91 | V51: Thiago Azevedo | W51: 113 | X51: - | Y51: - | Z51: - | AA51: Thiago Azevedo | AB51: 134 | AC51: - | AD51: - | AE51: -
B52: XXXXXX | C52: 0 | D52: XXXXXX | E52: 0 | F52: XXXXXX | G52: 0 | H52: XXXXXX | I52: 0 | J52: XXXXXX | K52: 0 | L52: XXXXXX | M52: 0 | N52: XXXXXX | O52: 0 | P52: XXXXXX | Q52: 0 | R52: XXXXXX | S52: 0 | T52: XXXXXX | U52: 0 | V52: XXXXXX | W52: 0 | X52: - | Y52: - | Z52: - | AA52: XXXXXX | AB52: 0 | AC52: - | AD52: - | AE52: -
A53: 9º | B53: TIRA GRILOS | C53: 65 | D53: RBC | E53: 146 | F53: CLEMENTE CAR | G53: 162 | H53: TIRA GRILOS | I53: 169 | J53: TIRA GRILOS | K53: 234 | L53: TIRA GRILOS | M53: 299 | N53: TIRA GRILOS | O53: 374 | P53: TIRA GRILOS | Q53: 427 | R53: TIRA GRILOS | S53: 476 | T53: DELCAR | U53: 523 | V53: DELCAR | W53: 597 | X53: =W$5-W53 -> 433 | Y53: =W$17-W53 -> 358 | Z53: =W47-W53 -> 41 | AA53: DELCAR | AB53: 659 | AC53: =AB$5-AB53 -> 470 | AD53: =AB$17-AB53 -> 380 | AE53: =AB47-AB53 -> 50
B54: Diego Rodrigues | C54: 44 | D54: Bruno Nosse | E54: 78 | F54: Christian Guedes | G54: 100 | H54: Diego Rodrigues | I54: 86 | J54: Diego Rodrigues | K54: 130 | L54: Diego Rodrigues | M54: 172 | N54: Diego Rodrigues | O54: 227 | P54: Diego Rodrigues | Q54: 250 | R54: Diego Rodrigues | S54: 286 | T54: Guilherme Alves | U54: 312 | V54: Guilherme Alves | W54: 360 | X54: - | Y54: - | Z54: - | AA54: Guilherme Alves | AB54: 396 | AC54: - | AD54: - | AE54: -
B55: Thiago Santos | C55: 5 | D55: Gustavo Barros | E55: 0 | F55: Edmárcio Júnior | G55: 7 | H55: Thiago Santos | I55: 36 | J55: Thiago Santos | K55: 41 | L55: Thiago Santos | M55: 64 | N55: Thiago Santos | O55: 64 | P55: Thiago Santos | Q55: 64 | R55: Thiago Santos | S55: 77 | T55: Renato Martins | U55: 145 | V55: Renato Martins | W55: 171 | X55: - | Y55: - | Z55: - | AA55: Renato Martins | AB55: 197 | AC55: - | AD55: - | AE55: -
B56: Aparecido Arantes | C56: 0 | D56: Luciano Robervine | E56: 25 | F56: Tafarel Henrique | G56: 36 | H56: Aparecido Arantes | I56: 47 | J56: Aparecido Arantes | K56: 47 | L56: Aparecido Arantes | M56: 47 | N56: Aparecido Arantes | O56: 67 | P56: Aparecido Arantes | Q56: 97 | R56: Aparecido Arantes | S56: 97 | T56: Luiz Azevedo | U56: 66 | V56: Luiz Azevedo | W56: 66 | X56: - | Y56: - | Z56: - | AA56: Luiz Azevedo | AB56: 66 | AC56: - | AD56: - | AE56: -
B57: Pedro Avelar | C57: 16 | D57: Felipe Curi | E57: 43 | F57: Thiago Azevedo | G57: 19 | H57: Pedro Avelar | I57: 0 | J57: Pedro Avelar | K57: 16 | L57: Pedro Avelar | M57: 16 | N57: Pedro Avelar | O57: 16 | P57: Pedro Avelar | Q57: 16 | R57: Pedro Avelar | S57: 16 | T57: Robert Freitas | U57: 0 | V57: Robert Freitas | W57: 0 | X57: - | Y57: - | Z57: - | AA57: Robert Freitas | AB57: 0 | AC57: - | AD57: - | AE57: -
B58: XXXXXX | C58: 0 | D58: XXXXXX | E58: 0 | F58: XXXXXX | G58: 0 | H58: XXXXXX | I58: 0 | J58: XXXXXX | K58: 0 | L58: XXXXXX | M58: 0 | N58: XXXXXX | O58: 0 | P58: XXXXXX | Q58: 0 | R58: XXXXXX | S58: 0 | T58: XXXXXX | U58: 0 | V58: XXXXXX | W58: 0 | X58: - | Y58: - | Z58: - | AA58: XXXXXX | AB58: 0 | AC58: - | AD58: - | AE58: -
A59: 10º | B59: RBC | C59: 62 | D59: AST ESTRUTURAS | E59: 119 | F59: DELCAR | G59: 159 | H59: DELCAR | I59: 159 | J59: DELCAR | K59: 232 | L59: DELCAR | M59: 292 | N59: DELCAR | O59: 350 | P59: DELCAR | Q59: 403 | R59: DELCAR | S59: 466 | T59: TIRA GRILOS | U59: 506 | V59: TIRA GRILOS | W59: 565 | X59: =W$5-W59 -> 465 | Y59: =W$17-W59 -> 390 | Z59: =W53-W59 -> 32 | AA59: TIRA GRILOS | AB59: 617 | AC59: =AB$5-AB59 -> 512 | AD59: =AB$17-AB59 -> 422 | AE59: =AB53-AB59 -> 42
B60: Bruno Nosse | C60: 38 | D60: Anderson Teixeira | E60: 48 | F60: Guilherme Alves | G60: 88 | H60: Guilherme Alves | I60: 88 | J60: Guilherme Alves | K60: 130 | L60: Guilherme Alves | M60: 158 | N60: Guilherme Alves | O60: 192 | P60: Guilherme Alves | Q60: 228 | R60: Guilherme Alves | S60: 270 | T60: Diego Rodrigues | U60: 316 | V60: Diego Rodrigues | W60: 337 | X60: - | Y60: - | Z60: - | AA60: Diego Rodrigues | AB60: 389 | AC60: - | AD60: - | AE60: -
B61: Gustavo Barros | C61: 0 | D61: Frederico Papatella | E61: 0 | F61: Renato Martins | G61: 23 | H61: Renato Martins | I61: 23 | J61: Renato Martins | K61: 36 | L61: Renato Martins | M61: 68 | N61: Renato Martins | O61: 92 | P61: Renato Martins | Q61: 109 | R61: Renato Martins | S61: 130 | T61: Thiago Santos | U61: 77 | V61: Thiago Santos | W61: 77 | X61: - | Y61: - | Z61: - | AA61: Thiago Santos | AB61: 77 | AC61: - | AD61: - | AE61: -
B62: Luciano Robervine | C62: 11 | D62: Carlos Gomes | E62: 0 | F62: Luiz Azevedo | G62: 48 | H62: Luiz Azevedo | I62: 48 | J62: Luiz Azevedo | K62: 66 | L62: Luiz Azevedo | M62: 66 | N62: Luiz Azevedo | O62: 66 | P62: Luiz Azevedo | Q62: 66 | R62: Luiz Azevedo | S62: 66 | T62: Aparecido Arantes | U62: 97 | V62: Aparecido Arantes | W62: 135 | X62: - | Y62: - | Z62: - | AA62: Aparecido Arantes | AB62: 135 | AC62: - | AD62: - | AE62: -
B63: Felipe Curi | C63: 13 | D63: Rafael Miranda | E63: 25 | F63: Robert Freitas | G63: 0 | H63: Robert Freitas | I63: 0 | J63: Robert Freitas | K63: 0 | L63: Robert Freitas | M63: 0 | N63: Robert Freitas | O63: 0 | P63: Robert Freitas | Q63: 0 | R63: Robert Freitas | S63: 0 | T63: Pedro Avelar | U63: 16 | V63: Pedro Avelar | W63: 16 | X63: - | Y63: - | Z63: - | AA63: Pedro Avelar | AB63: 16 | AC63: - | AD63: - | AE63: -
B64: XXXXXX | C64: 0 | D64: Marcus Silva | E64: 46 | F64: XXXXXX | G64: 0 | H64: XXXXXX | I64: 0 | J64: XXXXXX | K64: 0 | L64: XXXXXX | M64: 0 | N64: XXXXXX | O64: 0 | P64: XXXXXX | Q64: 0 | R64: XXXXXX | S64: 0 | T64: XXXXXX | U64: 0 | V64: XXXXXX | W64: 0 | X64: - | Y64: - | Z64: - | AA64: XXXXXX | AB64: 0 | AC64: - | AD64: - | AE64: -
A65: 11º | B65: LQN | C65: 53 | D65: LQN | E65: 80 | F65: LQN | G65: 80 | H65: LQN | I65: 101 | J65: LQN | K65: 128 | L65: LQN | M65: 163 | N65: LQN | O65: 193 | P65: LQN | Q65: 218 | R65: LQN | S65: 260 | T65: LQN | U65: 295 | V65: LQN | W65: 318 | X65: =W$5-W65 -> 712 | Y65: =W$17-W65 -> 637 | Z65: =W59-W65 -> 247 | AA65: LQN | AB65: 360 | AC65: =AB$5-AB65 -> 769 | AD65: =AB$17-AB65 -> 679 | AE65: =AB59-AB65 -> 257
B66: Pedro Fialho | C66: 50 | D66: Pedro Fialho | E66: 50 | F66: Pedro Fialho | G66: 50 | H66: Pedro Fialho | I66: 50 | J66: Pedro Fialho | K66: 50 | L66: Pedro Fialho | M66: 50 | N66: Pedro Fialho | O66: 50 | P66: Pedro Fialho | Q66: 50 | R66: Pedro Fialho | S66: 50 | T66: Pedro Fialho | U66: 50 | V66: Pedro Fialho | W66: 50 | X66: - | Y66: - | Z66: - | AA66: Pedro Fialho | AB66: 50 | AC66: - | AD66: - | AE66: -
B67: Henry Douglas | C67: 0 | D67: Henry Douglas | E67: 13 | F67: Henry Douglas | G67: 13 | H67: Henry Douglas | I67: 48 | J67: Henry Douglas | K67: 61 | L67: Henry Douglas | M67: 82 | N67: Henry Douglas | O67: 96 | P67: Henry Douglas | Q67: 115 | R67: Henry Douglas | S67: 138 | T67: Henry Douglas | U67: 157 | V67: Henry Douglas | W67: 175 | X67: - | Y67: - | Z67: - | AA67: Henry Douglas | AB67: 197 | AC67: - | AD67: - | AE67: -
B68: Márcio Tadeu | C68: 0 | D68: Márcio Tadeu | E68: 6 | F68: Márcio Tadeu | G68: 6 | H68: Márcio Tadeu | I68: 0 | J68: Márcio Tadeu | K68: 6 | L68: Márcio Tadeu | M68: 6 | N68: Márcio Tadeu | O68: 6 | P68: Márcio Tadeu | Q68: 6 | R68: Márcio Tadeu | S68: 6 | T68: Márcio Tadeu | U68: 6 | V68: Márcio Tadeu | W68: 6 | X68: - | Y68: - | Z68: - | AA68: Márcio Tadeu | AB68: 6 | AC68: - | AD68: - | AE68: -
B69: Levindo Neto | C69: 3 | D69: Levindo Neto | E69: 11 | F69: Levindo Neto | G69: 11 | H69: Levindo Neto | I69: 3 | J69: Levindo Neto | K69: 11 | L69: Levindo Neto | M69: 25 | N69: Levindo Neto | O69: 41 | P69: Levindo Neto | Q69: 47 | R69: Levindo Neto | S69: 66 | T69: Levindo Neto | U69: 82 | V69: Levindo Neto | W69: 87 | X69: - | Y69: - | Z69: - | AA69: Levindo Neto | AB69: 107 | AC69: - | AD69: - | AE69: -
B70: XXXXXX | C70: 0 | D70: XXXXXX | E70: 0 | F70: XXXXXX | G70: 0 | H70: XXXXXX | I70: 0 | J70: XXXXXX | K70: 0 | L70: XXXXXX | M70: 0 | N70: XXXXXX | O70: 0 | P70: XXXXXX | Q70: 0 | R70: XXXXXX | S70: 0 | T70: XXXXXX | U70: 0 | V70: XXXXXX | W70: 0 | X70: - | Y70: - | Z70: - | AA70: XXXXXX | AB70: 0 | AC70: - | AD70: - | AE70: -

Sheet TABELA
A1: 2021 | E1: OK | I1: OK | M1: OK | Q1: OK | U1: OK | Y1: OK | AC1: OK | AG1: OK | AK1: OK | AO1: OK | AS1: OK | AW1: OK
D2: 1ª etapa | H2: 2ª etapa | L2: 3ª etapa | P2: 4ª etapa | T2: 5ª etapa | X2: 6ª etapa | AB2: 7ª etapa | AF2: 8ª etapa | AJ2: 9ª etapa | AN2: 10ª etapa | AR2: 11ª etapa | AV2: 12ª etapa
B4: Nome do (a) Piloto (a) | C4: Pontuação Geral | D4: Posição | E4: Pontos | F4: Bônus | G4: Penalidade | H4: Posição | I4: Pontos | J4: Bônus | K4: Penalidade | L4: Posição | M4: Pontos | N4: Bônus | O4: Penalidade | P4: Posição | Q4: Pontos | R4: Bônus | S4: Penalidade | T4: Posição | U4: Pontos | V4: Bônus | W4: Penalidade | X4: Posição | Y4: Pontos | Z4: Bônus | AA4: Penalidade | AB4: Posição | AC4: Pontos | AD4: Bônus | AE4: Penalidade | AF4: Posição | AG4: Pontos | AH4: Bônus | AI4: Penalidade | AJ4: Posição | AK4: Pontos | AL4: Bônus | AM4: Penalidade | AN4: Posição | AO4: Pontos | AP4: Bônus | AQ4: Penalidade | AR4: Posição | AS4: Pontos | AT4: Bônus | AU4: Penalidade | AV4: Posição | AW4: Pontos | AX4: Bônus | AY4: Penalidade | AZ4: 1º LUGAR | BA4: 2º LUGAR | BB4: 3º LUGAR | BC4: 4º LUGAR | BD4: 5º LUGAR | BE4: 6º LUGAR | BF4: 7º LUGAR | BG4: 8º LUGAR | BH4: 9º LUGAR | BI4: 10º LUGAR | BJ4: 11º LUGAR | BK4: 12º LUGAR | BL4: 13º LUGAR | BM4: 14º LUGAR | BN4: 15º LUGAR | BO4: 16º LUGAR | BP4: 17º LUGAR | BQ4: 18º LUGAR | BR4: 19º LUGAR | BS4: 20º LUGAR | BT4: 21º LUGAR | BU4: 22º LUGAR | BV4: 23º LUGAR | BW4: 24º LUGAR | BX4: 25º LUGAR | BY4: 26º LUGAR | BZ4: 27º LUGAR | CA4: 28º LUGAR | CB4: 29º LUGAR | CC4: 30º LUGAR | CD4: 31º LUGAR | CE4: 32º LUGAR | CF4: 33º LUGAR | CG4: 34º LUGAR | CH4: 35º LUGAR | CI4: 36º LUGAR | CJ4: 37º LUGAR | CK4: 38º LUGAR | CL4: 39º LUGAR | CM4: 40º LUGAR | CN4: 41º LUGAR
A5: 1 | B5: Alan Moreira | C5: 101 | D5: 26 | E5: 15 | H5: 32 | I5: 9 | L5: 16 | M5: 26 | P5: 26 | Q5: 15 | U5: 0 | W5: -10 | X5: 10 | Y5: 38 | AC5: 0 | AE5: -10 | AF5: 16 | AG5: 26 | AJ5: 19 | AK5: 22 | AO5: 0 | AQ5: -10 | AS5: 0 | AU5: -10 | AW5: 0 | AY5: -10 | AZ5: 0 | BA5: 0 | BB5: 0 | BC5: 0 | BD5: 0 | BE5: 0 | BF5: 0 | BG5: 0 | BH5: 0 | BI5: 1 | BJ5: 0 | BK5: 0 | BL5: 0 | BM5: 0 | BN5: 0 | BO5: 2 | BP5: 0 | BQ5: 0 | BR5: 1 | BS5: 0 | BT5: 0 | BU5: 0 | BV5: 0 | BW5: 0 | BX5: 0 | BY5: 2 | BZ5: 0 | CA5: 0 | CB5: 0 | CC5: 0 | CD5: 0 | CE5: 1 | CF5: 0 | CG5: 0 | CH5: 0 | CI5: 0 | CJ5: 0 | CK5: 0 | CL5: 0 | CM5: 0 | CN5: 0
A6: 2 | B6: Alexandre Melillo | C6: 411 | D6: 15 | E6: 28 | H6: 2 | I6: 55 | L6: 7 | M6: 44 | P6: 17 | Q6: 24 | T6: 10 | U6: 38 | X6: 17 | Y6: 24 | AB6: 3 | AC6: 52 | AF6: 21 | AG6: 20 | AJ6: 14 | AK6: 30 | AN6: 17 | AO6: 24 | AR6: 7 | AS6: 44 | AV6: 15 | AW6: 28 | AZ6: 0 | BA6: 1 | BB6: 1 | BC6: 0 | BD6: 0 | BE6: 0 | BF6: 2 | BG6: 0 | BH6: 0 | BI6: 1 | BJ6: 0 | BK6: 0 | BL6: 0 | BM6: 1 | BN6: 2 | BO6: 0 | BP6: 3 | BQ6: 0 | BR6: 0 | BS6: 0 | BT6: 1 | BU6: 0 | BV6: 0 | BW6: 0 | BX6: 0 | BY6: 0 | BZ6: 0 | CA6: 0 | CB6: 0 | CC6: 0 | CD6: 0 | CE6: 0 | CF6: 0 | CG6: 0 | CH6: 0 | CI6: 0 | CJ6: 0 | CK6: 0 | CL6: 0 | CM6: 0 | CN6: 0
A7: 3 | B7: Anderson Teixeira | C7: 400 | D7: 17 | E7: 24 | H7: 17 | I7: 24 | L7: 1 | M7: 60 | N7: 2 | P7: 13 | Q7: 32 | T7: 1 | U7: 60 | V7: 2 | X7: 7 | Y7: 44 | AB7: 13 | AC7: 32 | AF7: 25 | AG7: 16 | AK7: 0 | AN7: 16 | AO7: 26 | AR7: 12 | AS7: 34 | AV7: 7 | AW7: 44 | AZ7: 2 | BA7: 0 | BB7: 0 | BC7: 0 | BD7: 0 | BE7: 0 | BF7: 2 | BG7: 0 | BH7: 0 | BI7: 0 | BJ7: 0 | BK7: 1 | BL7: 2 | BM7: 0 | BN7: 0 | BO7: 1 | BP7: 2 | BQ7: 0 | BR7: 0 | BS7: 0 | BT7: 0 | BU7: 0 | BV7: 0 | BW7: 0 | BX7: 1 | BY7: 0 | BZ7: 0 | CA7: 0 | CB7: 0 | CC7: 0 | CD7: 0 | CE7: 0 | CF7: 0 | CG7: 0 | CH7: 0 | CI7: 0 | CJ7: 0 | CK7: 0 | CL7: 0 | CM7: 0 | CN7: 0
A8: 4 | B8: Aparecido Arantes | C8: 135 | E8: 0 | H8: 16 | I8: 26 | L8: 20 | M8: 21 | Q8: 0 | U8: 0 | Y8: 0 | AB8: 21 | AC8: 20 | AF8: 14 | AG8: 30 | AK8: 0 | AO8: 0 | AR8: 10 | AS8: 38 | AW8: 0 | AZ8: 0 | BA8: 0 | BB8: 0 | BC8: 0 | BD8: 0 | BE8: 0 | BF8: 0 | BG8: 0 | BH8: 0 | BI8: 1 | BJ8: 0 | BK8: 0 | BL8: 0 | BM8: 1 | BN8: 0 | BO8: 1 | BP8: 0 | BQ8: 0 | BR8: 0 | BS8: 1 | BT8: 1 | BU8: 0 | BV8: 0 | BW8: 0 | BX8: 0 | BY8: 0 | BZ8: 0 | CA8: 0 | CB8: 0 | CC8: 0 | CD8: 0 | CE8: 0 | CF8: 0 | CG8: 0 | CH8: 0 | CI8: 0 | CJ8: 0 | CK8: 0 | CL8: 0 | CM8: 0 | CN8: 0
A9: 5 | B9: Bruno Camargos | C9: 111 | D9: 32 | E9: 9 | H9: 31 | I9: 10 | K9: SIM | L9: 25 | M9: 16 | P9: 32 | Q9: 9 | T9: 16 | U9: 26 | W9: -10 | X9: 14 | Y9: 30 | AB9: 22 | AC9: 19 | AG9: 0 | AI9: -10 | AK9: 0 | AM9: -10 | AN9: 13 | AO9: 32 | AS9: 0 | AW9: 0 | AY9: -10 | AZ9: 0 | BA9: 0 | BB9: 0 | BC9: 0 | BD9: 0 | BE9: 0 | BF9: 0 | BG9: 0 | BH9: 0 | BI9: 0 | BJ9: 0 | BK9: 0 | BL9: 1 | BM9: 1 | BN9: 0 | BO9: 1 | BP9: 0 | BQ9: 0 | BR9: 0 | BS9: 0 | BT9: 0 | BU9: 1 | BV9: 0 | BW9: 0 | BX9: 1 | BY9: 0 | BZ9: 0 | CA9: 0 | CB9: 0 | CC9: 0 | CD9: 1 | CE9: 2 | CF9: 0 | CG9: 0 | CH9: 0 | CI9: 0 | CJ9: 0 | CK9: 0 | CL9: 0 | CM9: 0 | CN9: 0
A10: 6 | B10: Bruno Nosse | C10: 430 | D10: 10 | E10: 38 | H10: 9 | I10: 40 | L10: 5 | M10: 48 | P10: 12 | Q10: 34 | T10: 14 | U10: 30 | X10: 24 | Y10: 17 | AB10: 10 | AC10: 38 | AF10: 8 | AG10: 42 | AJ10: 11 | AK10: 36 | AN10: 3 | AO10: 52 | AR10: 18 | AS10: 23 | AV10: 13 | AW10: 32 | AZ10: 0 | BA10: 0 | BB10: 1 | BC10: 0 | BD10: 1 | BE10: 0 | BF10: 0 | BG10: 1 | BH10: 1 | BI10: 2 | BJ10: 1 | BK10: 1 | BL10: 1 | BM10: 1 | BN10: 0 | BO10: 0 | BP10: 0 | BQ10: 1 | BR10: 0 | BS10: 0 | BT10: 0 | BU10: 0 | BV10: 0 | BW10: 1 | BX10: 0 | BY10: 0 | BZ10: 0 | CA10: 0 | CB10: 0 | CC10: 0 | CD10: 0 | CE10: 0 | CF10: 0 | CG10: 0 | CH10: 0 | CI10: 0 | CJ10: 0 | CK10: 0 | CL10: 0 | CM10: 0 | CN10: 0
A11: 7 | B11: Celso Dantas | C11: 178 | D11: 31 | E11: 10 | H11: 24 | I11: 17 | L11: 35 | M11: 6 | P11: 30 | Q11: 11 | T11: 22 | U11: 19 | X11: 25 | Y11: 16 | AB11: 24 | AC11: 17 | AF11: 20 | AG11: 21 | AI11: -10 | AJ11: 21 | AK11: 20 | AM11: -10 | AN11: 20 | AO11: 21 | AR11: 25 | AS11: 16 | AV11: 17 | AW11: 24 | AZ11: 0 | BA11: 0 | BB11: 0 | BC11: 0 | BD11: 0 | BE11: 0 | BF11: 0 | BG11: 0 | BH11: 0 | BI11: 0 | BJ11: 0 | BK11: 0 | BL11: 0 | BM11: 0 | BN11: 0 | BO11: 0 | BP11: 1 | BQ11: 0 | BR11: 0 | BS11: 2 | BT11: 1 | BU11: 1 | BV11: 0 | BW11: 2 | BX11: 2 | BY11: 0 | BZ11: 0 | CA11: 0 | CB11: 0 | CC11: 1 | CD11: 1 | CE11: 0 | CF11: 0 | CG11: 0 | CH11: 1 | CI11: 0 | CJ11: 0 | CK11: 0 | CL11: 0 | CM11: 0 | CN11: 0
A12: 8 | B12: Carlos Gomes | C12: 0 | E12: 0 | I12: 0 | M12: 0 | Q12: 0 | U12: 0 | W12: -10 | Y12: 0 | AC12: 0 | AG12: 0 | AK12: 0 | AO12: 0 | AS12: 0 | AW12: 0 | AZ12: 0 | BA12: 0 | BB12: 0 | BC12: 0 | BD12: 0 | BE12: 0 | BF12: 0 | BG12: 0 | BH12: 0 | BI12: 0 | BJ12: 0 | BK12: 0 | BL12: 0 | BM12: 0 | BN12: 0 | BO12: 0 | BP12: 0 | BQ12: 0 | BR12: 0 | BS12: 0 | BT12: 0 | BU12: 0 | BV12: 0 | BW12: 0 | BX12: 0 | BY12: 0 | BZ12: 0 | CA12: 0 | CB12: 0 | CC12: 0 | CD12: 0 | CE12: 0 | CF12: 0 | CG12: 0 | CH12: 0 | CI12: 0 | CJ12: 0 | CK12: 0 | CL12: 0 | CM12: 0 | CN12: 0
A13: 9 | B13: Christian Guedes | C13: 514 | D13: 5 | E13: 48 | H13: 4 | I13: 50 | J13: 2 | L13: 13 | M13: 32 | P13: 16 | Q13: 26 | T13: 6 | U13: 46 | X13: 13 | Y13: 32 | AB13: 1 | AC13: 60 | AD13: 2 | AF13: 10 | AG13: 38 | AJ13: 6 | AK13: 46 | AN13: 4 | AO13: 50 | AR13: 13 | AS13: 32 | AV13: 4 | AW13: 50 | AZ13: 1 | BA13: 0 | BB13: 0 | BC13: 3 | BD13: 1 | BE13: 2 | BF13: 0 | BG13: 0 | BH13: 0 | BI13: 1 | BJ13: 0 | BK13: 0 | BL13: 3 | BM13: 0 | BN13: 0 | BO13: 1 | BP13: 0 | BQ13: 0 | BR13: 0 | BS13: 0 | BT13: 0 | BU13: 0 | BV13: 0 | BW13: 0 | BX13: 0 | BY13: 0 | BZ13: 0 | CA13: 0 | CB13: 0 | CC13: 0 | CD13: 0 | CE13: 0 | CF13: 0 | CG13: 0 | CH13: 0 | CI13: 0 | CJ13: 0 | CK13: 0 | CL13: 0 | CM13: 0 | CN13: 0
A14: 10 | B14: Diego Rodrigues | C14: 389 | D14: 7 | E14: 44 | H14: 6 | I14: 46 | L14: 9 | M14: 40 | Q14: 0 | T14: 8 | U14: 42 | X14: 11 | Y14: 36 | AB14: 2 | AC14: 55 | AF14: 18 | AG14: 23 | AK14: 0 | AN14: 14 | AO14: 30 | AR14: 20 | AS14: 21 | AV14: 3 | AW14: 52 | AZ14: 0 | BA14: 1 | BB14: 1 | BC14: 0 | BD14: 0 | BE14: 1 | BF14: 1 | BG14: 1 | BH14: 1 | BI14: 0 | BJ14: 1 | BK14: 0 | BL14: 0 | BM14: 1 | BN14: 0 | BO14: 0 | BP14: 0 | BQ14: 1 | BR14: 0 | BS14: 1 | BT14: 0 | BU14: 0 | BV14: 0 | BW14: 0 | BX14: 0 | BY14: 0 | BZ14: 0 | CA14: 0 | CB14: 0 | CC14: 0 | CD14: 0 | CE14: 0 | CF14: 0 | CG14: 0 | CH14: 0 | CI14: 0 | CJ14: 0 | CK14: 0 | CL14: 0 | CM14: 0 | CN14: 0
A15: 11 | B15: Edmárcio Júnior | C15: 0 | D15: 34 | E15: 7 | G15: SIM | H15: 30 | I15: 11 | L15: 30 | M15: 11 | Q15: 0 | U15: 0 | Y15: 0 | AC15: 0 | AE15: -10 | AG15: 0 | AK15: 0 | AM15: -10 | AO15: 0 | AQ15: -10 | AS15: 0 | AU15: -10 | AW15: 0 | AY15: -10 | AZ15: 0 | BA15: 0 | BB15: 0 | BC15: 0 | BD15: 0 | BE15: 0 | BF15: 0 | BG15: 0 | BH15: 0 | BI15: 0 | BJ15: 0 | BK15: 0 | BL15: 0 | BM15: 0 | BN15: 0 | BO15: 0 | BP15: 0 | BQ15: 0 | BR15: 0 | BS15: 0 | BT15: 0 | BU15: 0 | BV15: 0 | BW15: 0 | BX15: 0 | BY15: 0 | BZ15: 0 | CA15: 0 | CB15: 0 | CC15: 2 | CD15: 0 | CE15: 0 | CF15: 0 | CG15: 1 | CH15: 0 | CI15: 0 | CJ15: 0 | CK15: 0 | CL15: 0 | CM15: 0 | CN15: 0
A16: 12 | B16: Felipe Curi | C16: 226 | D16: 28 | E16: 13 | H16: 14 | I16: 30 | L16: 6 | M16: 46 | P16: 14 | Q16: 30 | T16: 17 | U16: 24 | W16: SIM | Y16: 0 | AA16: -10 | AB16: 6 | AC16: 46 | AE16: -10 | AG16: 0 | AI16: -10 | AJ16: 9 | AK16: 40 | AN16: 2 | AO16: 55 | AP16: 2 | AQ16: -10 | AS16: 0 | AU16: -10 | AW16: 0 | AY16: -10 | AZ16: 0 | BA16: 1 | BB16: 0 | BC16: 0 | BD16: 0 | BE16: 2 | BF16: 0 | BG16: 0 | BH16: 1 | BI16: 0 | BJ16: 0 | BK16: 0 | BL16: 0 | BM16: 2 | BN16: 0 | BO16: 0 | BP16: 1 | BQ16: 0 | BR16: 0 | BS16: 0 | BT16: 0 | BU16: 0 | BV16: 0 | BW16: 0 | BX16: 0 | BY16: 0 | BZ16: 0 | CA16: 1 | CB16: 0 | CC16: 0 | CD16: 0 | CE16: 0 | CF16: 0 | CG16: 0 | CH16: 0 | CI16: 0 | CJ16: 0 | CK16: 0 | CL16: 0 | CM16: 0 | CN16: 0
A17: 13 | B17: Fernando Mota | C17: 253 | D17: 11 | E17: 36 | I17: 0 | M17: 0 | O17: -10 | Q17: 0 | S17: -10 | T17: 26 | U17: 15 | X17: 1 | Y17: 60 | Z17: 2 | AB17: 9 | AC17: 40 | AG17: 0 | AI17: -10 | AK17: 0 | AM17: -10 | AN17: 5 | AO17: 48 | AR17: 1 | AS17: 60 | AV17: 8 | AW17: 42 | AY17: -10 | AZ17: 2 | BA17: 0 | BB17: 0 | BC17: 0 | BD17: 1 | BE17: 0 | BF17: 0 | BG17: 1 | BH17: 1 | BI17: 0 | BJ17: 1 | BK17: 0 | BL17: 0 | BM17: 0 | BN17: 0 | BO17: 0 | BP17: 0 | BQ17: 0 | BR17: 0 | BS17: 0 | BT17: 0 | BU17: 0 | BV17: 0 | BW17: 0 | BX17: 0 | BY17: 1 | BZ17: 0 | CA17: 0 | CB17: 0 | CC17: 0 | CD17: 0 | CE17: 0 | CF17: 0 | CG17: 0 | CH17: 0 | CI17: 0 | CJ17: 0 | CK17: 0 | CL17: 0 | CM17: 0 | CN17: 0
A18: 14 | B18: Frederico Papatella | C18: 272 | D18: 24 | E18: 17 | I18: 0 | L18: 29 | M18: 12 | P18: 11 | Q18: 36 | T18: 9 | U18: 40 | X18: 21 | Y18: 20 | AB18: 23 | AC18: 18 | AF18: 7 | AG18: 44 | AJ18: 10 | AK18: 38 | AN18: 9 | AO18: 40 | AR18: 24 | AS18: 17 | AU18: SIM | AW18: 0 | AY18: -10 | AZ18: 0 | BA18: 0 | BB18: 0 | BC18: 0 | BD18: 0 | BE18: 0 | BF18: 1 | BG18: 0 | BH18: 2 | BI18: 1 | BJ18: 1 | BK18: 0 | BL18: 0 | BM18: 0 | BN18: 0 | BO18: 0 | BP18: 0 | BQ18: 0 | BR18: 0 | BS18: 0 | BT18: 1 | BU18: 0 | BV18: 1 | BW18: 2 | BX18: 0 | BY18: 0 | BZ18: 0 | CA18: 0 | CB18: 1 | CC18: 0 | CD18: 0 | CE18: 0 | CF18: 0 | CG18: 0 | CH18: 0 | CI18: 0 | CJ18: 0 | CK18: 0 | CL18: 0 | CM18: 0 | CN18: 0
A19: 15 | B19: Gui Figueiredo | C19: 523 | D19: 9 | E19: 40 | H19: 1 | I19: 60 | L19: 8 | M19: 42 | P19: 33 | Q19: 8 | T19: 5 | U19: 48 | X19: 3 | Y19: 52 | AB19: 14 | AC19: 30 | AF19: 3 | AG19: 52 | AJ19: 2 | AK19: 55 | AL19: 2 | AN19: 6 | AO19: 46 | AR19: 8 | AS19: 42 | AV19: 6 | AW19: 46 | AZ19: 1 | BA19: 1 | BB19: 2 | BC19: 0 | BD19: 1 | BE19: 2 | BF19: 0 | BG19: 2 | BH19: 1 | BI19: 0 | BJ19: 0 | BK19: 0 | BL19: 0 | BM19: 1 | BN19: 0 | BO19: 0 | BP19: 0 | BQ19: 0 | BR19: 0 | BS19: 0 | BT19: 0 | BU19: 0 | BV19: 0 | BW19: 0 | BX19: 0 | BY19: 0 | BZ19: 0 | CA19: 0 | CB19: 0 | CC19: 0 | CD19: 0 | CE19: 0 | CF19: 1 | CG19: 0 | CH19: 0 | CI19: 0 | CJ19: 0 | CK19: 0 | CL19: 0 | CM19: 0 | CN19: 0
A20: 16 | B20: Guilherme Alves | C20: 441 | D20: 3 | E20: 52 | H20: 11 | I20: 36 | L20: 24 | M20: 17 | P20: 8 | Q20: 42 | T20: 15 | U20: 28 | X20: 15 | Y20: 28 | AB20: 12 | AC20: 34 | AF20: 11 | AG20: 36 | AJ20: 8 | AK20: 42 | AN20: 8 | AO20: 42 | AR20: 5 | AS20: 48 | AV20: 11 | AW20: 36 | AZ20: 0 | BA20: 0 | BB20: 1 | BC20: 0 | BD20: 1 | BE20: 0 | BF20: 0 | BG20: 3 | BH20: 0 | BI20: 0 | BJ20: 3 | BK20: 1 | BL20: 0 | BM20: 0 | BN20: 2 | BO20: 0 | BP20: 0 | BQ20: 0 | BR20: 0 | BS20: 0 | BT20: 0 | BU20: 0 | BV20: 0 | BW20: 1 | BX20: 0 | BY20: 0 | BZ20: 0 | CA20: 0 | CB20: 0 | CC20: 0 | CD20: 0 | CE20: 0 | CF20: 0 | CG20: 0 | CH20: 0 | CI20: 0 | CJ20: 0 | CK20: 0 | CL20: 0 | CM20: 0 | CN20: 0
A21: 17 | B21: Guilherme Camarano | C21: 153 | D21: 37 | E21: 4 | H21: 8 | I21: 42 | L21: 37 | M21: 4 | P21: 22 | Q21: 19 | S21: SIM | U21: 0 | Y21: 0 | AA21: -10 | AB21: 16 | AC21: 26 | AF21: 1 | AG21: 60 | AJ21: 26 | AK21: 15 | AN21: 28 | AO21: 13 | AS21: 0 | AU21: -10 | AW21: 0 | AY21: -10 | AZ21: 1 | BA21: 0 | BB21: 0 | BC21: 0 | BD21: 0 | BE21: 0 | BF21: 0 | BG21: 1 | BH21: 0 | BI21: 0 | BJ21: 0 | BK21: 0 | BL21: 0 | BM21: 0 | BN21: 0 | BO21: 1 | BP21: 0 | BQ21: 0 | BR21: 0 | BS21: 0 | BT21: 0 | BU21: 1 | BV21: 0 | BW21: 0 | BX21: 0 | BY21: 1 | BZ21: 0 | CA21: 1 | CB21: 0 | CC21: 0 | CD21: 0 | CE21: 0 | CF21: 0 | CG21: 0 | CH21: 0 | CI21: 0 | CJ21: 2 | CK21: 0 | CL21: 0 | CM21: 0 | CN21: 0
A22: 18 | B22: Gustavo Barros | C22: 54 | D22: 39 | E22: 2 | I22: 0 | L22: 14 | M22: 30 | P22: 29 | Q22: 12 | S22: SIM | U22: 0 | X22: 29 | Y22: 12 | AC22: 0 | AF22: 23 | AG22: 18 | AK22: 0 | AO22: 0 | AQ22: -10 | AS22: 0 | AW22: 0 | AY22: -10 | AZ22: 0 | BA22: 0 | BB22: 0 | BC22: 0 | BD22: 0 | BE22: 0 | BF22: 0 | BG22: 0 | BH22: 0 | BI22: 0 | BJ22: 0 | BK22: 0 | BL22: 0 | BM22: 1 | BN22: 0 | BO22: 0 | BP22: 0 | BQ22: 0 | BR22: 0 | BS22: 0 | BT22: 0 | BU22: 0 | BV22: 1 | BW22: 0 | BX22: 0 | BY22: 0 | BZ22: 0 | CA22: 0 | CB22: 2 | CC22: 0 | CD22: 0 | CE22: 0 | CF22: 0 | CG22: 0 | CH22: 0 | CI22: 0 | CJ22: 0 | CK22: 0 | CL22: 1 | CM22: 0 | CN22: 0
A23: 19 | B23: Henry Douglas | C23: 177 | E23: 0 | G23: -10 | H23: 28 | I23: 13 | L23: 23 | M23: 18 | P23: 5 | Q23: 48 | U23: 0 | W23: -10 | X23: 20 | Y23: 21 | AB23: 27 | AC23: 14 | AF23: 22 | AG23: 19 | AJ23: 18 | AK23: 23 | AN23: 22 | AO23: 19 | AS23: 0 | AV23: 19 | AW23: 22 | AZ23: 0 | BA23: 0 | BB23: 0 | BC23: 0 | BD23: 1 | BE23: 0 | BF23: 0 | BG23: 0 | BH23: 0 | BI23: 0 | BJ23: 0 | BK23: 0 | BL23: 0 | BM23: 0 | BN23: 0 | BO23: 0 | BP23: 0 | BQ23: 1 | BR23: 1 | BS23: 1 | BT23: 0 | BU23: 2 | BV23: 1 | BW23: 0 | BX23: 0 | BY23: 0 | BZ23: 1 | CA23: 1 | CB23: 0 | CC23: 0 | CD23: 0 | CE23: 0 | CF23: 0 | CG23: 0 | CH23: 0 | CI23: 0 | CJ23: 0 | CK23: 0 | CL23: 0 | CM23: 0 | CN23: 0
A24: 20 | B24: Jarbas Reis | C24: 326 | D24: 19 | E24: 22 | H24: 7 | I24: 44 | L24: 12 | M24: 34 | P24: 31 | Q24: 10 | T24: 12 | U24: 34 | X24: 8 | Y24: 42 | AB24: 11 | AC24: 36 | AF24: 27 | AG24: 14 | AJ24: 16 | AK24: 26 | AN24: 12 | AO24: 34 | AR24: 14 | AS24: 30 | AW24: 0 | AZ24: 0 | BA24: 0 | BB24: 0 | BC24: 0 | BD24: 0 | BE24: 0 | BF24: 1 | BG24: 1 | BH24: 0 | BI24: 0 | BJ24: 1 | BK24: 3 | BL24: 0 | BM24: 1 | BN24: 0 | BO24: 1 | BP24: 0 | BQ24: 0 | BR24: 1 | BS24: 0 | BT24: 0 | BU24: 0 | BV24: 0 | BW24: 0 | BX24: 0 | BY24: 0 | BZ24: 1 | CA24: 0 | CB24: 0 | CC24: 0 | CD24: 1 | CE24: 0 | CF24: 0 | CG24: 0 | CH24: 0 | CI24: 0 | CJ24: 0 | CK24: 0 | CL24: 0 | CM24: 0 | CN24: 0
A25: 21 | B25: Jean Paul | C25: 201 | D25: 12 | E25: 34 | H25: 10 | I25: 38 | L25: 27 | M25: 14 | P25: 21 | Q25: 20 | T25: 24 | U25: 17 | X25: 22 | Y25: 19 | AB25: 20 | AC25: 21 | AF25: 19 | AG25: 22 | AJ25: 27 | AK25: 14 | AN25: 29 | AO25: 12 | AS25: 0 | AW25: 0 | AY25: -10 | AZ25: 0 | BA25: 0 | BB25: 0 | BC25: 0 | BD25: 0 | BE25: 0 | BF25: 0 | BG25: 0 | BH25: 0 | BI25: 1 | BJ25: 0 | BK25: 1 | BL25: 0 | BM25: 0 | BN25: 0 | BO25: 0 | BP25: 0 | BQ25: 0 | BR25: 1 | BS25: 1 | BT25: 1 | BU25: 1 | BV25: 0 | BW25: 1 | BX25: 0 | BY25: 0 | BZ25: 2 | CA25: 0 | CB25: 1 | CC25: 0 | CD25: 0 | CE25: 0 | CF25: 0 | CG25: 0 | CH25: 0 | CI25: 0 | CJ25: 0 | CK25: 0 | CL25: 0 | CM25: 0 | CN25: 0
A26: 22 | B26: Léo Oliveira | C26: 550 | D26: 1 | E26: 60 | F26: 2 | I26: 0 | L26: 3 | M26: 52 | P26: 2 | Q26: 55 | T26: 2 | U26: 55 | X26: 4 | Y26: 50 | AC26: 0 | AF26: 5 | AG26: 48 | AJ26: 1 | AK26: 60 | AN26: 1 | AO26: 60 | AR26: 6 | AS26: 46 | AV26: 1 | AW26: 60 | AX26: 2 | AZ26: 4 | BA26: 2 | BB26: 1 | BC26: 1 | BD26: 1 | BE26: 1 | BF26: 0 | BG26: 0 | BH26: 0 | BI26: 0 | BJ26: 0 | BK26: 0 | BL26: 0 | BM26: 0 | BN26: 0 | BO26: 0 | BP26: 0 | BQ26: 0 | BR26: 0 | BS26: 0 | BT26: 0 | BU26: 0 | BV26: 0 | BW26: 0 | BX26: 0 | BY26: 0 | BZ26: 0 | CA26: 0 | CB26: 0 | CC26: 0 | CD26: 0 | CE26: 0 | CF26: 0 | CG26: 0 | CH26: 0 | CI26: 0 | CJ26: 0 | CK26: 0 | CL26: 0 | CM26: 0 | CN26: 0
A27: 23 | B27: Levindo Neto | C27: 127 | D27: 38 | E27: 3 | H27: 33 | I27: 8 | L27: 36 | M27: 5 | Q27: 0 | U27: 0 | X27: 27 | Y27: 14 | AB27: 25 | AC27: 16 | AF27: 35 | AG27: 6 | AI27: SIM | AJ27: 22 | AK27: 19 | AN27: 25 | AO27: 16 | AR27: 21 | AS27: 20 | AV27: 21 | AW27: 20 | AZ27: 0 | BA27: 0 | BB27: 0 | BC27: 0 | BD27: 0 | BE27: 0 | BF27: 0 | BG27: 0 | BH27: 0 | BI27: 0 | BJ27: 0 | BK27: 0 | BL27: 0 | BM27: 0 | BN27: 0 | BO27: 0 | BP27: 0 | BQ27: 0 | BR27: 0 | BS27: 0 | BT27: 2 | BU27: 1 | BV27: 0 | BW27: 0 | BX27: 2 | BY27: 0 | BZ27: 1 | CA27: 0 | CB27: 0 | CC27: 0 | CD27: 0 | CE27: 0 | CF27: 1 | CG27: 0 | CH27: 1 | CI27: 1 | CJ27: 0 | CK27: 1 | CL27: 0 | CM27: 0 | CN27: 0
A28: 24 | B28: Lucas Rabelo | C28: 355 | D28: 18 | E28: 23 | H28: 3 | I28: 52 | L28: 28 | M28: 13 | P28: 3 | Q28: 52 | T28: 25 | U28: 16 | X28: 5 | Y28: 48 | AB28: 26 | AC28: 15 | AF28: 2 | AG28: 55 | AH28: 2 | AJ28: 15 | AK28: 28 | AN28: 30 | AO28: 11 | AR28: 4 | AS28: 50 | AW28: 0 | AY28: -10 | AZ28: 0 | BA28: 1 | BB28: 2 | BC28: 1 | BD28: 1 | BE28: 0 | BF28: 0 | BG28: 0 | BH28: 0 | BI28: 0 | BJ28: 0 | BK28: 0 | BL28: 0 | BM28: 0 | BN28: 1 | BO28: 0 | BP28: 0 | BQ28: 1 | BR28: 0 | BS28: 0 | BT28: 0 | BU28: 0 | BV28: 0 | BW28: 0 | BX28: 1 | BY28: 1 | BZ28: 0 | CA28: 1 | CB28: 0 | CC28: 1 | CD28: 0 | CE28: 0 | CF28: 0 | CG28: 0 | CH28: 0 | CI28: 0 | CJ28: 0 | CK28: 0 | CL28: 0 | CM28: 0 | CN28: 0
A29: 25 | B29: Luciano Robervine | C29: 0 | D29: 30 | E29: 11 | H29: 27 | I29: 14 | M29: 0 | O29: -10 | Q29: 0 | U29: 0 | W29: -10 | Y29: 0 | AA29: -10 | AC29: 0 | AE29: -10 | AG29: 0 | AI29: -10 | AK29: 0 | AM29: -10 | AO29: 0 | AQ29: -10 | AR29: 22 | AS29: 19 | AV29: 18 | AW29: 23 | AZ29: 0 | BA29: 0 | BB29: 0 | BC29: 0 | BD29: 0 | BE29: 0 | BF29: 0 | BG29: 0 | BH29: 0 | BI29: 0 | BJ29: 0 | BK29: 0 | BL29: 0 | BM29: 0 | BN29: 0 | BO29: 0 | BP29: 0 | BQ29: 1 | BR29: 0 | BS29: 0 | BT29: 0 | BU29: 1 | BV29: 0 | BW29: 0 | BX29: 0 | BY29: 0 | BZ29: 1 | CA29: 0 | CB29: 0 | CC29: 1 | CD29: 0 | CE29: 0 | CF29: 0 | CG29: 0 | CH29: 0 | CI29: 0 | CJ29: 0 | CK29: 0 | CL29: 0 | CM29: 0 | CN29: 0
A30: 26 | B30: Lucio Chequer | C30: 357 | D30: 8 | E30: 42 | H30: 23 | I30: 18 | L30: 21 | M30: 20 | P30: 18 | Q30: 23 | T30: 20 | U30: 21 | X30: 16 | Y30: 26 | AB30: 18 | AC30: 23 | AF30: 4 | AG30: 50 | AJ30: 17 | AK30: 24 | AN30: 10 | AO30: 38 | AR30: 17 | AS30: 24 | AV30: 5 | AW30: 48 | AZ30: 0 | BA30: 0 | BB30: 0 | BC30: 1 | BD30: 1 | BE30: 0 | BF30: 0 | BG30: 1 | BH30: 0 | BI30: 1 | BJ30: 0 | BK30: 0 | BL30: 0 | BM30: 0 | BN30: 0 | BO30: 1 | BP30: 2 | BQ30: 2 | BR30: 0 | BS30: 1 | BT30: 1 | BU30: 0 | BV30: 1 | BW30: 0 | BX30: 0 | BY30: 0 | BZ30: 0 | CA30: 0 | CB30: 0 | CC30: 0 | CD30: 0 | CE30: 0 | CF30: 0 | CG30: 0 | CH30: 0 | CI30: 0 | CJ30: 0 | CK30: 0 | CL30: 0 | CM30: 0 | CN30: 0
A31: 27 | B31: Luiz Azevedo | C31: 9 | D31: 21 | E31: 20 | H31: 15 | I31: 28 | K31: SIM | L31: 18 | M31: 23 | P31: 23 | Q31: 18 | U31: 0 | W31: -10 | Y31: 0 | AA31: -10 | AC31: 0 | AE31: -10 | AG31: 0 | AI31: -10 | AK31: 0 | AM31: -10 | AO31: 0 | AQ31: -10 | AS31: 0 | AU31: -10 | AW31: 0 | AY31: -10 | AZ31: 0 | BA31: 0 | BB31: 0 | BC31: 0 | BD31: 0 | BE31: 0 | BF31: 0 | BG31: 0 | BH31: 0 | BI31: 0 | BJ31: 0 | BK31: 0 | BL31: 0 | BM31: 0 | BN31: 1 | BO31: 0 | BP31: 0 | BQ31: 1 | BR31: 0 | BS31: 0 | BT31: 1 | BU31: 0 | BV31: 1 | BW31: 0 | BX31: 0 | BY31: 0 | BZ31: 0 | CA31: 0 | CB31: 0 | CC31: 0 | CD31: 0 | CE31: 0 | CF31: 0 | CG31: 0 | CH31: 0 | CI31: 0 | CJ31: 0 | CK31: 0 | CL31: 0 | CM31: 0 | CN31: 0
A32: 28 | B32: Márcio Tadeu | C32: 0 | E32: 0 | G32: -10 | H32: 35 | I32: 6 | M32: 0 | O32: -10 | Q32: 0 | S32: -10 | U32: 0 | W32: -10 | Y32: 0 | AA32: -10 | AC32: 0 | AE32: -10 | AG32: 0 | AI32: -10 | AK32: 0 | AM32: -10 | AO32: 0 | AQ32: -10 | AS32: 0 | AU32: -10 | AW32: 0 | AY32: -10 | AZ32: 0 | BA32: 0 | BB32: 0 | BC32: 0 | BD32: 0 | BE32: 0 | BF32: 0 | BG32: 0 | BH32: 0 | BI32: 0 | BJ32: 0 | BK32: 0 | BL32: 0 | BM32: 0 | BN32: 0 | BO32: 0 | BP32: 0 | BQ32: 0 | BR32: 0 | BS32: 0 | BT32: 0 | BU32: 0 | BV32: 0 | BW32: 0 | BX32: 0 | BY32: 0 | BZ32: 0 | CA32: 0 | CB32: 0 | CC32: 0 | CD32: 0 | CE32: 0 | CF32: 0 | CG32: 0 | CH32: 1 | CI32: 0 | CJ32: 0 | CK32: 0 | CL32: 0 | CM32: 0 | CN32: 0
A33: 29 | B33: Marcus Silva | C33: 0 | D33: 6 | E33: 46 | I33: 0 | K33: -10 | M33: 0 | O33: -10 | P33: 10 | Q33: 38 | R33: 2 | U33: 0 | W33: -10 | Y33: 0 | AA33: -10 | AC33: 0 | AE33: -10 | AG33: 0 | AI33: -10 | AK33: 0 | AM33: -10 | AO33: 0 | AQ33: -10 | AS33: 0 | AU33: -10 | AW33: 0 | AY33: -10 | AZ33: 0 | BA33: 0 | BB33: 0 | BC33: 0 | BD33: 0 | BE33: 1 | BF33: 0 | BG33: 0 | BH33: 0 | BI33: 1 | BJ33: 0 | BK33: 0 | BL33: 0 | BM33: 0 | BN33: 0 | BO33: 0 | BP33: 0 | BQ33: 0 | BR33: 0 | BS33: 0 | BT33: 0 | BU33: 0 | BV33: 0 | BW33: 0 | BX33: 0 | BY33: 0 | BZ33: 0 | CA33: 0 | CB33: 0 | CC33: 0 | CD33: 0 | CE33: 0 | CF33: 0 | CG33: 0 | CH33: 0 | CI33: 0 | CJ33: 0 | CK33: 0 | CL33: 0 | CM33: 0 | CN33: 0
A34: 30 | B34: Matheus Azevedo | C34: 273 | D34: 29 | E34: 12 | H34: 21 | I34: 20 | L34: 31 | M34: 10 | P34: 20 | Q34: 21 | T34: 23 | U34: 18 | X34: 18 | Y34: 23 | AB34: 8 | AC34: 42 | AF34: 13 | AG34: 32 | AJ34: 3 | AK34: 52 | AN34: 18 | AO34: 23 | AR34: 23 | AS34: 18 | AT34: 2 | AV34: 0 | AW34: 0 | AZ34: 0 | BA34: 0 | BB34: 1 | BC34: 0 | BD34: 0 | BE34: 0 | BF34: 0 | BG34: 1 | BH34: 0 | BI34: 0 | BJ34: 0 | BK34: 0 | BL34: 1 | BM34: 0 | BN34: 0 | BO34: 0 | BP34: 0 | BQ34: 2 | BR34: 0 | BS34: 1 | BT34: 1 | BU34: 0 | BV34: 2 | BW34: 0 | BX34: 0 | BY34: 0 | BZ34: 0 | CA34: 0 | CB34: 1 | CC34: 0 | CD34: 1 | CE34: 0 | CF34: 0 | CG34: 0 | CH34: 0 | CI34: 0 | CJ34: 0 | CK34: 0 | CL34: 0 | CM34: 0 | CN34: 0
A35: 31 | B35: Matheus Rocha | C35: 334 | D35: 16 | E35: 26 | H35: 25 | I35: 16 | K35: SIM | L35: 11 | M35: 36 | P35: 24 | Q35: 17 | T35: 7 | U35: 44 | X35: 23 | Y35: 18 | AB35: 28 | AC35: 13 | AF35: 12 | AG35: 34 | AJ35: 7 | AK35: 44 | AN35: 23 | AO35: 18 | AR35: 9 | AS35: 40 | AU35: -10 | AV35: 10 | AW35: 38 | AZ35: 0 | BA35: 0 | BB35: 0 | BC35: 0 | BD35: 0 | BE35: 0 | BF35: 2 | BG35: 0 | BH35: 1 | BI35: 1 | BJ35: 1 | BK35: 1 | BL35: 0 | BM35: 0 | BN35: 0 | BO35: 1 | BP35: 0 | BQ35: 0 | BR35: 0 | BS35: 0 | BT35: 0 | BU35: 0 | BV35: 2 | BW35: 1 | BX35: 1 | BY35: 0 | BZ35: 0 | CA35: 1 | CB35: 0 | CC35: 0 | CD35: 0 | CE35: 0 | CF35: 0 | CG35: 0 | CH35: 0 | CI35: 0 | CJ35: 0 | CK35: 0 | CL35: 0 | CM35: 0 | CN35: 0
A36: 32 | B36: Pedro Avelar | C36: 0 | D36: 25 | E36: 16 | I36: 0 | M36: 0 | Q36: 0 | U36: 0 | Y36: 0 | AC36: 0 | AG36: 0 | AI36: -10 | AK36: 0 | AM36: -10 | AO36: 0 | AS36: 0 | AU36: -10 | AW36: 0 | AY36: -10 | AZ36: 0 | BA36: 0 | BB36: 0 | BC36: 0 | BD36: 0 | BE36: 0 | BF36: 0 | BG36: 0 | BH36: 0 | BI36: 0 | BJ36: 0 | BK36: 0 | BL36: 0 | BM36: 0 | BN36: 0 | BO36: 0 | BP36: 0 | BQ36: 0 | BR36: 0 | BS36: 0 | BT36: 0 | BU36: 0 | BV36: 0 | BW36: 0 | BX36: 1 | BY36: 0 | BZ36: 0 | CA36: 0 | CB36: 0 | CC36: 0 | CD36: 0 | CE36: 0 | CF36: 0 | CG36: 0 | CH36: 0 | CI36: 0 | CJ36: 0 | CK36: 0 | CL36: 0 | CM36: 0 | CN36: 0
A37: 33 | B37: Pedro Fialho | C37: 0 | D37: 4 | E37: 50 | I37: 0 | M37: 0 | Q37: 0 | U37: 0 | Y37: 0 | AC37: 0 | AG37: 0 | AI37: -10 | AK37: 0 | AM37: -10 | AO37: 0 | AQ37: -10 | AS37: 0 | AU37: -10 | AW37: 0 | AY37: -10 | AZ37: 0 | BA37: 0 | BB37: 0 | BC37: 1 | BD37: 0 | BE37: 0 | BF37: 0 | BG37: 0 | BH37: 0 | BI37: 0 | BJ37: 0 | BK37: 0 | BL37: 0 | BM37: 0 | BN37: 0 | BO37: 0 | BP37: 0 | BQ37: 0 | BR37: 0 | BS37: 0 | BT37: 0 | BU37: 0 | BV37: 0 | BW37: 0 | BX37: 0 | BY37: 0 | BZ37: 0 | CA37: 0 | CB37: 0 | CC37: 0 | CD37: 0 | CE37: 0 | CF37: 0 | CG37: 0 | CH37: 0 | CI37: 0 | CJ37: 0 | CK37: 0 | CL37: 0 | CM37: 0 | CN37: 0
A38: 34 | B38: PetrÔnio Junior | C38: 290 | E38: 0 | G38: -10 | H38: 5 | I38: 48 | L38: 4 | M38: 50 | P38: 7 | Q38: 44 | T38: 11 | U38: 36 | X38: 30 | Y38: 11 | AC38: 0 | AF38: 26 | AG38: 15 | AJ38: 13 | AK38: 32 | AM38: SIM | AN38: 19 | AO38: 22 | AR38: 3 | AS38: 52 | AW38: 0 | AY38: -10 | AZ38: 0 | BA38: 0 | BB38: 1 | BC38: 1 | BD38: 1 | BE38: 0 | BF38: 1 | BG38: 0 | BH38: 0 | BI38: 0 | BJ38: 1 | BK38: 0 | BL38: 1 | BM38: 0 | BN38: 0 | BO38: 0 | BP38: 0 | BQ38: 0 | BR38: 1 | BS38: 0 | BT38: 0 | BU38: 0 | BV38: 0 | BW38: 0 | BX38: 0 | BY38: 1 | BZ38: 0 | CA38: 0 | CB38: 0 | CC38: 1 | CD38: 0 | CE38: 0 | CF38: 0 | CG38: 0 | CH38: 0 | CI38: 0 | CJ38: 0 | CK38: 0 | CL38: 0 | CM38: 0 | CN38: 0
A39: 35 | B39: Rafael Miranda | C39: 529 | D39: 23 | E39: 18 | H39: 34 | I39: 7 | L39: 2 | M39: 55 | P39: 1 | Q39: 60 | T39: 4 | U39: 50 | X39: 2 | Y39: 55 | AB39: 4 | AC39: 50 | AF39: 6 | AG39: 46 | AJ39: 4 | AK39: 50 | AN39: 15 | AO39: 28 | AR39: 2 | AS39: 55 | AV39: 2 | AW39: 55 | AZ39: 1 | BA39: 4 | BB39: 0 | BC39: 3 | BD39: 0 | BE39: 1 | BF39: 0 | BG39: 0 | BH39: 0 | BI39: 0 | BJ39: 0 | BK39: 0 | BL39: 0 | BM39: 0 | BN39: 1 | BO39: 0 | BP39: 0 | BQ39: 0 | BR39: 0 | BS39: 0 | BT39: 0 | BU39: 0 | BV39: 1 | BW39: 0 | BX39: 0 | BY39: 0 | BZ39: 0 | CA39: 0 | CB39: 0 | CC39: 0 | CD39: 0 | CE39: 0 | CF39: 0 | CG39: 1 | CH39: 0 | CI39: 0 | CJ39: 0 | CK39: 0 | CL39: 0 | CM39: 0 | CN39: 0
A40: 36 | B40: Raphael Reis | C40: 363 | D40: 14 | E40: 30 | H40: 12 | I40: 34 | L40: 17 | M40: 24 | P40: 4 | Q40: 50 | U40: 0 | X40: 12 | Y40: 34 | AB40: 7 | AC40: 44 | AF40: 17 | AG40: 24 | AJ40: 5 | AK40: 48 | AN40: 24 | AO40: 17 | AR40: 15 | AS40: 28 | AV40: 14 | AW40: 30 | AZ40: 0 | BA40: 0 | BB40: 0 | BC40: 1 | BD40: 1 | BE40: 0 | BF40: 1 | BG40: 0 | BH40: 0 | BI40: 0 | BJ40: 0 | BK40: 2 | BL40: 0 | BM40: 2 | BN40: 1 | BO40: 0 | BP40: 2 | BQ40: 0 | BR40: 0 | BS40: 0 | BT40: 0 | BU40: 0 | BV40: 0 | BW40: 1 | BX40: 0 | BY40: 0 | BZ40: 0 | CA40: 0 | CB40: 0 | CC40: 0 | CD40: 0 | CE40: 0 | CF40: 0 | CG40: 0 | CH40: 0 | CI40: 0 | CJ40: 0 | CK40: 0 | CL40: 0 | CM40: 0 | CN40: 0
A41: 37 | B41: Renato Martins | C41: 227 | D41: 33 | E41: 8 | H41: 26 | I41: 15 | L41: 33 | M41: 8 | P41: 28 | Q41: 13 | T41: 13 | U41: 32 | X41: 19 | Y41: 22 | AB41: 17 | AC41: 24 | AF41: 24 | AG41: 17 | AJ41: 20 | AK41: 21 | AN41: 26 | AO41: 15 | AR41: 16 | AS41: 26 | AV41: 16 | AW41: 26 | AZ41: 0 | BA41: 0 | BB41: 0 | BC41: 0 | BD41: 0 | BE41: 0 | BF41: 0 | BG41: 0 | BH41: 0 | BI41: 0 | BJ41: 0 | BK41: 0 | BL41: 1 | BM41: 0 | BN41: 0 | BO41: 2 | BP41: 1 | BQ41: 0 | BR41: 1 | BS41: 1 | BT41: 0 | BU41: 0 | BV41: 0 | BW41: 1 | BX41: 0 | BY41: 2 | BZ41: 0 | CA41: 1 | CB41: 0 | CC41: 0 | CD41: 0 | CE41: 0 | CF41: 2 | CG41: 0 | CH41: 0 | CI41: 0 | CJ41: 0 | CK41: 0 | CL41: 0 | CM41: 0 | CN41: 0
A42: 38 | B42: Robert Freitas | C42: 0 | E42: 0 | I42: 0 | M42: 0 | Q42: 0 | S42: -10 | U42: 0 | W42: -10 | Y42: 0 | AA42: -10 | AC42: 0 | AE42: -10 | AG42: 0 | AI42: -10 | AK42: 0 | AM42: -10 | AO42: 0 | AQ42: -10 | AS42: 0 | AU42: -10 | AW42: 0 | AY42: -10 | AZ42: 0 | BA42: 0 | BB42: 0 | BC42: 0 | BD42: 0 | BE42: 0 | BF42: 0 | BG42: 0 | BH42: 0 | BI42: 0 | BJ42: 0 | BK42: 0 | BL42: 0 | BM42: 0 | BN42: 0 | BO42: 0 | BP42: 0 | BQ42: 0 | BR42: 0 | BS42: 0 | BT42: 0 | BU42: 0 | BV42: 0 | BW42: 0 | BX42: 0 | BY42: 0 | BZ42: 0 | CA42: 0 | CB42: 0 | CC42: 0 | CD42: 0 | CE42: 0 | CF42: 0 | CG42: 0 | CH42: 0 | CI42: 0 | CJ42: 0 | CK42: 0 | CL42: 0 | CM42: 0 | CN42: 0
A43: 39 | B43: Samuel Farley | C43: 335 | D43: 13 | E43: 32 | H43: 29 | I43: 12 | L43: 10 | M43: 38 | P43: 25 | Q43: 16 | S43: SIM | T43: 28 | U43: 13 | X43: 6 | Y43: 46 | AB43: 19 | AC43: 22 | AF43: 15 | AG43: 28 | AJ43: 25 | AK43: 16 | AN43: 11 | AO43: 36 | AR43: 11 | AS43: 36 | AV43: 9 | AW43: 40 | AZ43: 0 | BA43: 0 | BB43: 0 | BC43: 0 | BD43: 0 | BE43: 1 | BF43: 0 | BG43: 0 | BH43: 1 | BI43: 1 | BJ43: 2 | BK43: 0 | BL43: 1 | BM43: 0 | BN43: 1 | BO43: 0 | BP43: 0 | BQ43: 0 | BR43: 1 | BS43: 0 | BT43: 0 | BU43: 0 | BV43: 0 | BW43: 0 | BX43: 2 | BY43: 0 | BZ43: 0 | CA43: 1 | CB43: 1 | CC43: 0 | CD43: 0 | CE43: 0 | CF43: 0 | CG43: 0 | CH43: 0 | CI43: 0 | CJ43: 0 | CK43: 0 | CL43: 0 | CM43: 0 | CN43: 0
A44: 40 | B44: Saulo Chagas | C44: 186 | D44: 2 | E44: 55 | I44: 0 | L44: 15 | M44: 28 | P44: 19 | Q44: 22 | T44: 27 | U44: 14 | X44: 26 | Y44: 15 | AB44: 5 | AC44: 48 | AG44: 0 | AK44: 0 | AN44: 27 | AO44: 14 | AS44: 0 | AW44: 0 | AY44: -10 | AZ44: 0 | BA44: 1 | BB44: 0 | BC44: 0 | BD44: 1 | BE44: 0 | BF44: 0 | BG44: 0 | BH44: 0 | BI44: 0 | BJ44: 0 | BK44: 0 | BL44: 0 | BM44: 0 | BN44: 1 | BO44: 0 | BP44: 0 | BQ44: 0 | BR44: 1 | BS44: 0 | BT44: 0 | BU44: 0 | BV44: 0 | BW44: 0 | BX44: 0 | BY44: 1 | BZ44: 2 | CA44: 0 | CB44: 0 | CC44: 0 | CD44: 0 | CE44: 0 | CF44: 0 | CG44: 0 | CH44: 0 | CI44: 0 | CJ44: 0 | CK44: 0 | CL44: 0 | CM44: 0 | CN44: 0
A45: 41 | B45: Tafarel Henrique | C45: 53 | D45: 27 | E45: 14 | H45: 19 | I45: 22 | L45: 32 | M45: 9 | P45: 6 | Q45: 46 | T45: 19 | U45: 22 | Y45: 0 | AC45: 0 | AE45: -10 | AG45: 0 | AI45: -10 | AK45: 0 | AM45: -10 | AO45: 0 | AQ45: -10 | AS45: 0 | AU45: -10 | AW45: 0 | AY45: -10 | AZ45: 0 | BA45: 0 | BB45: 0 | BC45: 0 | BD45: 0 | BE45: 1 | BF45: 0 | BG45: 0 | BH45: 0 | BI45: 0 | BJ45: 0 | BK45: 0 | BL45: 0 | BM45: 0 | BN45: 0 | BO45: 0 | BP45: 0 | BQ45: 0 | BR45: 2 | BS45: 0 | BT45: 0 | BU45: 0 | BV45: 0 | BW45: 0 | BX45: 0 | BY45: 0 | BZ45: 1 | CA45: 0 | CB45: 0 | CC45: 0 | CD45: 0 | CE45: 1 | CF45: 0 | CG45: 0 | CH45: 0 | CI45: 0 | CJ45: 0 | CK45: 0 | CL45: 0 | CM45: 0 | CN45: 0
A46: 42 | B46: Thales Almeida | C46: 82 | D46: 22 | E46: 19 | H46: 13 | I46: 32 | L46: 22 | M46: 19 | P46: 9 | Q46: 40 | T46: 29 | U46: 12 | Y46: 0 | AA46: -10 | AC46: 0 | AG46: 0 | AI46: -10 | AK46: 0 | AO46: 0 | AQ46: -10 | AS46: 0 | AW46: 0 | AY46: -10 | AZ46: 0 | BA46: 0 | BB46: 0 | BC46: 0 | BD46: 0 | BE46: 0 | BF46: 0 | BG46: 0 | BH46: 1 | BI46: 0 | BJ46: 0 | BK46: 0 | BL46: 1 | BM46: 0 | BN46: 0 | BO46: 0 | BP46: 0 | BQ46: 0 | BR46: 0 | BS46: 0 | BT46: 0 | BU46: 2 | BV46: 0 | BW46: 0 | BX46: 0 | BY46: 0 | BZ46: 0 | CA46: 0 | CB46: 1 | CC46: 0 | CD46: 0 | CE46: 0 | CF46: 0 | CG46: 0 | CH46: 0 | CI46: 0 | CJ46: 0 | CK46: 0 | CL46: 0 | CM46: 0 | CN46: 0
A47: 43 | B47: Thiago Azevedo | C47: 97 | D47: 35 | E47: 6 | H47: 22 | I47: 19 | L47: 34 | M47: 7 | P47: 27 | Q47: 14 | T47: 21 | U47: 20 | W47: -10 | Y47: 0 | AC47: 0 | AE47: -10 | AG47: 0 | AI47: -10 | AJ47: 23 | AK47: 18 | AM47: -10 | AN47: 21 | AO47: 20 | AQ47: -10 | AR47: 19 | AS47: 22 | AV47: 20 | AW47: 21 | AZ47: 0 | BA47: 0 | BB47: 0 | BC47: 0 | BD47: 0 | BE47: 0 | BF47: 0 | BG47: 0 | BH47: 0 | BI47: 0 | BJ47: 0 | BK47: 0 | BL47: 0 | BM47: 0 | BN47: 0 | BO47: 0 | BP47: 0 | BQ47: 0 | BR47: 1 | BS47: 1 | BT47: 2 | BU47: 1 | BV47: 1 | BW47: 0 | BX47: 0 | BY47: 0 | BZ47: 1 | CA47: 0 | CB47: 0 | CC47: 0 | CD47: 0 | CE47: 0 | CF47: 0 | CG47: 1 | CH47: 1 | CI47: 0 | CJ47: 0 | CK47: 0 | CL47: 0 | CM47: 0 | CN47: 0
A48: 44 | B48: Thiago Santos | C48: 84 | D48: 36 | E48: 5 | H48: 20 | I48: 21 | L48: 26 | M48: 15 | Q48: 0 | T48: 18 | U48: 23 | X48: 28 | Y48: 13 | AC48: 0 | AG48: 0 | AI48: -10 | AJ48: 24 | AK48: 17 | AO48: 0 | AS48: 0 | AW48: 0 | AZ48: 0 | BA48: 0 | BB48: 0 | BC48: 0 | BD48: 0 | BE48: 0 | BF48: 0 | BG48: 0 | BH48: 0 | BI48: 0 | BJ48: 0 | BK48: 0 | BL48: 0 | BM48: 0 | BN48: 0 | BO48: 0 | BP48: 0 | BQ48: 1 | BR48: 0 | BS48: 1 | BT48: 0 | BU48: 0 | BV48: 0 | BW48: 1 | BX48: 0 | BY48: 1 | BZ48: 0 | CA48: 1 | CB48: 0 | CC48: 0 | CD48: 0 | CE48: 0 | CF48: 0 | CG48: 0 | CH48: 0 | CI48: 1 | CJ48: 0 | CK48: 0 | CL48: 0 | CM48: 0 | CN48: 0
A49: 45 | B49: Wesley Canuto | C49: 381 | D49: 20 | E49: 21 | H49: 18 | I49: 23 | L49: 19 | M49: 22 | P49: 15 | Q49: 28 | T49: 3 | U49: 52 | X49: 9 | Y49: 40 | AB49: 15 | AC49: 28 | AF49: 9 | AG49: 40 | AJ49: 12 | AK49: 34 | AN49: 7 | AO49: 44 | AR49: 26 | AS49: 15 | AV49: 12 | AW49: 34 | AZ49: 0 | BA49: 0 | BB49: 1 | BC49: 0 | BD49: 0 | BE49: 0 | BF49: 1 | BG49: 0 | BH49: 2 | BI49: 0 | BJ49: 0 | BK49: 2 | BL49: 0 | BM49: 0 | BN49: 2 | BO49: 0 | BP49: 0 | BQ49: 1 | BR49: 1 | BS49: 1 | BT49: 0 | BU49: 0 | BV49: 0 | BW49: 0 | BX49: 0 | BY49: 1 | BZ49: 0 | CA49: 0 | CB49: 0 | CC49: 0 | CD49: 0 | CE49: 0 | CF49: 0 | CG49: 0 | CH49: 0 | CI49: 0 | CJ49: 0 | CK49: 0 | CL49: 0 | CM49: 0 | CN49: 0

Sheet Classificação Geral
A1: 2021 | E1: OK | I1: OK | M1: OK | Q1: OK | U1: OK | Y1: OK | AC1: OK | AG1: OK | AK1: OK | AO1: OK | AS1: OK | AW1: OK
D2: 1ª etapa | H2: 2ª etapa | L2: 3ª etapa | P2: 4ª etapa | T2: 5ª etapa | X2: 6ª etapa | AB2: 7ª etapa | AF2: 8ª etapa | AJ2: 9ª etapa | AN2: 10ª etapa | AR2: 11ª etapa | AV2: 12ª etapa
B4: Nome do (a) Piloto (a) | C4: Pontuação Geral | D4: Posição | E4: Pontos | F4: Bônus | G4: Penalidade | H4: Posição | I4: Pontos | J4: Bônus | K4: Penalidade | L4: Posição | M4: Pontos | N4: Bônus | O4: Penalidade | P4: Posição | Q4: Pontos | R4: Bônus | S4: Penalidade | T4: Posição | U4: Pontos | V4: Bônus | W4: Penalidade | X4: Posição | Y4: Pontos | Z4: Bônus | AA4: Penalidade | AB4: Posição | AC4: Pontos | AD4: Bônus | AE4: Penalidade | AF4: Posição | AG4: Pontos | AH4: Bônus | AI4: Penalidade | AJ4: Posição | AK4: Pontos | AL4: Bônus | AM4: Penalidade | AN4: Posição | AO4: Pontos | AP4: Bônus | AQ4: Penalidade | AR4: Posição | AS4: Pontos | AT4: Bônus | AU4: Penalidade | AV4: Posição | AW4: Pontos | AX4: Bônus | AY4: Penalidade | AZ4: 1º LUGAR | BA4: 2º LUGAR | BB4: 3º LUGAR | BC4: 4º LUGAR | BD4: 5º LUGAR | BE4: 6º LUGAR | BF4: 7º LUGAR | BG4: 8º LUGAR | BH4: 9º LUGAR | BI4: 10º LUGAR | BJ4: 11º LUGAR | BK4: 12º LUGAR | BL4: 13º LUGAR | BM4: 14º LUGAR | BN4: 15º LUGAR | BO4: 16º LUGAR | BP4: 17º LUGAR | BQ4: 18º LUGAR | BR4: 19º LUGAR | BS4: 20º LUGAR | BT4: 21º LUGAR | BU4: 22º LUGAR | BV4: 23º LUGAR | BW4: 24º LUGAR | BX4: 25º LUGAR | BY4: 26º LUGAR | BZ4: 27º LUGAR | CA4: 28º LUGAR | CB4: 29º LUGAR | CC4: 30º LUGAR | CD4: 31º LUGAR | CE4: 32º LUGAR | CF4: 33º LUGAR | CG4: 34º LUGAR | CH4: 35º LUGAR | CI4: 36º LUGAR | CJ4: 37º LUGAR | CK4: 38º LUGAR | CL4: 39º LUGAR | CM4: 40º LUGAR | CN4: 41º LUGAR
A5: 1 | B5: Léo Oliveira | C5: 550 | D5: 1 | E5: 60 | F5: 2 | I5: 0 | L5: 3 | M5: 52 | P5: 2 | Q5: 55 | T5: 2 | U5: 55 | X5: 4 | Y5: 50 | AC5: 0 | AF5: 5 | AG5: 48 | AJ5: 1 | AK5: 60 | AN5: 1 | AO5: 60 | AR5: 6 | AS5: 46 | AV5: 1 | AW5: 60 | AX5: 2 | AZ5: 4 | BA5: 2 | BB5: 1 | BC5: 1 | BD5: 1 | BE5: 1 | BF5: 0 | BG5: 0 | BH5: 0 | BI5: 0 | BJ5: 0 | BK5: 0 | BL5: 0 | BM5: 0 | BN5: 0 | BO5: 0 | BP5: 0 | BQ5: 0 | BR5: 0 | BS5: 0 | BT5: 0 | BU5: 0 | BV5: 0 | BW5: 0 | BX5: 0 | BY5: 0 | BZ5: 0 | CA5: 0 | CB5: 0 | CC5: 0 | CD5: 0 | CE5: 0 | CF5: 0 | CG5: 0 | CH5: 0 | CI5: 0 | CJ5: 0 | CK5: 0 | CL5: 0 | CM5: 0 | CN5: 0
A6: 2 | B6: Rafael Miranda | C6: 529 | D6: 23 | E6: 18 | H6: 34 | I6: 7 | L6: 2 | M6: 55 | P6: 1 | Q6: 60 | T6: 4 | U6: 50 | X6: 2 | Y6: 55 | AB6: 4 | AC6: 50 | AF6: 6 | AG6: 46 | AJ6: 4 | AK6: 50 | AN6: 15 | AO6: 28 | AR6: 2 | AS6: 55 | AV6: 2 | AW6: 55 | AZ6: 1 | BA6: 4 | BB6: 0 | BC6: 3 | BD6: 0 | BE6: 1 | BF6: 0 | BG6: 0 | BH6: 0 | BI6: 0 | BJ6: 0 | BK6: 0 | BL6: 0 | BM6: 0 | BN6: 1 | BO6: 0 | BP6: 0 | BQ6: 0 | BR6: 0 | BS6: 0 | BT6: 0 | BU6: 0 | BV6: 1 | BW6: 0 | BX6: 0 | BY6: 0 | BZ6: 0 | CA6: 0 | CB6: 0 | CC6: 0 | CD6: 0 | CE6: 0 | CF6: 0 | CG6: 1 | CH6: 0 | CI6: 0 | CJ6: 0 | CK6: 0 | CL6: 0 | CM6: 0 | CN6: 0
A7: 3 | B7: Gui Figueiredo | C7: 523 | D7: 9 | E7: 40 | H7: 1 | I7: 60 | L7: 8 | M7: 42 | P7: 33 | Q7: 8 | T7: 5 | U7: 48 | X7: 3 | Y7: 52 | AB7: 14 | AC7: 30 | AF7: 3 | AG7: 52 | AJ7: 2 | AK7: 55 | AL7: 2 | AN7: 6 | AO7: 46 | AR7: 8 | AS7: 42 | AV7: 6 | AW7: 46 | AZ7: 1 | BA7: 1 | BB7: 2 | BC7: 0 | BD7: 1 | BE7: 2 | BF7: 0 | BG7: 2 | BH7: 1 | BI7: 0 | BJ7: 0 | BK7: 0 | BL7: 0 | BM7: 1 | BN7: 0 | BO7: 0 | BP7: 0 | BQ7: 0 | BR7: 0 | BS7: 0 | BT7: 0 | BU7: 0 | BV7: 0 | BW7: 0 | BX7: 0 | BY7: 0 | BZ7: 0 | CA7: 0 | CB7: 0 | CC7: 0 | CD7: 0 | CE7: 0 | CF7: 1 | CG7: 0 | CH7: 0 | CI7: 0 | CJ7: 0 | CK7: 0 | CL7: 0 | CM7: 0 | CN7: 0
A8: 4 | B8: Christian Guedes | C8: 514 | D8: 5 | E8: 48 | H8: 4 | I8: 50 | J8: 2 | L8: 13 | M8: 32 | P8: 16 | Q8: 26 | T8: 6 | U8: 46 | X8: 13 | Y8: 32 | AB8: 1 | AC8: 60 | AD8: 2 | AF8: 10 | AG8: 38 | AJ8: 6 | AK8: 46 | AN8: 4 | AO8: 50 | AR8: 13 | AS8: 32 | AV8: 4 | AW8: 50 | AZ8: 1 | BA8: 0 | BB8: 0 | BC8: 3 | BD8: 1 | BE8: 2 | BF8: 0 | BG8: 0 | BH8: 0 | BI8: 1 | BJ8: 0 | BK8: 0 | BL8: 3 | BM8: 0 | BN8: 0 | BO8: 1 | BP8: 0 | BQ8: 0 | BR8: 0 | BS8: 0 | BT8: 0 | BU8: 0 | BV8: 0 | BW8: 0 | BX8: 0 | BY8: 0 | BZ8: 0 | CA8: 0 | CB8: 0 | CC8: 0 | CD8: 0 | CE8: 0 | CF8: 0 | CG8: 0 | CH8: 0 | CI8: 0 | CJ8: 0 | CK8: 0 | CL8: 0 | CM8: 0 | CN8: 0
A9: 5 | B9: Guilherme Alves | C9: 441 | D9: 3 | E9: 52 | H9: 11 | I9: 36 | L9: 24 | M9: 17 | P9: 8 | Q9: 42 | T9: 15 | U9: 28 | X9: 15 | Y9: 28 | AB9: 12 | AC9: 34 | AF9: 11 | AG9: 36 | AJ9: 8 | AK9: 42 | AN9: 8 | AO9: 42 | AR9: 5 | AS9: 48 | AV9: 11 | AW9: 36 | AZ9: 0 | BA9: 0 | BB9: 1 | BC9: 0 | BD9: 1 | BE9: 0 | BF9: 0 | BG9: 3 | BH9: 0 | BI9: 0 | BJ9: 3 | BK9: 1 | BL9: 0 | BM9: 0 | BN9: 2 | BO9: 0 | BP9: 0 | BQ9: 0 | BR9: 0 | BS9: 0 | BT9: 0 | BU9: 0 | BV9: 0 | BW9: 1 | BX9: 0 | BY9: 0 | BZ9: 0 | CA9: 0 | CB9: 0 | CC9: 0 | CD9: 0 | CE9: 0 | CF9: 0 | CG9: 0 | CH9: 0 | CI9: 0 | CJ9: 0 | CK9: 0 | CL9: 0 | CM9: 0 | CN9: 0
A10: 6 | B10: Bruno Nosse | C10: 430 | D10: 10 | E10: 38 | H10: 9 | I10: 40 | L10: 5 | M10: 48 | P10: 12 | Q10: 34 | T10: 14 | U10: 30 | X10: 24 | Y10: 17 | AB10: 10 | AC10: 38 | AF10: 8 | AG10: 42 | AJ10: 11 | AK10: 36 | AN10: 3 | AO10: 52 | AR10: 18 | AS10: 23 | AV10: 13 | AW10: 32 | AZ10: 0 | BA10: 0 | BB10: 1 | BC10: 0 | BD10: 1 | BE10: 0 | BF10: 0 | BG10: 1 | BH10: 1 | BI10: 2 | BJ10: 1 | BK10: 1 | BL10: 1 | BM10: 1 | BN10: 0 | BO10: 0 | BP10: 0 | BQ10: 1 | BR10: 0 | BS10: 0 | BT10: 0 | BU10: 0 | BV10: 0 | BW10: 1 | BX10: 0 | BY10: 0 | BZ10: 0 | CA10: 0 | CB10: 0 | CC10: 0 | CD10: 0 | CE10: 0 | CF10: 0 | CG10: 0 | CH10: 0 | CI10: 0 | CJ10: 0 | CK10: 0 | CL10: 0 | CM10: 0 | CN10: 0
A11: 7 | B11: Alexandre Melillo | C11: 411 | D11: 15 | E11: 28 | H11: 2 | I11: 55 | L11: 7 | M11: 44 | P11: 17 | Q11: 24 | T11: 10 | U11: 38 | X11: 17 | Y11: 24 | AB11: 3 | AC11: 52 | AF11: 21 | AG11: 20 | AJ11: 14 | AK11: 30 | AN11: 17 | AO11: 24 | AR11: 7 | AS11: 44 | AV11: 15 | AW11: 28 | AZ11: 0 | BA11: 1 | BB11: 1 | BC11: 0 | BD11: 0 | BE11: 0 | BF11: 2 | BG11: 0 | BH11: 0 | BI11: 1 | BJ11: 0 | BK11: 0 | BL11: 0 | BM11: 1 | BN11: 2 | BO11: 0 | BP11: 3 | BQ11: 0 | BR11: 0 | BS11: 0 | BT11: 1 | BU11: 0 | BV11: 0 | BW11: 0 | BX11: 0 | BY11: 0 | BZ11: 0 | CA11: 0 | CB11: 0 | CC11: 0 | CD11: 0 | CE11: 0 | CF11: 0 | CG11: 0 | CH11: 0 | CI11: 0 | CJ11: 0 | CK11: 0 | CL11: 0 | CM11: 0 | CN11: 0
A12: 8 | B12: Anderson Teixeira | C12: 400 | D12: 17 | E12: 24 | H12: 17 | I12: 24 | L12: 1 | M12: 60 | N12: 2 | P12: 13 | Q12: 32 | T12: 1 | U12: 60 | V12: 2 | X12: 7 | Y12: 44 | AB12: 13 | AC12: 32 | AF12: 25 | AG12: 16 | AK12: 0 | AN12: 16 | AO12: 26 | AR12: 12 | AS12: 34 | AV12: 7 | AW12: 44 | AZ12: 2 | BA12: 0 | BB12: 0 | BC12: 0 | BD12: 0 | BE12: 0 | BF12: 2 | BG12: 0 | BH12: 0 | BI12: 0 | BJ12: 0 | BK12: 1 | BL12: 2 | BM12: 0 | BN12: 0 | BO12: 1 | BP12: 2 | BQ12: 0 | BR12: 0 | BS12: 0 | BT12: 0 | BU12: 0 | BV12: 0 | BW12: 0 | BX12: 1 | BY12: 0 | BZ12: 0 | CA12: 0 | CB12: 0 | CC12: 0 | CD12: 0 | CE12: 0 | CF12: 0 | CG12: 0 | CH12: 0 | CI12: 0 | CJ12: 0 | CK12: 0 | CL12: 0 | CM12: 0 | CN12: 0
A13: 9 | B13: Diego Rodrigues | C13: 389 | D13: 7 | E13: 44 | H13: 6 | I13: 46 | L13: 9 | M13: 40 | Q13: 0 | T13: 8 | U13: 42 | X13: 11 | Y13: 36 | AB13: 2 | AC13: 55 | AF13: 18 | AG13: 23 | AK13: 0 | AN13: 14 | AO13: 30 | AR13: 20 | AS13: 21 | AV13: 3 | AW13: 52 | AZ13: 0 | BA13: 1 | BB13: 1 | BC13: 0 | BD13: 0 | BE13: 1 | BF13: 1 | BG13: 1 | BH13: 1 | BI13: 0 | BJ13: 1 | BK13: 0 | BL13: 0 | BM13: 1 | BN13: 0 | BO13: 0 | BP13: 0 | BQ13: 1 | BR13: 0 | BS13: 1 | BT13: 0 | BU13: 0 | BV13: 0 | BW13: 0 | BX13: 0 | BY13: 0 | BZ13: 0 | CA13: 0 | CB13: 0 | CC13: 0 | CD13: 0 | CE13: 0 | CF13: 0 | CG13: 0 | CH13: 0 | CI13: 0 | CJ13: 0 | CK13: 0 | CL13: 0 | CM13: 0 | CN13: 0
A14: 10 | B14: Wesley Canuto | C14: 381 | D14: 20 | E14: 21 | H14: 18 | I14: 23 | L14: 19 | M14: 22 | P14: 15 | Q14: 28 | T14: 3 | U14: 52 | X14: 9 | Y14: 40 | AB14: 15 | AC14: 28 | AF14: 9 | AG14: 40 | AJ14: 12 | AK14: 34 | AN14: 7 | AO14: 44 | AR14: 26 | AS14: 15 | AV14: 12 | AW14: 34 | AZ14: 0 | BA14: 0 | BB14: 1 | BC14: 0 | BD14: 0 | BE14: 0 | BF14: 1 | BG14: 0 | BH14: 2 | BI14: 0 | BJ14: 0 | BK14: 2 | BL14: 0 | BM14: 0 | BN14: 2 | BO14: 0 | BP14: 0 | BQ14: 1 | BR14: 1 | BS14: 1 | BT14: 0 | BU14: 0 | BV14: 0 | BW14: 0 | BX14: 0 | BY14: 1 | BZ14: 0 | CA14: 0 | CB14: 0 | CC14: 0 | CD14: 0 | CE14: 0 | CF14: 0 | CG14: 0 | CH14: 0 | CI14: 0 | CJ14: 0 | CK14: 0 | CL14: 0 | CM14: 0 | CN14: 0
A15: 11 | B15: Raphael Reis | C15: 363 | D15: 14 | E15: 30 | H15: 12 | I15: 34 | L15: 17 | M15: 24 | P15: 4 | Q15: 50 | U15: 0 | X15: 12 | Y15: 34 | AB15: 7 | AC15: 44 | AF15: 17 | AG15: 24 | AJ15: 5 | AK15: 48 | AN15: 24 | AO15: 17 | AR15: 15 | AS15: 28 | AV15: 14 | AW15: 30 | AZ15: 0 | BA15: 0 | BB15: 0 | BC15: 1 | BD15: 1 | BE15: 0 | BF15: 1 | BG15: 0 | BH15: 0 | BI15: 0 | BJ15: 0 | BK15: 2 | BL15: 0 | BM15: 2 | BN15: 1 | BO15: 0 | BP15: 2 | BQ15: 0 | BR15: 0 | BS15: 0 | BT15: 0 | BU15: 0 | BV15: 0 | BW15: 1 | BX15: 0 | BY15: 0 | BZ15: 0 | CA15: 0 | CB15: 0 | CC15: 0 | CD15: 0 | CE15: 0 | CF15: 0 | CG15: 0 | CH15: 0 | CI15: 0 | CJ15: 0 | CK15: 0 | CL15: 0 | CM15: 0 | CN15: 0
A16: 12 | B16: Lucio Chequer | C16: 357 | D16: 8 | E16: 42 | H16: 23 | I16: 18 | L16: 21 | M16: 20 | P16: 18 | Q16: 23 | T16: 20 | U16: 21 | X16: 16 | Y16: 26 | AB16: 18 | AC16: 23 | AF16: 4 | AG16: 50 | AJ16: 17 | AK16: 24 | AN16: 10 | AO16: 38 | AR16: 17 | AS16: 24 | AV16: 5 | AW16: 48 | AZ16: 0 | BA16: 0 | BB16: 0 | BC16: 1 | BD16: 1 | BE16: 0 | BF16: 0 | BG16: 1 | BH16: 0 | BI16: 1 | BJ16: 0 | BK16: 0 | BL16: 0 | BM16: 0 | BN16: 0 | BO16: 1 | BP16: 2 | BQ16: 2 | BR16: 0 | BS16: 1 | BT16: 1 | BU16: 0 | BV16: 1 | BW16: 0 | BX16: 0 | BY16: 0 | BZ16: 0 | CA16: 0 | CB16: 0 | CC16: 0 | CD16: 0 | CE16: 0 | CF16: 0 | CG16: 0 | CH16: 0 | CI16: 0 | CJ16: 0 | CK16: 0 | CL16: 0 | CM16: 0 | CN16: 0
A17: 13 | B17: Lucas Rabelo | C17: 355 | D17: 18 | E17: 23 | H17: 3 | I17: 52 | L17: 28 | M17: 13 | P17: 3 | Q17: 52 | T17: 25 | U17: 16 | X17: 5 | Y17: 48 | AB17: 26 | AC17: 15 | AF17: 2 | AG17: 55 | AH17: 2 | AJ17: 15 | AK17: 28 | AN17: 30 | AO17: 11 | AR17: 4 | AS17: 50 | AW17: 0 | AY17: -10 | AZ17: 0 | BA17: 1 | BB17: 2 | BC17: 1 | BD17: 1 | BE17: 0 | BF17: 0 | BG17: 0 | BH17: 0 | BI17: 0 | BJ17: 0 | BK17: 0 | BL17: 0 | BM17: 0 | BN17: 1 | BO17: 0 | BP17: 0 | BQ17: 1 | BR17: 0 | BS17: 0 | BT17: 0 | BU17: 0 | BV17: 0 | BW17: 0 | BX17: 1 | BY17: 1 | BZ17: 0 | CA17: 1 | CB17: 0 | CC17: 1 | CD17: 0 | CE17: 0 | CF17: 0 | CG17: 0 | CH17: 0 | CI17: 0 | CJ17: 0 | CK17: 0 | CL17: 0 | CM17: 0 | CN17: 0
A18: 14 | B18: Samuel Farley | C18: 335 | D18: 13 | E18: 32 | H18: 29 | I18: 12 | L18: 10 | M18: 38 | P18: 25 | Q18: 16 | S18: SIM | T18: 28 | U18: 13 | X18: 6 | Y18: 46 | AB18: 19 | AC18: 22 | AF18: 15 | AG18: 28 | AJ18: 25 | AK18: 16 | AN18: 11 | AO18: 36 | AR18: 11 | AS18: 36 | AV18: 9 | AW18: 40 | AZ18: 0 | BA18: 0 | BB18: 0 | BC18: 0 | BD18: 0 | BE18: 1 | BF18: 0 | BG18: 0 | BH18: 1 | BI18: 1 | BJ18: 2 | BK18: 0 | BL18: 1 | BM18: 0 | BN18: 1 | BO18: 0 | BP18: 0 | BQ18: 0 | BR18: 1 | BS18: 0 | BT18: 0 | BU18: 0 | BV18: 0 | BW18: 0 | BX18: 2 | BY18: 0 | BZ18: 0 | CA18: 1 | CB18: 1 | CC18: 0 | CD18: 0 | CE18: 0 | CF18: 0 | CG18: 0 | CH18: 0 | CI18: 0 | CJ18: 0 | CK18: 0 | CL18: 0 | CM18: 0 | CN18: 0
A19: 15 | B19: Matheus Rocha | C19: 334 | D19: 16 | E19: 26 | H19: 25 | I19: 16 | K19: SIM | L19: 11 | M19: 36 | P19: 24 | Q19: 17 | T19: 7 | U19: 44 | X19: 23 | Y19: 18 | AB19: 28 | AC19: 13 | AF19: 12 | AG19: 34 | AJ19: 7 | AK19: 44 | AN19: 23 | AO19: 18 | AR19: 9 | AS19: 40 | AU19: -10 | AV19: 10 | AW19: 38 | AZ19: 0 | BA19: 0 | BB19: 0 | BC19: 0 | BD19: 0 | BE19: 0 | BF19: 2 | BG19: 0 | BH19: 1 | BI19: 1 | BJ19: 1 | BK19: 1 | BL19: 0 | BM19: 0 | BN19: 0 | BO19: 1 | BP19: 0 | BQ19: 0 | BR19: 0 | BS19: 0 | BT19: 0 | BU19: 0 | BV19: 2 | BW19: 1 | BX19: 1 | BY19: 0 | BZ19: 0 | CA19: 1 | CB19: 0 | CC19: 0 | CD19: 0 | CE19: 0 | CF19: 0 | CG19: 0 | CH19: 0 | CI19: 0 | CJ19: 0 | CK19: 0 | CL19: 0 | CM19: 0 | CN19: 0
A20: 16 | B20: Jarbas Reis | C20: 326 | D20: 19 | E20: 22 | H20: 7 | I20: 44 | L20: 12 | M20: 34 | P20: 31 | Q20: 10 | T20: 12 | U20: 34 | X20: 8 | Y20: 42 | AB20: 11 | AC20: 36 | AF20: 27 | AG20: 14 | AJ20: 16 | AK20: 26 | AN20: 12 | AO20: 34 | AR20: 14 | AS20: 30 | AW20: 0 | AZ20: 0 | BA20: 0 | BB20: 0 | BC20: 0 | BD20: 0 | BE20: 0 | BF20: 1 | BG20: 1 | BH20: 0 | BI20: 0 | BJ20: 1 | BK20: 3 | BL20: 0 | BM20: 1 | BN20: 0 | BO20: 1 | BP20: 0 | BQ20: 0 | BR20: 1 | BS20: 0 | BT20: 0 | BU20: 0 | BV20: 0 | BW20: 0 | BX20: 0 | BY20: 0 | BZ20: 1 | CA20: 0 | CB20: 0 | CC20: 0 | CD20: 1 | CE20: 0 | CF20: 0 | CG20: 0 | CH20: 0 | CI20: 0 | CJ20: 0 | CK20: 0 | CL20: 0 | CM20: 0 | CN20: 0
A21: 17 | B21: PetrÔnio Junior | C21: 290 | E21: 0 | G21: -10 | H21: 5 | I21: 48 | L21: 4 | M21: 50 | P21: 7 | Q21: 44 | T21: 11 | U21: 36 | X21: 30 | Y21: 11 | AC21: 0 | AF21: 26 | AG21: 15 | AJ21: 13 | AK21: 32 | AM21: SIM | AN21: 19 | AO21: 22 | AR21: 3 | AS21: 52 | AW21: 0 | AY21: -10 | AZ21: 0 | BA21: 0 | BB21: 1 | BC21: 1 | BD21: 1 | BE21: 0 | BF21: 1 | BG21: 0 | BH21: 0 | BI21: 0 | BJ21: 1 | BK21: 0 | BL21: 1 | BM21: 0 | BN21: 0 | BO21: 0 | BP21: 0 | BQ21: 0 | BR21: 1 | BS21: 0 | BT21: 0 | BU21: 0 | BV21: 0 | BW21: 0 | BX21: 0 | BY21: 1 | BZ21: 0 | CA21: 0 | CB21: 0 | CC21: 1 | CD21: 0 | CE21: 0 | CF21: 0 | CG21: 0 | CH21: 0 | CI21: 0 | CJ21: 0 | CK21: 0 | CL21: 0 | CM21: 0 | CN21: 0
A22: 18 | B22: Matheus Azevedo | C22: 273 | D22: 29 | E22: 12 | H22: 21 | I22: 20 | L22: 31 | M22: 10 | P22: 20 | Q22: 21 | T22: 23 | U22: 18 | X22: 18 | Y22: 23 | AB22: 8 | AC22: 42 | AF22: 13 | AG22: 32 | AJ22: 3 | AK22: 52 | AN22: 18 | AO22: 23 | AR22: 23 | AS22: 18 | AT22: 2 | AV22: 0 | AW22: 0 | AZ22: 0 | BA22: 0 | BB22: 1 | BC22: 0 | BD22: 0 | BE22: 0 | BF22: 0 | BG22: 1 | BH22: 0 | BI22: 0 | BJ22: 0 | BK22: 0 | BL22: 1 | BM22: 0 | BN22: 0 | BO22: 0 | BP22: 0 | BQ22: 2 | BR22: 0 | BS22: 1 | BT22: 1 | BU22: 0 | BV22: 2 | BW22: 0 | BX22: 0 | BY22: 0 | BZ22: 0 | CA22: 0 | CB22: 1 | CC22: 0 | CD22: 1 | CE22: 0 | CF22: 0 | CG22: 0 | CH22: 0 | CI22: 0 | CJ22: 0 | CK22: 0 | CL22: 0 | CM22: 0 | CN22: 0
A23: 19 | B23: Frederico Papatella | C23: 272 | D23: 24 | E23: 17 | I23: 0 | L23: 29 | M23: 12 | P23: 11 | Q23: 36 | T23: 9 | U23: 40 | X23: 21 | Y23: 20 | AB23: 23 | AC23: 18 | AF23: 7 | AG23: 44 | AJ23: 10 | AK23: 38 | AN23: 9 | AO23: 40 | AR23: 24 | AS23: 17 | AU23: SIM | AW23: 0 | AY23: -10 | AZ23: 0 | BA23: 0 | BB23: 0 | BC23: 0 | BD23: 0 | BE23: 0 | BF23: 1 | BG23: 0 | BH23: 2 | BI23: 1 | BJ23: 1 | BK23: 0 | BL23: 0 | BM23: 0 | BN23: 0 | BO23: 0 | BP23: 0 | BQ23: 0 | BR23: 0 | BS23: 0 | BT23: 1 | BU23: 0 | BV23: 1 | BW23: 2 | BX23: 0 | BY23: 0 | BZ23: 0 | CA23: 0 | CB23: 1 | CC23: 0 | CD23: 0 | CE23: 0 | CF23: 0 | CG23: 0 | CH23: 0 | CI23: 0 | CJ23: 0 | CK23: 0 | CL23: 0 | CM23: 0 | CN23: 0
A24: 20 | B24: Fernando Mota | C24: 253 | D24: 11 | E24: 36 | I24: 0 | M24: 0 | O24: -10 | Q24: 0 | S24: -10 | T24: 26 | U24: 15 | X24: 1 | Y24: 60 | Z24: 2 | AB24: 9 | AC24: 40 | AG24: 0 | AI24: -10 | AK24: 0 | AM24: -10 | AN24: 5 | AO24: 48 | AR24: 1 | AS24: 60 | AV24: 8 | AW24: 42 | AY24: -10 | AZ24: 2 | BA24: 0 | BB24: 0 | BC24: 0 | BD24: 1 | BE24: 0 | BF24: 0 | BG24: 1 | BH24: 1 | BI24: 0 | BJ24: 1 | BK24: 0 | BL24: 0 | BM24: 0 | BN24: 0 | BO24: 0 | BP24: 0 | BQ24: 0 | BR24: 0 | BS24: 0 | BT24: 0 | BU24: 0 | BV24: 0 | BW24: 0 | BX24: 0 | BY24: 1 | BZ24: 0 | CA24: 0 | CB24: 0 | CC24: 0 | CD24: 0 | CE24: 0 | CF24: 0 | CG24: 0 | CH24: 0 | CI24: 0 | CJ24: 0 | CK24: 0 | CL24: 0 | CM24: 0 | CN24: 0
A25: 21 | B25: Renato Martins | C25: 227 | D25: 33 | E25: 8 | H25: 26 | I25: 15 | L25: 33 | M25: 8 | P25: 28 | Q25: 13 | T25: 13 | U25: 32 | X25: 19 | Y25: 22 | AB25: 17 | AC25: 24 | AF25: 24 | AG25: 17 | AJ25: 20 | AK25: 21 | AN25: 26 | AO25: 15 | AR25: 16 | AS25: 26 | AV25: 16 | AW25: 26 | AZ25: 0 | BA25: 0 | BB25: 0 | BC25: 0 | BD25: 0 | BE25: 0 | BF25: 0 | BG25: 0 | BH25: 0 | BI25: 0 | BJ25: 0 | BK25: 0 | BL25: 1 | BM25: 0 | BN25: 0 | BO25: 2 | BP25: 1 | BQ25: 0 | BR25: 1 | BS25: 1 | BT25: 0 | BU25: 0 | BV25: 0 | BW25: 1 | BX25: 0 | BY25: 2 | BZ25: 0 | CA25: 1 | CB25: 0 | CC25: 0 | CD25: 0 | CE25: 0 | CF25: 2 | CG25: 0 | CH25: 0 | CI25: 0 | CJ25: 0 | CK25: 0 | CL25: 0 | CM25: 0 | CN25: 0
A26: 22 | B26: Felipe Curi | C26: 226 | D26: 28 | E26: 13 | H26: 14 | I26: 30 | L26: 6 | M26: 46 | P26: 14 | Q26: 30 | T26: 17 | U26: 24 | W26: SIM | Y26: 0 | AA26: -10 | AB26: 6 | AC26: 46 | AE26: -10 | AG26: 0 | AI26: -10 | AJ26: 9 | AK26: 40 | AN26: 2 | AO26: 55 | AP26: 2 | AQ26: -10 | AS26: 0 | AU26: -10 | AW26: 0 | AY26: -10 | AZ26: 0 | BA26: 1 | BB26: 0 | BC26: 0 | BD26: 0 | BE26: 2 | BF26: 0 | BG26: 0 | BH26: 1 | BI26: 0 | BJ26: 0 | BK26: 0 | BL26: 0 | BM26: 2 | BN26: 0 | BO26: 0 | BP26: 1 | BQ26: 0 | BR26: 0 | BS26: 0 | BT26: 0 | BU26: 0 | BV26: 0 | BW26: 0 | BX26: 0 | BY26: 0 | BZ26: 0 | CA26: 1 | CB26: 0 | CC26: 0 | CD26: 0 | CE26: 0 | CF26: 0 | CG26: 0 | CH26: 0 | CI26: 0 | CJ26: 0 | CK26: 0 | CL26: 0 | CM26: 0 | CN26: 0
A27: 23 | B27: Jean Paul | C27: 201 | D27: 12 | E27: 34 | H27: 10 | I27: 38 | L27: 27 | M27: 14 | P27: 21 | Q27: 20 | T27: 24 | U27: 17 | X27: 22 | Y27: 19 | AB27: 20 | AC27: 21 | AF27: 19 | AG27: 22 | AJ27: 27 | AK27: 14 | AN27: 29 | AO27: 12 | AS27: 0 | AW27: 0 | AY27: -10 | AZ27: 0 | BA27: 0 | BB27: 0 | BC27: 0 | BD27: 0 | BE27: 0 | BF27: 0 | BG27: 0 | BH27: 0 | BI27: 1 | BJ27: 0 | BK27: 1 | BL27: 0 | BM27: 0 | BN27: 0 | BO27: 0 | BP27: 0 | BQ27: 0 | BR27: 1 | BS27: 1 | BT27: 1 | BU27: 1 | BV27: 0 | BW27: 1 | BX27: 0 | BY27: 0 | BZ27: 2 | CA27: 0 | CB27: 1 | CC27: 0 | CD27: 0 | CE27: 0 | CF27: 0 | CG27: 0 | CH27: 0 | CI27: 0 | CJ27: 0 | CK27: 0 | CL27: 0 | CM27: 0 | CN27: 0
A28: 24 | B28: Saulo Chagas | C28: 186 | D28: 2 | E28: 55 | I28: 0 | L28: 15 | M28: 28 | P28: 19 | Q28: 22 | T28: 27 | U28: 14 | X28: 26 | Y28: 15 | AB28: 5 | AC28: 48 | AG28: 0 | AK28: 0 | AN28: 27 | AO28: 14 | AS28: 0 | AW28: 0 | AY28: -10 | AZ28: 0 | BA28: 1 | BB28: 0 | BC28: 0 | BD28: 1 | BE28: 0 | BF28: 0 | BG28: 0 | BH28: 0 | BI28: 0 | BJ28: 0 | BK28: 0 | BL28: 0 | BM28: 0 | BN28: 1 | BO28: 0 | BP28: 0 | BQ28: 0 | BR28: 1 | BS28: 0 | BT28: 0 | BU28: 0 | BV28: 0 | BW28: 0 | BX28: 0 | BY28: 1 | BZ28: 2 | CA28: 0 | CB28: 0 | CC28: 0 | CD28: 0 | CE28: 0 | CF28: 0 | CG28: 0 | CH28: 0 | CI28: 0 | CJ28: 0 | CK28: 0 | CL28: 0 | CM28: 0 | CN28: 0
A29: 25 | B29: Celso Dantas | C29: 178 | D29: 31 | E29: 10 | H29: 24 | I29: 17 | L29: 35 | M29: 6 | P29: 30 | Q29: 11 | T29: 22 | U29: 19 | X29: 25 | Y29: 16 | AB29: 24 | AC29: 17 | AF29: 20 | AG29: 21 | AI29: -10 | AJ29: 21 | AK29: 20 | AM29: -10 | AN29: 20 | AO29: 21 | AR29: 25 | AS29: 16 | AV29: 17 | AW29: 24 | AZ29: 0 | BA29: 0 | BB29: 0 | BC29: 0 | BD29: 0 | BE29: 0 | BF29: 0 | BG29: 0 | BH29: 0 | BI29: 0 | BJ29: 0 | BK29: 0 | BL29: 0 | BM29: 0 | BN29: 0 | BO29: 0 | BP29: 1 | BQ29: 0 | BR29: 0 | BS29: 2 | BT29: 1 | BU29: 1 | BV29: 0 | BW29: 2 | BX29: 2 | BY29: 0 | BZ29: 0 | CA29: 0 | CB29: 0 | CC29: 1 | CD29: 1 | CE29: 0 | CF29: 0 | CG29: 0 | CH29: 1 | CI29: 0 | CJ29: 0 | CK29: 0 | CL29: 0 | CM29: 0 | CN29: 0
A30: 26 | B30: Henry Douglas | C30: 177 | E30: 0 | G30: -10 | H30: 28 | I30: 13 | L30: 23 | M30: 18 | P30: 5 | Q30: 48 | U30: 0 | W30: -10 | X30: 20 | Y30: 21 | AB30: 27 | AC30: 14 | AF30: 22 | AG30: 19 | AJ30: 18 | AK30: 23 | AN30: 22 | AO30: 19 | AS30: 0 | AV30: 19 | AW30: 22 | AZ30: 0 | BA30: 0 | BB30: 0 | BC30: 0 | BD30: 1 | BE30: 0 | BF30: 0 | BG30: 0 | BH30: 0 | BI30: 0 | BJ30: 0 | BK30: 0 | BL30: 0 | BM30: 0 | BN30: 0 | BO30: 0 | BP30: 0 | BQ30: 1 | BR30: 1 | BS30: 1 | BT30: 0 | BU30: 2 | BV30: 1 | BW30: 0 | BX30: 0 | BY30: 0 | BZ30: 1 | CA30: 1 | CB30: 0 | CC30: 0 | CD30: 0 | CE30: 0 | CF30: 0 | CG30: 0 | CH30: 0 | CI30: 0 | CJ30: 0 | CK30: 0 | CL30: 0 | CM30: 0 | CN30: 0
A31: 27 | B31: Guilherme Camarano | C31: 153 | D31: 37 | E31: 4 | H31: 8 | I31: 42 | L31: 37 | M31: 4 | P31: 22 | Q31: 19 | S31: SIM | U31: 0 | Y31: 0 | AA31: -10 | AB31: 16 | AC31: 26 | AF31: 1 | AG31: 60 | AJ31: 26 | AK31: 15 | AN31: 28 | AO31: 13 | AS31: 0 | AU31: -10 | AW31: 0 | AY31: -10 | AZ31: 1 | BA31: 0 | BB31: 0 | BC31: 0 | BD31: 0 | BE31: 0 | BF31: 0 | BG31: 1 | BH31: 0 | BI31: 0 | BJ31: 0 | BK31: 0 | BL31: 0 | BM31: 0 | BN31: 0 | BO31: 1 | BP31: 0 | BQ31: 0 | BR31: 0 | BS31: 0 | BT31: 0 | BU31: 1 | BV31: 0 | BW31: 0 | BX31: 0 | BY31: 1 | BZ31: 0 | CA31: 1 | CB31: 0 | CC31: 0 | CD31: 0 | CE31: 0 | CF31: 0 | CG31: 0 | CH31: 0 | CI31: 0 | CJ31: 2 | CK31: 0 | CL31: 0 | CM31: 0 | CN31: 0
A32: 28 | B32: Aparecido Arantes | C32: 135 | E32: 0 | H32: 16 | I32: 26 | L32: 20 | M32: 21 | Q32: 0 | U32: 0 | Y32: 0 | AB32: 21 | AC32: 20 | AF32: 14 | AG32: 30 | AK32: 0 | AO32: 0 | AR32: 10 | AS32: 38 | AW32: 0 | AZ32: 0 | BA32: 0 | BB32: 0 | BC32: 0 | BD32: 0 | BE32: 0 | BF32: 0 | BG32: 0 | BH32: 0 | BI32: 1 | BJ32: 0 | BK32: 0 | BL32: 0 | BM32: 1 | BN32: 0 | BO32: 1 | BP32: 0 | BQ32: 0 | BR32: 0 | BS32: 1 | BT32: 1 | BU32: 0 | BV32: 0 | BW32: 0 | BX32: 0 | BY32: 0 | BZ32: 0 | CA32: 0 | CB32: 0 | CC32: 0 | CD32: 0 | CE32: 0 | CF32: 0 | CG32: 0 | CH32: 0 | CI32: 0 | CJ32: 0 | CK32: 0 | CL32: 0 | CM32: 0 | CN32: 0
A33: 29 | B33: Levindo Neto | C33: 127 | D33: 38 | E33: 3 | H33: 33 | I33: 8 | L33: 36 | M33: 5 | Q33: 0 | U33: 0 | X33: 27 | Y33: 14 | AB33: 25 | AC33: 16 | AF33: 35 | AG33: 6 | AI33: SIM | AJ33: 22 | AK33: 19 | AN33: 25 | AO33: 16 | AR33: 21 | AS33: 20 | AV33: 21 | AW33: 20 | AZ33: 0 | BA33: 0 | BB33: 0 | BC33: 0 | BD33: 0 | BE33: 0 | BF33: 0 | BG33: 0 | BH33: 0 | BI33: 0 | BJ33: 0 | BK33: 0 | BL33: 0 | BM33: 0 | BN33: 0 | BO33: 0 | BP33: 0 | BQ33: 0 | BR33: 0 | BS33: 0 | BT33: 2 | BU33: 1 | BV33: 0 | BW33: 0 | BX33: 2 | BY33: 0 | BZ33: 1 | CA33: 0 | CB33: 0 | CC33: 0 | CD33: 0 | CE33: 0 | CF33: 1 | CG33: 0 | CH33: 1 | CI33: 1 | CJ33: 0 | CK33: 1 | CL33: 0 | CM33: 0 | CN33: 0
A34: 30 | B34: Bruno Camargos | C34: 111 | D34: 32 | E34: 9 | H34: 31 | I34: 10 | K34: SIM | L34: 25 | M34: 16 | P34: 32 | Q34: 9 | T34: 16 | U34: 26 | W34: -10 | X34: 14 | Y34: 30 | AB34: 22 | AC34: 19 | AG34: 0 | AI34: -10 | AK34: 0 | AM34: -10 | AN34: 13 | AO34: 32 | AS34: 0 | AW34: 0 | AY34: -10 | AZ34: 0 | BA34: 0 | BB34: 0 | BC34: 0 | BD34: 0 | BE34: 0 | BF34: 0 | BG34: 0 | BH34: 0 | BI34: 0 | BJ34: 0 | BK34: 0 | BL34: 1 | BM34: 1 | BN34: 0 | BO34: 1 | BP34: 0 | BQ34: 0 | BR34: 0 | BS34: 0 | BT34: 0 | BU34: 1 | BV34: 0 | BW34: 0 | BX34: 1 | BY34: 0 | BZ34: 0 | CA34: 0 | CB34: 0 | CC34: 0 | CD34: 1 | CE34: 2 | CF34: 0 | CG34: 0 | CH34: 0 | CI34: 0 | CJ34: 0 | CK34: 0 | CL34: 0 | CM34: 0 | CN34: 0
A35: 31 | B35: Alan Moreira | C35: 101 | D35: 26 | E35: 15 | H35: 32 | I35: 9 | L35: 16 | M35: 26 | P35: 26 | Q35: 15 | U35: 0 | W35: -10 | X35: 10 | Y35: 38 | AC35: 0 | AE35: -10 | AF35: 16 | AG35: 26 | AJ35: 19 | AK35: 22 | AO35: 0 | AQ35: -10 | AS35: 0 | AU35: -10 | AW35: 0 | AY35: -10 | AZ35: 0 | BA35: 0 | BB35: 0 | BC35: 0 | BD35: 0 | BE35: 0 | BF35: 0 | BG35: 0 | BH35: 0 | BI35: 1 | BJ35: 0 | BK35: 0 | BL35: 0 | BM35: 0 | BN35: 0 | BO35: 2 | BP35: 0 | BQ35: 0 | BR35: 1 | BS35: 0 | BT35: 0 | BU35: 0 | BV35: 0 | BW35: 0 | BX35: 0 | BY35: 2 | BZ35: 0 | CA35: 0 | CB35: 0 | CC35: 0 | CD35: 0 | CE35: 1 | CF35: 0 | CG35: 0 | CH35: 0 | CI35: 0 | CJ35: 0 | CK35: 0 | CL35: 0 | CM35: 0 | CN35: 0
A36: 32 | B36: Thiago Azevedo | C36: 97 | D36: 35 | E36: 6 | H36: 22 | I36: 19 | L36: 34 | M36: 7 | P36: 27 | Q36: 14 | T36: 21 | U36: 20 | W36: -10 | Y36: 0 | AC36: 0 | AE36: -10 | AG36: 0 | AI36: -10 | AJ36: 23 | AK36: 18 | AM36: -10 | AN36: 21 | AO36: 20 | AQ36: -10 | AR36: 19 | AS36: 22 | AV36: 20 | AW36: 21 | AZ36: 0 | BA36: 0 | BB36: 0 | BC36: 0 | BD36: 0 | BE36: 0 | BF36: 0 | BG36: 0 | BH36: 0 | BI36: 0 | BJ36: 0 | BK36: 0 | BL36: 0 | BM36: 0 | BN36: 0 | BO36: 0 | BP36: 0 | BQ36: 0 | BR36: 1 | BS36: 1 | BT36: 2 | BU36: 1 | BV36: 1 | BW36: 0 | BX36: 0 | BY36: 0 | BZ36: 1 | CA36: 0 | CB36: 0 | CC36: 0 | CD36: 0 | CE36: 0 | CF36: 0 | CG36: 1 | CH36: 1 | CI36: 0 | CJ36: 0 | CK36: 0 | CL36: 0 | CM36: 0 | CN36: 0
A37: 33 | B37: Thiago Santos | C37: 84 | D37: 36 | E37: 5 | H37: 20 | I37: 21 | L37: 26 | M37: 15 | Q37: 0 | T37: 18 | U37: 23 | X37: 28 | Y37: 13 | AC37: 0 | AG37: 0 | AI37: -10 | AJ37: 24 | AK37: 17 | AO37: 0 | AS37: 0 | AW37: 0 | AZ37: 0 | BA37: 0 | BB37: 0 | BC37: 0 | BD37: 0 | BE37: 0 | BF37: 0 | BG37: 0 | BH37: 0 | BI37: 0 | BJ37: 0 | BK37: 0 | BL37: 0 | BM37: 0 | BN37: 0 | BO37: 0 | BP37: 0 | BQ37: 1 | BR37: 0 | BS37: 1 | BT37: 0 | BU37: 0 | BV37: 0 | BW37: 1 | BX37: 0 | BY37: 1 | BZ37: 0 | CA37: 1 | CB37: 0 | CC37: 0 | CD37: 0 | CE37: 0 | CF37: 0 | CG37: 0 | CH37: 0 | CI37: 1 | CJ37: 0 | CK37: 0 | CL37: 0 | CM37: 0 | CN37: 0
A38: 34 | B38: Thales Almeida | C38: 82 | D38: 22 | E38: 19 | H38: 13 | I38: 32 | L38: 22 | M38: 19 | P38: 9 | Q38: 40 | T38: 29 | U38: 12 | Y38: 0 | AA38: -10 | AC38: 0 | AG38: 0 | AI38: -10 | AK38: 0 | AO38: 0 | AQ38: -10 | AS38: 0 | AW38: 0 | AY38: -10 | AZ38: 0 | BA38: 0 | BB38: 0 | BC38: 0 | BD38: 0 | BE38: 0 | BF38: 0 | BG38: 0 | BH38: 1 | BI38: 0 | BJ38: 0 | BK38: 0 | BL38: 1 | BM38: 0 | BN38: 0 | BO38: 0 | BP38: 0 | BQ38: 0 | BR38: 0 | BS38: 0 | BT38: 0 | BU38: 2 | BV38: 0 | BW38: 0 | BX38: 0 | BY38: 0 | BZ38: 0 | CA38: 0 | CB38: 1 | CC38: 0 | CD38: 0 | CE38: 0 | CF38: 0 | CG38: 0 | CH38: 0 | CI38: 0 | CJ38: 0 | CK38: 0 | CL38: 0 | CM38: 0 | CN38: 0
A39: 35 | B39: Gustavo Barros | C39: 54 | D39: 39 | E39: 2 | I39: 0 | L39: 14 | M39: 30 | P39: 29 | Q39: 12 | S39: SIM | U39: 0 | X39: 29 | Y39: 12 | AC39: 0 | AF39: 23 | AG39: 18 | AK39: 0 | AO39: 0 | AQ39: -10 | AS39: 0 | AW39: 0 | AY39: -10 | AZ39: 0 | BA39: 0 | BB39: 0 | BC39: 0 | BD39: 0 | BE39: 0 | BF39: 0 | BG39: 0 | BH39: 0 | BI39: 0 | BJ39: 0 | BK39: 0 | BL39: 0 | BM39: 1 | BN39: 0 | BO39: 0 | BP39: 0 | BQ39: 0 | BR39: 0 | BS39: 0 | BT39: 0 | BU39: 0 | BV39: 1 | BW39: 0 | BX39: 0 | BY39: 0 | BZ39: 0 | CA39: 0 | CB39: 2 | CC39: 0 | CD39: 0 | CE39: 0 | CF39: 0 | CG39: 0 | CH39: 0 | CI39: 0 | CJ39: 0 | CK39: 0 | CL39: 1 | CM39: 0 | CN39: 0
A40: 36 | B40: Tafarel Henrique | C40: 53 | D40: 27 | E40: 14 | H40: 19 | I40: 22 | L40: 32 | M40: 9 | P40: 6 | Q40: 46 | T40: 19 | U40: 22 | Y40: 0 | AC40: 0 | AE40: -10 | AG40: 0 | AI40: -10 | AK40: 0 | AM40: -10 | AO40: 0 | AQ40: -10 | AS40: 0 | AU40: -10 | AW40: 0 | AY40: -10 | AZ40: 0 | BA40: 0 | BB40: 0 | BC40: 0 | BD40: 0 | BE40: 1 | BF40: 0 | BG40: 0 | BH40: 0 | BI40: 0 | BJ40: 0 | BK40: 0 | BL40: 0 | BM40: 0 | BN40: 0 | BO40: 0 | BP40: 0 | BQ40: 0 | BR40: 2 | BS40: 0 | BT40: 0 | BU40: 0 | BV40: 0 | BW40: 0 | BX40: 0 | BY40: 0 | BZ40: 1 | CA40: 0 | CB40: 0 | CC40: 0 | CD40: 0 | CE40: 1 | CF40: 0 | CG40: 0 | CH40: 0 | CI40: 0 | CJ40: 0 | CK40: 0 | CL40: 0 | CM40: 0 | CN40: 0
A41: 37 | B41: Luiz Azevedo | C41: 9 | D41: 21 | E41: 20 | H41: 15 | I41: 28 | K41: SIM | L41: 18 | M41: 23 | P41: 23 | Q41: 18 | U41: 0 | W41: -10 | Y41: 0 | AA41: -10 | AC41: 0 | AE41: -10 | AG41: 0 | AI41: -10 | AK41: 0 | AM41: -10 | AO41: 0 | AQ41: -10 | AS41: 0 | AU41: -10 | AW41: 0 | AY41: -10 | AZ41: 0 | BA41: 0 | BB41: 0 | BC41: 0 | BD41: 0 | BE41: 0 | BF41: 0 | BG41: 0 | BH41: 0 | BI41: 0 | BJ41: 0 | BK41: 0 | BL41: 0 | BM41: 0 | BN41: 1 | BO41: 0 | BP41: 0 | BQ41: 1 | BR41: 0 | BS41: 0 | BT41: 1 | BU41: 0 | BV41: 1 | BW41: 0 | BX41: 0 | BY41: 0 | BZ41: 0 | CA41: 0 | CB41: 0 | CC41: 0 | CD41: 0 | CE41: 0 | CF41: 0 | CG41: 0 | CH41: 0 | CI41: 0 | CJ41: 0 | CK41: 0 | CL41: 0 | CM41: 0 | CN41: 0
A42: 38 | B42: Pedro Fialho | C42: 0 | D42: 4 | E42: 50 | I42: 0 | M42: 0 | Q42: 0 | U42: 0 | Y42: 0 | AC42: 0 | AG42: 0 | AI42: -10 | AK42: 0 | AM42: -10 | AO42: 0 | AQ42: -10 | AS42: 0 | AU42: -10 | AW42: 0 | AY42: -10 | AZ42: 0 | BA42: 0 | BB42: 0 | BC42: 1 | BD42: 0 | BE42: 0 | BF42: 0 | BG42: 0 | BH42: 0 | BI42: 0 | BJ42: 0 | BK42: 0 | BL42: 0 | BM42: 0 | BN42: 0 | BO42: 0 | BP42: 0 | BQ42: 0 | BR42: 0 | BS42: 0 | BT42: 0 | BU42: 0 | BV42: 0 | BW42: 0 | BX42: 0 | BY42: 0 | BZ42: 0 | CA42: 0 | CB42: 0 | CC42: 0 | CD42: 0 | CE42: 0 | CF42: 0 | CG42: 0 | CH42: 0 | CI42: 0 | CJ42: 0 | CK42: 0 | CL42: 0 | CM42: 0 | CN42: 0
A43: 39 | B43: Marcus Silva | C43: 0 | D43: 6 | E43: 46 | I43: 0 | K43: -10 | M43: 0 | O43: -10 | P43: 10 | Q43: 38 | R43: 2 | U43: 0 | W43: -10 | Y43: 0 | AA43: -10 | AC43: 0 | AE43: -10 | AG43: 0 | AI43: -10 | AK43: 0 | AM43: -10 | AO43: 0 | AQ43: -10 | AS43: 0 | AU43: -10 | AW43: 0 | AY43: -10 | AZ43: 0 | BA43: 0 | BB43: 0 | BC43: 0 | BD43: 0 | BE43: 1 | BF43: 0 | BG43: 0 | BH43: 0 | BI43: 1 | BJ43: 0 | BK43: 0 | BL43: 0 | BM43: 0 | BN43: 0 | BO43: 0 | BP43: 0 | BQ43: 0 | BR43: 0 | BS43: 0 | BT43: 0 | BU43: 0 | BV43: 0 | BW43: 0 | BX43: 0 | BY43: 0 | BZ43: 0 | CA43: 0 | CB43: 0 | CC43: 0 | CD43: 0 | CE43: 0 | CF43: 0 | CG43: 0 | CH43: 0 | CI43: 0 | CJ43: 0 | CK43: 0 | CL43: 0 | CM43: 0 | CN43: 0
A44: 40 | B44: Luciano Robervine | C44: 0 | D44: 30 | E44: 11 | H44: 27 | I44: 14 | M44: 0 | O44: -10 | Q44: 0 | U44: 0 | W44: -10 | Y44: 0 | AA44: -10 | AC44: 0 | AE44: -10 | AG44: 0 | AI44: -10 | AK44: 0 | AM44: -10 | AO44: 0 | AQ44: -10 | AR44: 22 | AS44: 19 | AV44: 18 | AW44: 23 | AZ44: 0 | BA44: 0 | BB44: 0 | BC44: 0 | BD44: 0 | BE44: 0 | BF44: 0 | BG44: 0 | BH44: 0 | BI44: 0 | BJ44: 0 | BK44: 0 | BL44: 0 | BM44: 0 | BN44: 0 | BO44: 0 | BP44: 0 | BQ44: 1 | BR44: 0 | BS44: 0 | BT44: 0 | BU44: 1 | BV44: 0 | BW44: 0 | BX44: 0 | BY44: 0 | BZ44: 1 | CA44: 0 | CB44: 0 | CC44: 1 | CD44: 0 | CE44: 0 | CF44: 0 | CG44: 0 | CH44: 0 | CI44: 0 | CJ44: 0 | CK44: 0 | CL44: 0 | CM44: 0 | CN44: 0
A45: 41 | B45: Pedro Avelar | C45: 0 | D45: 25 | E45: 16 | I45: 0 | M45: 0 | Q45: 0 | U45: 0 | Y45: 0 | AC45: 0 | AG45: 0 | AI45: -10 | AK45: 0 | AM45: -10 | AO45: 0 | AS45: 0 | AU45: -10 | AW45: 0 | AY45: -10 | AZ45: 0 | BA45: 0 | BB45: 0 | BC45: 0 | BD45: 0 | BE45: 0 | BF45: 0 | BG45: 0 | BH45: 0 | BI45: 0 | BJ45: 0 | BK45: 0 | BL45: 0 | BM45: 0 | BN45: 0 | BO45: 0 | BP45: 0 | BQ45: 0 | BR45: 0 | BS45: 0 | BT45: 0 | BU45: 0 | BV45: 0 | BW45: 0 | BX45: 1 | BY45: 0 | BZ45: 0 | CA45: 0 | CB45: 0 | CC45: 0 | CD45: 0 | CE45: 0 | CF45: 0 | CG45: 0 | CH45: 0 | CI45: 0 | CJ45: 0 | CK45: 0 | CL45: 0 | CM45: 0 | CN45: 0
A46: 42 | B46: Edmárcio Júnior | C46: 0 | D46: 34 | E46: 7 | G46: SIM | H46: 30 | I46: 11 | L46: 30 | M46: 11 | Q46: 0 | U46: 0 | Y46: 0 | AC46: 0 | AE46: -10 | AG46: 0 | AK46: 0 | AM46: -10 | AO46: 0 | AQ46: -10 | AS46: 0 | AU46: -10 | AW46: 0 | AY46: -10 | AZ46: 0 | BA46: 0 | BB46: 0 | BC46: 0 | BD46: 0 | BE46: 0 | BF46: 0 | BG46: 0 | BH46: 0 | BI46: 0 | BJ46: 0 | BK46: 0 | BL46: 0 | BM46: 0 | BN46: 0 | BO46: 0 | BP46: 0 | BQ46: 0 | BR46: 0 | BS46: 0 | BT46: 0 | BU46: 0 | BV46: 0 | BW46: 0 | BX46: 0 | BY46: 0 | BZ46: 0 | CA46: 0 | CB46: 0 | CC46: 2 | CD46: 0 | CE46: 0 | CF46: 0 | CG46: 1 | CH46: 0 | CI46: 0 | CJ46: 0 | CK46: 0 | CL46: 0 | CM46: 0 | CN46: 0
A47: 43 | B47: Márcio Tadeu | C47: 0 | E47: 0 | G47: -10 | H47: 35 | I47: 6 | M47: 0 | O47: -10 | Q47: 0 | S47: -10 | U47: 0 | W47: -10 | Y47: 0 | AA47: -10 | AC47: 0 | AE47: -10 | AG47: 0 | AI47: -10 | AK47: 0 | AM47: -10 | AO47: 0 | AQ47: -10 | AS47: 0 | AU47: -10 | AW47: 0 | AY47: -10 | AZ47: 0 | BA47: 0 | BB47: 0 | BC47: 0 | BD47: 0 | BE47: 0 | BF47: 0 | BG47: 0 | BH47: 0 | BI47: 0 | BJ47: 0 | BK47: 0 | BL47: 0 | BM47: 0 | BN47: 0 | BO47: 0 | BP47: 0 | BQ47: 0 | BR47: 0 | BS47: 0 | BT47: 0 | BU47: 0 | BV47: 0 | BW47: 0 | BX47: 0 | BY47: 0 | BZ47: 0 | CA47: 0 | CB47: 0 | CC47: 0 | CD47: 0 | CE47: 0 | CF47: 0 | CG47: 0 | CH47: 1 | CI47: 0 | CJ47: 0 | CK47: 0 | CL47: 0 | CM47: 0 | CN47: 0
A48: 44 | B48: Carlos Gomes | C48: 0 | E48: 0 | I48: 0 | M48: 0 | Q48: 0 | U48: 0 | W48: -10 | Y48: 0 | AC48: 0 | AG48: 0 | AK48: 0 | AO48: 0 | AS48: 0 | AW48: 0 | AZ48: 0 | BA48: 0 | BB48: 0 | BC48: 0 | BD48: 0 | BE48: 0 | BF48: 0 | BG48: 0 | BH48: 0 | BI48: 0 | BJ48: 0 | BK48: 0 | BL48: 0 | BM48: 0 | BN48: 0 | BO48: 0 | BP48: 0 | BQ48: 0 | BR48: 0 | BS48: 0 | BT48: 0 | BU48: 0 | BV48: 0 | BW48: 0 | BX48: 0 | BY48: 0 | BZ48: 0 | CA48: 0 | CB48: 0 | CC48: 0 | CD48: 0 | CE48: 0 | CF48: 0 | CG48: 0 | CH48: 0 | CI48: 0 | CJ48: 0 | CK48: 0 | CL48: 0 | CM48: 0 | CN48: 0
A49: 45 | B49: Robert Freitas | C49: 0 | E49: 0 | I49: 0 | M49: 0 | Q49: 0 | S49: -10 | U49: 0 | W49: -10 | Y49: 0 | AA49: -10 | AC49: 0 | AE49: -10 | AG49: 0 | AI49: -10 | AK49: 0 | AM49: -10 | AO49: 0 | AQ49: -10 | AS49: 0 | AU49: -10 | AW49: 0 | AY49: -10 | AZ49: 0 | BA49: 0 | BB49: 0 | BC49: 0 | BD49: 0 | BE49: 0 | BF49: 0 | BG49: 0 | BH49: 0 | BI49: 0 | BJ49: 0 | BK49: 0 | BL49: 0 | BM49: 0 | BN49: 0 | BO49: 0 | BP49: 0 | BQ49: 0 | BR49: 0 | BS49: 0 | BT49: 0 | BU49: 0 | BV49: 0 | BW49: 0 | BX49: 0 | BY49: 0 | BZ49: 0 | CA49: 0 | CB49: 0 | CC49: 0 | CD49: 0 | CE49: 0 | CF49: 0 | CG49: 0 | CH49: 0 | CI49: 0 | CJ49: 0 | CK49: 0 | CL49: 0 | CM49: 0 | CN49: 0

Sheet Class. elimin. 2 piores res
A1: 2021 | E1: OK | I1: OK | M1: OK | Q1: OK | U1: OK | Y1: OK | AC1: OK | AG1: OK | AK1: OK | AO1: OK | AS1: OK | AW1: OK
D2: 1ª etapa | H2: 2ª etapa | L2: 3ª etapa | P2: 4ª etapa | T2: 5ª etapa | X2: 6ª etapa | AB2: 7ª etapa | AF2: 8ª etapa | AJ2: 9ª etapa | AN2: 10ª etapa | AR2: 11ª etapa | AV2: 12ª etapa
B4: Nome do (a) Piloto (a) | C4: Pontuação Geral | D4: Posição | E4: Pontos | F4: Bônus | G4: Penalidade | H4: Posição | I4: Pontos | J4: Bônus | K4: Penalidade | L4: Posição | M4: Pontos | N4: Bônus | O4: Penalidade | P4: Posição | Q4: Pontos | R4: Bônus | S4: Penalidade | T4: Posição | U4: Pontos | V4: Bônus | W4: Penalidade | X4: Posição | Y4: Pontos | Z4: Bônus | AA4: Penalidade | AB4: Posição | AC4: Pontos | AD4: Bônus | AE4: Penalidade | AF4: Posição | AG4: Pontos | AH4: Bônus | AI4: Penalidade | AJ4: Posição | AK4: Pontos | AL4: Bônus | AM4: Penalidade | AN4: Posição | AO4: Pontos | AP4: Bônus | AQ4: Penalidade | AR4: Posição | AS4: Pontos | AT4: Bônus | AU4: Penalidade | AV4: Posição | AW4: Pontos | AX4: Bônus | AY4: Penalidade | AZ4: 1º LUGAR | BA4: 2º LUGAR | BB4: 3º LUGAR | BC4: 4º LUGAR | BD4: 5º LUGAR | BE4: 6º LUGAR | BF4: 7º LUGAR | BG4: 8º LUGAR | BH4: 9º LUGAR | BI4: 10º LUGAR | BJ4: 11º LUGAR | BK4: 12º LUGAR | BL4: 13º LUGAR | BM4: 14º LUGAR | BN4: 15º LUGAR | BO4: 16º LUGAR | BP4: 17º LUGAR | BQ4: 18º LUGAR | BR4: 19º LUGAR | BS4: 20º LUGAR | BT4: 21º LUGAR | BU4: 22º LUGAR | BV4: 23º LUGAR | BW4: 24º LUGAR | BX4: 25º LUGAR | BY4: 26º LUGAR | BZ4: 27º LUGAR | CA4: 28º LUGAR | CB4: 29º LUGAR | CC4: 30º LUGAR | CD4: 31º LUGAR | CE4: 32º LUGAR | CF4: 33º LUGAR | CG4: 34º LUGAR | CH4: 35º LUGAR | CI4: 36º LUGAR | CJ4: 37º LUGAR | CK4: 38º LUGAR | CL4: 39º LUGAR | CM4: 40º LUGAR | CN4: 41º LUGAR
A5: 1 | B5: Léo Oliveira | C5: 550 | D5: 1 | E5: 60 | F5: 2 | I5: 0* | L5: 3 | M5: 52 | P5: 2 | Q5: 55 | T5: 2 | U5: 55 | X5: 4 | Y5: 50 | AC5: 0* | AF5: 5 | AG5: 48 | AJ5: 1 | AK5: 60 | AN5: 1 | AO5: 60 | AR5: 6 | AS5: 46 | AV5: 1 | AW5: 60 | AX5: 2 | AZ5: 4 | BA5: 2 | BB5: 1 | BC5: 1 | BD5: 1 | BE5: 1 | BF5: 0 | BG5: 0 | BH5: 0 | BI5: 0 | BJ5: 0 | BK5: 0 | BL5: 0 | BM5: 0 | BN5: 0 | BO5: 0 | BP5: 0 | BQ5: 0 | BR5: 0 | BS5: 0 | BT5: 0 | BU5: 0 | BV5: 0 | BW5: 0 | BX5: 0 | BY5: 0 | BZ5: 0 | CA5: 0 | CB5: 0 | CC5: 0 | CD5: 0 | CE5: 0 | CF5: 0 | CG5: 0 | CH5: 0 | CI5: 0 | CJ5: 0 | CK5: 0 | CL5: 0 | CM5: 0 | CN5: 0
A6: 2 | B6: Rafael Miranda | C6: 504 | D6: 23 | E6: 18* | H6: 34 | I6: 7* | L6: 2 | M6: 55 | P6: 1 | Q6: 60 | T6: 4 | U6: 50 | X6: 2 | Y6: 55 | AB6: 4 | AC6: 50 | AF6: 6 | AG6: 46 | AJ6: 4 | AK6: 50 | AN6: 15 | AO6: 28 | AR6: 2 | AS6: 55 | AV6: 2 | AW6: 55 | AZ6: 1 | BA6: 4 | BB6: 0 | BC6: 3 | BD6: 0 | BE6: 1 | BF6: 0 | BG6: 0 | BH6: 0 | BI6: 0 | BJ6: 0 | BK6: 0 | BL6: 0 | BM6: 0 | BN6: 1 | BO6: 0 | BP6: 0 | BQ6: 0 | BR6: 0 | BS6: 0 | BT6: 0 | BU6: 0 | BV6: 1 | BW6: 0 | BX6: 0 | BY6: 0 | BZ6: 0 | CA6: 0 | CB6: 0 | CC6: 0 | CD6: 0 | CE6: 0 | CF6: 0 | CG6: 1 | CH6: 0 | CI6: 0 | CJ6: 0 | CK6: 0 | CL6: 0 | CM6: 0 | CN6: 0
A7: 3 | B7: Gui Figueiredo | C7: 485 | D7: 9 | E7: 40 | H7: 1 | I7: 60 | L7: 8 | M7: 42 | P7: 33 | Q7: 8* | T7: 5 | U7: 48 | X7: 3 | Y7: 52 | AB7: 14 | AC7: 30* | AF7: 3 | AG7: 52 | AJ7: 2 | AK7: 55 | AL7: 2 | AN7: 6 | AO7: 46 | AR7: 8 | AS7: 42 | AV7: 6 | AW7: 46 | AZ7: 1 | BA7: 1 | BB7: 2 | BC7: 0 | BD7: 1 | BE7: 2 | BF7: 0 | BG7: 2 | BH7: 1 | BI7: 0 | BJ7: 0 | BK7: 0 | BL7: 0 | BM7: 1 | BN7: 0 | BO7: 0 | BP7: 0 | BQ7: 0 | BR7: 0 | BS7: 0 | BT7: 0 | BU7: 0 | BV7: 0 | BW7: 0 | BX7: 0 | BY7: 0 | BZ7: 0 | CA7: 0 | CB7: 0 | CC7: 0 | CD7: 0 | CE7: 0 | CF7: 1 | CG7: 0 | CH7: 0 | CI7: 0 | CJ7: 0 | CK7: 0 | CL7: 0 | CM7: 0 | CN7: 0
A8: 4 | B8: Christian Guedes | C8: 456 | D8: 5 | E8: 48 | H8: 4 | I8: 50 | J8: 2 | L8: 13 | M8: 32* | P8: 16 | Q8: 26* | T8: 6 | U8: 46 | X8: 13 | Y8: 32 | AB8: 1 | AC8: 60 | AD8: 2 | AF8: 10 | AG8: 38 | AJ8: 6 | AK8: 46 | AN8: 4 | AO8: 50 | AR8: 13 | AS8: 32 | AV8: 4 | AW8: 50 | AZ8: 1 | BA8: 0 | BB8: 0 | BC8: 3 | BD8: 1 | BE8: 2 | BF8: 0 | BG8: 0 | BH8: 0 | BI8: 1 | BJ8: 0 | BK8: 0 | BL8: 3 | BM8: 0 | BN8: 0 | BO8: 1 | BP8: 0 | BQ8: 0 | BR8: 0 | BS8: 0 | BT8: 0 | BU8: 0 | BV8: 0 | BW8: 0 | BX8: 0 | BY8: 0 | BZ8: 0 | CA8: 0 | CB8: 0 | CC8: 0 | CD8: 0 | CE8: 0 | CF8: 0 | CG8: 0 | CH8: 0 | CI8: 0 | CJ8: 0 | CK8: 0 | CL8: 0 | CM8: 0 | CN8: 0
A9: 5 | B9: Guilherme Alves | C9: 396 | D9: 3 | E9: 52 | H9: 11 | I9: 36 | L9: 24 | M9: 17* | P9: 8 | Q9: 42 | T9: 15 | U9: 28* | X9: 15 | Y9: 28 | AB9: 12 | AC9: 34 | AF9: 11 | AG9: 36 | AJ9: 8 | AK9: 42 | AN9: 8 | AO9: 42 | AR9: 5 | AS9: 48 | AV9: 11 | AW9: 36 | AZ9: 0 | BA9: 0 | BB9: 1 | BC9: 0 | BD9: 1 | BE9: 0 | BF9: 0 | BG9: 3 | BH9: 0 | BI9: 0 | BJ9: 3 | BK9: 1 | BL9: 0 | BM9: 0 | BN9: 2 | BO9: 0 | BP9: 0 | BQ9: 0 | BR9: 0 | BS9: 0 | BT9: 0 | BU9: 0 | BV9: 0 | BW9: 1 | BX9: 0 | BY9: 0 | BZ9: 0 | CA9: 0 | CB9: 0 | CC9: 0 | CD9: 0 | CE9: 0 | CF9: 0 | CG9: 0 | CH9: 0 | CI9: 0 | CJ9: 0 | CK9: 0 | CL9: 0 | CM9: 0 | CN9: 0
A10: 6 | B10: Bruno Nosse | C10: 390 | D10: 10 | E10: 38 | H10: 9 | I10: 40 | L10: 5 | M10: 48 | P10: 12 | Q10: 34 | T10: 14 | U10: 30 | X10: 24 | Y10: 17* | AB10: 10 | AC10: 38 | AF10: 8 | AG10: 42 | AJ10: 11 | AK10: 36 | AN10: 3 | AO10: 52 | AR10: 18 | AS10: 23* | AV10: 13 | AW10: 32 | AZ10: 0 | BA10: 0 | BB10: 1 | BC10: 0 | BD10: 1 | BE10: 0 | BF10: 0 | BG10: 1 | BH10: 1 | BI10: 2 | BJ10: 1 | BK10: 1 | BL10: 1 | BM10: 1 | BN10: 0 | BO10: 0 | BP10: 0 | BQ10: 1 | BR10: 0 | BS10: 0 | BT10: 0 | BU10: 0 | BV10: 0 | BW10: 1 | BX10: 0 | BY10: 0 | BZ10: 0 | CA10: 0 | CB10: 0 | CC10: 0 | CD10: 0 | CE10: 0 | CF10: 0 | CG10: 0 | CH10: 0 | CI10: 0 | CJ10: 0 | CK10: 0 | CL10: 0 | CM10: 0 | CN10: 0
A11: 7 | B11: Diego Rodrigues | C11: 389 | D11: 7 | E11: 44 | H11: 6 | I11: 46 | L11: 9 | M11: 40 | Q11: 0* | T11: 8 | U11: 42 | X11: 11 | Y11: 36 | AB11: 2 | AC11: 55 | AF11: 18 | AG11: 23 | AK11: 0* | AN11: 14 | AO11: 30 | AR11: 20 | AS11: 21 | AV11: 3 | AW11: 52 | AZ11: 0 | BA11: 1 | BB11: 1 | BC11: 0 | BD11: 0 | BE11: 1 | BF11: 1 | BG11: 1 | BH11: 1 | BI11: 0 | BJ11: 1 | BK11: 0 | BL11: 0 | BM11: 1 | BN11: 0 | BO11: 0 | BP11: 0 | BQ11: 1 | BR11: 0 | BS11: 1 | BT11: 0 | BU11: 0 | BV11: 0 | BW11: 0 | BX11: 0 | BY11: 0 | BZ11: 0 | CA11: 0 | CB11: 0 | CC11: 0 | CD11: 0 | CE11: 0 | CF11: 0 | CG11: 0 | CH11: 0 | CI11: 0 | CJ11: 0 | CK11: 0 | CL11: 0 | CM11: 0 | CN11: 0
A12: 8 | B12: Anderson Teixeira | C12: 384 | D12: 17 | E12: 24 | H12: 17 | I12: 24 | L12: 1 | M12: 60 | N12: 2 | P12: 13 | Q12: 32 | T12: 1 | U12: 60 | V12: 2 | X12: 7 | Y12: 44 | AB12: 13 | AC12: 32 | AF12: 25 | AG12: 16* | AK12: 0* | AN12: 16 | AO12: 26 | AR12: 12 | AS12: 34 | AV12: 7 | AW12: 44 | AZ12: 2 | BA12: 0 | BB12: 0 | BC12: 0 | BD12: 0 | BE12: 0 | BF12: 2 | BG12: 0 | BH12: 0 | BI12: 0 | BJ12: 0 | BK12: 1 | BL12: 2 | BM12: 0 | BN12: 0 | BO12: 1 | BP12: 2 | BQ12: 0 | BR12: 0 | BS12: 0 | BT12: 0 | BU12: 0 | BV12: 0 | BW12: 0 | BX12: 1 | BY12: 0 | BZ12: 0 | CA12: 0 | CB12: 0 | CC12: 0 | CD12: 0 | CE12: 0 | CF12: 0 | CG12: 0 | CH12: 0 | CI12: 0 | CJ12: 0 | CK12: 0 | CL12: 0 | CM12: 0 | CN12: 0
A13: 9 | B13: Alexandre Melillo | C13: 367 | D13: 15 | E13: 28 | H13: 2 | I13: 55 | L13: 7 | M13: 44 | P13: 17 | Q13: 24* | T13: 10 | U13: 38 | X13: 17 | Y13: 24 | AB13: 3 | AC13: 52 | AF13: 21 | AG13: 20* | AJ13: 14 | AK13: 30 | AN13: 17 | AO13: 24 | AR13: 7 | AS13: 44 | AV13: 15 | AW13: 28 | AZ13: 0 | BA13: 1 | BB13: 1 | BC13: 0 | BD13: 0 | BE13: 0 | BF13: 2 | BG13: 0 | BH13: 0 | BI13: 1 | BJ13: 0 | BK13: 0 | BL13: 0 | BM13: 1 | BN13: 2 | BO13: 0 | BP13: 3 | BQ13: 0 | BR13: 0 | BS13: 0 | BT13: 1 | BU13: 0 | BV13: 0 | BW13: 0 | BX13: 0 | BY13: 0 | BZ13: 0 | CA13: 0 | CB13: 0 | CC13: 0 | CD13: 0 | CE13: 0 | CF13: 0 | CG13: 0 | CH13: 0 | CI13: 0 | CJ13: 0 | CK13: 0 | CL13: 0 | CM13: 0 | CN13: 0
A14: 10 | B14: Raphael Reis | C14: 346 | D14: 14 | E14: 30 | H14: 12 | I14: 34 | L14: 17 | M14: 24 | P14: 4 | Q14: 50 | U14: 0* | X14: 12 | Y14: 34 | AB14: 7 | AC14: 44 | AF14: 17 | AG14: 24 | AJ14: 5 | AK14: 48 | AN14: 24 | AO14: 17* | AR14: 15 | AS14: 28 | AV14: 14 | AW14: 30 | AZ14: 0 | BA14: 0 | BB14: 0 | BC14: 1 | BD14: 1 | BE14: 0 | BF14: 1 | BG14: 0 | BH14: 0 | BI14: 0 | BJ14: 0 | BK14: 2 | BL14: 0 | BM14: 2 | BN14: 1 | BO14: 0 | BP14: 2 | BQ14: 0 | BR14: 0 | BS14: 0 | BT14: 0 | BU14: 0 | BV14: 0 | BW14: 1 | BX14: 0 | BY14: 0 | BZ14: 0 | CA14: 0 | CB14: 0 | CC14: 0 | CD14: 0 | CE14: 0 | CF14: 0 | CG14: 0 | CH14: 0 | CI14: 0 | CJ14: 0 | CK14: 0 | CL14: 0 | CM14: 0 | CN14: 0
A15: 11 | B15: Wesley Canuto | C15: 345 | D15: 20 | E15: 21* | H15: 18 | I15: 23 | L15: 19 | M15: 22 | P15: 15 | Q15: 28 | T15: 3 | U15: 52 | X15: 9 | Y15: 40 | AB15: 15 | AC15: 28 | AF15: 9 | AG15: 40 | AJ15: 12 | AK15: 34 | AN15: 7 | AO15: 44 | AR15: 26 | AS15: 15* | AV15: 12 | AW15: 34 | AZ15: 0 | BA15: 0 | BB15: 1 | BC15: 0 | BD15: 0 | BE15: 0 | BF15: 1 | BG15: 0 | BH15: 2 | BI15: 0 | BJ15: 0 | BK15: 2 | BL15: 0 | BM15: 0 | BN15: 2 | BO15: 0 | BP15: 0 | BQ15: 1 | BR15: 1 | BS15: 1 | BT15: 0 | BU15: 0 | BV15: 0 | BW15: 0 | BX15: 0 | BY15: 1 | BZ15: 0 | CA15: 0 | CB15: 0 | CC15: 0 | CD15: 0 | CE15: 0 | CF15: 0 | CG15: 0 | CH15: 0 | CI15: 0 | CJ15: 0 | CK15: 0 | CL15: 0 | CM15: 0 | CN15: 0
A16: 12 | B16: Lucas Rabelo | C16: 344 | D16: 18 | E16: 23 | H16: 3 | I16: 52 | L16: 28 | M16: 13 | P16: 3 | Q16: 52 | T16: 25 | U16: 16 | X16: 5 | Y16: 48 | AB16: 26 | AC16: 15 | AF16: 2 | AG16: 55 | AH16: 2 | AJ16: 15 | AK16: 28 | AN16: 30 | AO16: 11* | AR16: 4 | AS16: 50 | AW16: 0* | AY16: -10 | AZ16: 0 | BA16: 1 | BB16: 2 | BC16: 1 | BD16: 1 | BE16: 0 | BF16: 0 | BG16: 0 | BH16: 0 | BI16: 0 | BJ16: 0 | BK16: 0 | BL16: 0 | BM16: 0 | BN16: 1 | BO16: 0 | BP16: 0 | BQ16: 1 | BR16: 0 | BS16: 0 | BT16: 0 | BU16: 0 | BV16: 0 | BW16: 0 | BX16: 1 | BY16: 1 | BZ16: 0 | CA16: 1 | CB16: 0 | CC16: 1 | CD16: 0 | CE16: 0 | CF16: 0 | CG16: 0 | CH16: 0 | CI16: 0 | CJ16: 0 | CK16: 0 | CL16: 0 | CM16: 0 | CN16: 0
A17: 13 | B17: Lucio Chequer | C17: 319 | D17: 8 | E17: 42 | H17: 23 | I17: 18* | L17: 21 | M17: 20* | P17: 18 | Q17: 23 | T17: 20 | U17: 21 | X17: 16 | Y17: 26 | AB17: 18 | AC17: 23 | AF17: 4 | AG17: 50 | AJ17: 17 | AK17: 24 | AN17: 10 | AO17: 38 | AR17: 17 | AS17: 24 | AV17: 5 | AW17: 48 | AZ17: 0 | BA17: 0 | BB17: 0 | BC17: 1 | BD17: 1 | BE17: 0 | BF17: 0 | BG17: 1 | BH17: 0 | BI17: 1 | BJ17: 0 | BK17: 0 | BL17: 0 | BM17: 0 | BN17: 0 | BO17: 1 | BP17: 2 | BQ17: 2 | BR17: 0 | BS17: 1 | BT17: 1 | BU17: 0 | BV17: 1 | BW17: 0 | BX17: 0 | BY17: 0 | BZ17: 0 | CA17: 0 | CB17: 0 | CC17: 0 | CD17: 0 | CE17: 0 | CF17: 0 | CG17: 0 | CH17: 0 | CI17: 0 | CJ17: 0 | CK17: 0 | CL17: 0 | CM17: 0 | CN17: 0
A18: 14 | B18: Jarbas Reis | C18: 316 | D18: 19 | E18: 22 | H18: 7 | I18: 44 | L18: 12 | M18: 34 | P18: 31 | Q18: 10* | T18: 12 | U18: 34 | X18: 8 | Y18: 42 | AB18: 11 | AC18: 36 | AF18: 27 | AG18: 14 | AJ18: 16 | AK18: 26 | AN18: 12 | AO18: 34 | AR18: 14 | AS18: 30 | AW18: 0* | AZ18: 0 | BA18: 0 | BB18: 0 | BC18: 0 | BD18: 0 | BE18: 0 | BF18: 1 | BG18: 1 | BH18: 0 | BI18: 0 | BJ18: 1 | BK18: 3 | BL18: 0 | BM18: 1 | BN18: 0 | BO18: 1 | BP18: 0 | BQ18: 0 | BR18: 1 | BS18: 0 | BT18: 0 | BU18: 0 | BV18: 0 | BW18: 0 | BX18: 0 | BY18: 0 | BZ18: 1 | CA18: 0 | CB18: 0 | CC18: 0 | CD18: 1 | CE18: 0 | CF18: 0 | CG18: 0 | CH18: 0 | CI18: 0 | CJ18: 0 | CK18: 0 | CL18: 0 | CM18: 0 | CN18: 0
A19: 15 | B19: Samuel Farley | C19: 310 | D19: 13 | E19: 32 | H19: 29 | I19: 12* | L19: 10 | M19: 38 | P19: 25 | Q19: 16 | S19: SIM | T19: 28 | U19: 13* | X19: 6 | Y19: 46 | AB19: 19 | AC19: 22 | AF19: 15 | AG19: 28 | AJ19: 25 | AK19: 16 | AN19: 11 | AO19: 36 | AR19: 11 | AS19: 36 | AV19: 9 | AW19: 40 | AZ19: 0 | BA19: 0 | BB19: 0 | BC19: 0 | BD19: 0 | BE19: 1 | BF19: 0 | BG19: 0 | BH19: 1 | BI19: 1 | BJ19: 2 | BK19: 0 | BL19: 1 | BM19: 0 | BN19: 1 | BO19: 0 | BP19: 0 | BQ19: 0 | BR19: 1 | BS19: 0 | BT19: 0 | BU19: 0 | BV19: 0 | BW19: 0 | BX19: 2 | BY19: 0 | BZ19: 0 | CA19: 1 | CB19: 1 | CC19: 0 | CD19: 0 | CE19: 0 | CF19: 0 | CG19: 0 | CH19: 0 | CI19: 0 | CJ19: 0 | CK19: 0 | CL19: 0 | CM19: 0 | CN19: 0
A20: 16 | B20: Matheus Rocha | C20: 304 | D20: 16 | E20: 26 | H20: 25 | I20: 16 | K20: SIM | L20: 11 | M20: 36 | P20: 24 | Q20: 17* | T20: 7 | U20: 44 | X20: 23 | Y20: 18 | AB20: 28 | AC20: 13* | AF20: 12 | AG20: 34 | AJ20: 7 | AK20: 44 | AN20: 23 | AO20: 18 | AR20: 9 | AS20: 40 | AU20: -10 | AV20: 10 | AW20: 38 | AZ20: 0 | BA20: 0 | BB20: 0 | BC20: 0 | BD20: 0 | BE20: 0 | BF20: 2 | BG20: 0 | BH20: 1 | BI20: 1 | BJ20: 1 | BK20: 1 | BL20: 0 | BM20: 0 | BN20: 0 | BO20: 1 | BP20: 0 | BQ20: 0 | BR20: 0 | BS20: 0 | BT20: 0 | BU20: 0 | BV20: 2 | BW20: 1 | BX20: 1 | BY20: 0 | BZ20: 0 | CA20: 1 | CB20: 0 | CC20: 0 | CD20: 0 | CE20: 0 | CF20: 0 | CG20: 0 | CH20: 0 | CI20: 0 | CJ20: 0 | CK20: 0 | CL20: 0 | CM20: 0 | CN20: 0
A21: 17 | B21: PetrÔnio Junior | C21: 290 | E21: 0* | G21: -10 | H21: 5 | I21: 48 | L21: 4 | M21: 50 | P21: 7 | Q21: 44 | T21: 11 | U21: 36 | X21: 30 | Y21: 11 | AC21: 0* | AF21: 26 | AG21: 15 | AJ21: 13 | AK21: 32 | AM21: SIM | AN21: 19 | AO21: 22 | AR21: 3 | AS21: 52 | AW21: 0 | AY21: -10 | AZ21: 0 | BA21: 0 | BB21: 1 | BC21: 1 | BD21: 1 | BE21: 0 | BF21: 1 | BG21: 0 | BH21: 0 | BI21: 0 | BJ21: 1 | BK21: 0 | BL21: 1 | BM21: 0 | BN21: 0 | BO21: 0 | BP21: 0 | BQ21: 0 | BR21: 1 | BS21: 0 | BT21: 0 | BU21: 0 | BV21: 0 | BW21: 0 | BX21: 0 | BY21: 1 | BZ21: 0 | CA21: 0 | CB21: 0 | CC21: 1 | CD21: 0 | CE21: 0 | CF21: 0 | CG21: 0 | CH21: 0 | CI21: 0 | CJ21: 0 | CK21: 0 | CL21: 0 | CM21: 0 | CN21: 0
A22: 18 | B22: Frederico Papatella | C22: 272 | D22: 24 | E22: 17 | I22: 0* | L22: 29 | M22: 12 | P22: 11 | Q22: 36 | T22: 9 | U22: 40 | X22: 21 | Y22: 20 | AB22: 23 | AC22: 18 | AF22: 7 | AG22: 44 | AJ22: 10 | AK22: 38 | AN22: 9 | AO22: 40 | AR22: 24 | AS22: 17 | AU22: SIM | AW22: 0* | AY22: -10 | AZ22: 0 | BA22: 0 | BB22: 0 | BC22: 0 | BD22: 0 | BE22: 0 | BF22: 1 | BG22: 0 | BH22: 2 | BI22: 1 | BJ22: 1 | BK22: 0 | BL22: 0 | BM22: 0 | BN22: 0 | BO22: 0 | BP22: 0 | BQ22: 0 | BR22: 0 | BS22: 0 | BT22: 1 | BU22: 0 | BV22: 1 | BW22: 2 | BX22: 0 | BY22: 0 | BZ22: 0 | CA22: 0 | CB22: 1 | CC22: 0 | CD22: 0 | CE22: 0 | CF22: 0 | CG22: 0 | CH22: 0 | CI22: 0 | CJ22: 0 | CK22: 0 | CL22: 0 | CM22: 0 | CN22: 0
A23: 19 | B23: Fernando Mota | C23: 253 | D23: 11 | E23: 36 | I23: 0* | M23: 0* | O23: -10 | Q23: 0 | S23: -10 | T23: 26 | U23: 15 | X23: 1 | Y23: 60 | Z23: 2 | AB23: 9 | AC23: 40 | AG23: 0 | AI23: -10 | AK23: 0 | AM23: -10 | AN23: 5 | AO23: 48 | AR23: 1 | AS23: 60 | AV23: 8 | AW23: 42 | AY23: -10 | AZ23: 2 | BA23: 0 | BB23: 0 | BC23: 0 | BD23: 1 | BE23: 0 | BF23: 0 | BG23: 1 | BH23: 1 | BI23: 0 | BJ23: 1 | BK23: 0 | BL23: 0 | BM23: 0 | BN23: 0 | BO23: 0 | BP23: 0 | BQ23: 0 | BR23: 0 | BS23: 0 | BT23: 0 | BU23: 0 | BV23: 0 | BW23: 0 | BX23: 0 | BY23: 1 | BZ23: 0 | CA23: 0 | CB23: 0 | CC23: 0 | CD23: 0 | CE23: 0 | CF23: 0 | CG23: 0 | CH23: 0 | CI23: 0 | CJ23: 0 | CK23: 0 | CL23: 0 | CM23: 0 | CN23: 0
A24: 20 | B24: Matheus Azevedo | C24: 251 | D24: 29 | E24: 12* | H24: 21 | I24: 20 | L24: 31 | M24: 10* | P24: 20 | Q24: 21 | T24: 23 | U24: 18 | X24: 18 | Y24: 23 | AB24: 8 | AC24: 42 | AF24: 13 | AG24: 32 | AJ24: 3 | AK24: 52 | AN24: 18 | AO24: 23 | AR24: 23 | AS24: 18 | AT24: 2 | AV24: 0 | AW24: 0 | AZ24: 0 | BA24: 0 | BB24: 1 | BC24: 0 | BD24: 0 | BE24: 0 | BF24: 0 | BG24: 1 | BH24: 0 | BI24: 0 | BJ24: 0 | BK24: 0 | BL24: 1 | BM24: 0 | BN24: 0 | BO24: 0 | BP24: 0 | BQ24: 2 | BR24: 0 | BS24: 1 | BT24: 1 | BU24: 0 | BV24: 2 | BW24: 0 | BX24: 0 | BY24: 0 | BZ24: 0 | CA24: 0 | CB24: 1 | CC24: 0 | CD24: 1 | CE24: 0 | CF24: 0 | CG24: 0 | CH24: 0 | CI24: 0 | CJ24: 0 | CK24: 0 | CL24: 0 | CM24: 0 | CN24: 0
A25: 21 | B25: Felipe Curi | C25: 226 | D25: 28 | E25: 13 | H25: 14 | I25: 30 | L25: 6 | M25: 46 | P25: 14 | Q25: 30 | T25: 17 | U25: 24 | W25: SIM | Y25: 0* | AA25: -10 | AB25: 6 | AC25: 46 | AE25: -10 | AG25: 0* | AI25: -10 | AJ25: 9 | AK25: 40 | AN25: 2 | AO25: 55 | AP25: 2 | AQ25: -10 | AS25: 0 | AU25: -10 | AW25: 0 | AY25: -10 | AZ25: 0 | BA25: 1 | BB25: 0 | BC25: 0 | BD25: 0 | BE25: 2 | BF25: 0 | BG25: 0 | BH25: 1 | BI25: 0 | BJ25: 0 | BK25: 0 | BL25: 0 | BM25: 2 | BN25: 0 | BO25: 0 | BP25: 1 | BQ25: 0 | BR25: 0 | BS25: 0 | BT25: 0 | BU25: 0 | BV25: 0 | BW25: 0 | BX25: 0 | BY25: 0 | BZ25: 0 | CA25: 1 | CB25: 0 | CC25: 0 | CD25: 0 | CE25: 0 | CF25: 0 | CG25: 0 | CH25: 0 | CI25: 0 | CJ25: 0 | CK25: 0 | CL25: 0 | CM25: 0 | CN25: 0
A26: 22 | B26: Renato Martins | C26: 211 | D26: 33 | E26: 8* | H26: 26 | I26: 15 | L26: 33 | M26: 8* | P26: 28 | Q26: 13 | T26: 13 | U26: 32 | X26: 19 | Y26: 22 | AB26: 17 | AC26: 24 | AF26: 24 | AG26: 17 | AJ26: 20 | AK26: 21 | AN26: 26 | AO26: 15 | AR26: 16 | AS26: 26 | AV26: 16 | AW26: 26 | AZ26: 0 | BA26: 0 | BB26: 0 | BC26: 0 | BD26: 0 | BE26: 0 | BF26: 0 | BG26: 0 | BH26: 0 | BI26: 0 | BJ26: 0 | BK26: 0 | BL26: 1 | BM26: 0 | BN26: 0 | BO26: 2 | BP26: 1 | BQ26: 0 | BR26: 1 | BS26: 1 | BT26: 0 | BU26: 0 | BV26: 0 | BW26: 1 | BX26: 0 | BY26: 2 | BZ26: 0 | CA26: 1 | CB26: 0 | CC26: 0 | CD26: 0 | CE26: 0 | CF26: 2 | CG26: 0 | CH26: 0 | CI26: 0 | CJ26: 0 | CK26: 0 | CL26: 0 | CM26: 0 | CN26: 0
A27: 23 | B27: Jean Paul | C27: 201 | D27: 12 | E27: 34 | H27: 10 | I27: 38 | L27: 27 | M27: 14 | P27: 21 | Q27: 20 | T27: 24 | U27: 17 | X27: 22 | Y27: 19 | AB27: 20 | AC27: 21 | AF27: 19 | AG27: 22 | AJ27: 27 | AK27: 14 | AN27: 29 | AO27: 12 | AS27: 0* | AW27: 0* | AY27: -10 | AZ27: 0 | BA27: 0 | BB27: 0 | BC27: 0 | BD27: 0 | BE27: 0 | BF27: 0 | BG27: 0 | BH27: 0 | BI27: 1 | BJ27: 0 | BK27: 1 | BL27: 0 | BM27: 0 | BN27: 0 | BO27: 0 | BP27: 0 | BQ27: 0 | BR27: 1 | BS27: 1 | BT27: 1 | BU27: 1 | BV27: 0 | BW27: 1 | BX27: 0 | BY27: 0 | BZ27: 2 | CA27: 0 | CB27: 1 | CC27: 0 | CD27: 0 | CE27: 0 | CF27: 0 | CG27: 0 | CH27: 0 | CI27: 0 | CJ27: 0 | CK27: 0 | CL27: 0 | CM27: 0 | CN27: 0
A28: 24 | B28: Saulo Chagas | C28: 186 | D28: 2 | E28: 55 | I28: 0* | L28: 15 | M28: 28 | P28: 19 | Q28: 22 | T28: 27 | U28: 14 | X28: 26 | Y28: 15 | AB28: 5 | AC28: 48 | AG28: 0* | AK28: 0 | AN28: 27 | AO28: 14 | AS28: 0 | AW28: 0 | AY28: -10 | AZ28: 0 | BA28: 1 | BB28: 0 | BC28: 0 | BD28: 1 | BE28: 0 | BF28: 0 | BG28: 0 | BH28: 0 | BI28: 0 | BJ28: 0 | BK28: 0 | BL28: 0 | BM28: 0 | BN28: 1 | BO28: 0 | BP28: 0 | BQ28: 0 | BR28: 1 | BS28: 0 | BT28: 0 | BU28: 0 | BV28: 0 | BW28: 0 | BX28: 0 | BY28: 1 | BZ28: 2 | CA28: 0 | CB28: 0 | CC28: 0 | CD28: 0 | CE28: 0 | CF28: 0 | CG28: 0 | CH28: 0 | CI28: 0 | CJ28: 0 | CK28: 0 | CL28: 0 | CM28: 0 | CN28: 0
A29: 25 | B29: Henry Douglas | C29: 177 | E29: 0* | G29: -10 | H29: 28 | I29: 13 | L29: 23 | M29: 18 | P29: 5 | Q29: 48 | U29: 0* | W29: -10 | X29: 20 | Y29: 21 | AB29: 27 | AC29: 14 | AF29: 22 | AG29: 19 | AJ29: 18 | AK29: 23 | AN29: 22 | AO29: 19 | AS29: 0 | AV29: 19 | AW29: 22 | AZ29: 0 | BA29: 0 | BB29: 0 | BC29: 0 | BD29: 1 | BE29: 0 | BF29: 0 | BG29: 0 | BH29: 0 | BI29: 0 | BJ29: 0 | BK29: 0 | BL29: 0 | BM29: 0 | BN29: 0 | BO29: 0 | BP29: 0 | BQ29: 1 | BR29: 1 | BS29: 1 | BT29: 0 | BU29: 2 | BV29: 1 | BW29: 0 | BX29: 0 | BY29: 0 | BZ29: 1 | CA29: 1 | CB29: 0 | CC29: 0 | CD29: 0 | CE29: 0 | CF29: 0 | CG29: 0 | CH29: 0 | CI29: 0 | CJ29: 0 | CK29: 0 | CL29: 0 | CM29: 0 | CN29: 0
A30: 26 | B30: Celso Dantas | C30: 162 | D30: 31 | E30: 10* | H30: 24 | I30: 17 | L30: 35 | M30: 6* | P30: 30 | Q30: 11 | T30: 22 | U30: 19 | X30: 25 | Y30: 16 | AB30: 24 | AC30: 17 | AF30: 20 | AG30: 21 | AI30: -10 | AJ30: 21 | AK30: 20 | AM30: -10 | AN30: 20 | AO30: 21 | AR30: 25 | AS30: 16 | AV30: 17 | AW30: 24 | AZ30: 0 | BA30: 0 | BB30: 0 | BC30: 0 | BD30: 0 | BE30: 0 | BF30: 0 | BG30: 0 | BH30: 0 | BI30: 0 | BJ30: 0 | BK30: 0 | BL30: 0 | BM30: 0 | BN30: 0 | BO30: 0 | BP30: 1 | BQ30: 0 | BR30: 0 | BS30: 2 | BT30: 1 | BU30: 1 | BV30: 0 | BW30: 2 | BX30: 2 | BY30: 0 | BZ30: 0 | CA30: 0 | CB30: 0 | CC30: 1 | CD30: 1 | CE30: 0 | CF30: 0 | CG30: 0 | CH30: 1 | CI30: 0 | CJ30: 0 | CK30: 0 | CL30: 0 | CM30: 0 | CN30: 0
A31: 27 | B31: Guilherme Camarano | C31: 153 | D31: 37 | E31: 4 | H31: 8 | I31: 42 | L31: 37 | M31: 4 | P31: 22 | Q31: 19 | S31: SIM | U31: 0* | Y31: 0* | AA31: -10 | AB31: 16 | AC31: 26 | AF31: 1 | AG31: 60 | AJ31: 26 | AK31: 15 | AN31: 28 | AO31: 13 | AS31: 0 | AU31: -10 | AW31: 0 | AY31: -10 | AZ31: 1 | BA31: 0 | BB31: 0 | BC31: 0 | BD31: 0 | BE31: 0 | BF31: 0 | BG31: 1 | BH31: 0 | BI31: 0 | BJ31: 0 | BK31: 0 | BL31: 0 | BM31: 0 | BN31: 0 | BO31: 1 | BP31: 0 | BQ31: 0 | BR31: 0 | BS31: 0 | BT31: 0 | BU31: 1 | BV31: 0 | BW31: 0 | BX31: 0 | BY31: 1 | BZ31: 0 | CA31: 1 | CB31: 0 | CC31: 0 | CD31: 0 | CE31: 0 | CF31: 0 | CG31: 0 | CH31: 0 | CI31: 0 | CJ31: 2 | CK31: 0 | CL31: 0 | CM31: 0 | CN31: 0
A32: 28 | B32: Aparecido Arantes | C32: 135 | E32: 0* | H32: 16 | I32: 26 | L32: 20 | M32: 21 | Q32: 0* | U32: 0 | Y32: 0 | AB32: 21 | AC32: 20 | AF32: 14 | AG32: 30 | AK32: 0 | AO32: 0 | AR32: 10 | AS32: 38 | AW32: 0 | AZ32: 0 | BA32: 0 | BB32: 0 | BC32: 0 | BD32: 0 | BE32: 0 | BF32: 0 | BG32: 0 | BH32: 0 | BI32: 1 | BJ32: 0 | BK32: 0 | BL32: 0 | BM32: 1 | BN32: 0 | BO32: 1 | BP32: 0 | BQ32: 0 | BR32: 0 | BS32: 1 | BT32: 1 | BU32: 0 | BV32: 0 | BW32: 0 | BX32: 0 | BY32: 0 | BZ32: 0 | CA32: 0 | CB32: 0 | CC32: 0 | CD32: 0 | CE32: 0 | CF32: 0 | CG32: 0 | CH32: 0 | CI32: 0 | CJ32: 0 | CK32: 0 | CL32: 0 | CM32: 0 | CN32: 0
A33: 29 | B33: Levindo Neto | C33: 127 | D33: 38 | E33: 3 | H33: 33 | I33: 8 | L33: 36 | M33: 5 | Q33: 0* | U33: 0* | X33: 27 | Y33: 14 | AB33: 25 | AC33: 16 | AF33: 35 | AG33: 6 | AI33: SIM | AJ33: 22 | AK33: 19 | AN33: 25 | AO33: 16 | AR33: 21 | AS33: 20 | AV33: 21 | AW33: 20 | AZ33: 0 | BA33: 0 | BB33: 0 | BC33: 0 | BD33: 0 | BE33: 0 | BF33: 0 | BG33: 0 | BH33: 0 | BI33: 0 | BJ33: 0 | BK33: 0 | BL33: 0 | BM33: 0 | BN33: 0 | BO33: 0 | BP33: 0 | BQ33: 0 | BR33: 0 | BS33: 0 | BT33: 2 | BU33: 1 | BV33: 0 | BW33: 0 | BX33: 2 | BY33: 0 | BZ33: 1 | CA33: 0 | CB33: 0 | CC33: 0 | CD33: 0 | CE33: 0 | CF33: 1 | CG33: 0 | CH33: 1 | CI33: 1 | CJ33: 0 | CK33: 1 | CL33: 0 | CM33: 0 | CN33: 0
A34: 30 | B34: Bruno Camargos | C34: 111 | D34: 32 | E34: 9 | H34: 31 | I34: 10 | K34: SIM | L34: 25 | M34: 16 | P34: 32 | Q34: 9 | T34: 16 | U34: 26 | W34: -10 | X34: 14 | Y34: 30 | AB34: 22 | AC34: 19 | AG34: 0* | AI34: -10 | AK34: 0* | AM34: -10 | AN34: 13 | AO34: 32 | AS34: 0 | AW34: 0 | AY34: -10 | AZ34: 0 | BA34: 0 | BB34: 0 | BC34: 0 | BD34: 0 | BE34: 0 | BF34: 0 | BG34: 0 | BH34: 0 | BI34: 0 | BJ34: 0 | BK34: 0 | BL34: 1 | BM34: 1 | BN34: 0 | BO34: 1 | BP34: 0 | BQ34: 0 | BR34: 0 | BS34: 0 | BT34: 0 | BU34: 1 | BV34: 0 | BW34: 0 | BX34: 1 | BY34: 0 | BZ34: 0 | CA34: 0 | CB34: 0 | CC34: 0 | CD34: 1 | CE34: 2 | CF34: 0 | CG34: 0 | CH34: 0 | CI34: 0 | CJ34: 0 | CK34: 0 | CL34: 0 | CM34: 0 | CN34: 0
A35: 31 | B35: Alan Moreira | C35: 101 | D35: 26 | E35: 15 | H35: 32 | I35: 9 | L35: 16 | M35: 26 | P35: 26 | Q35: 15 | U35: 0* | W35: -10 | X35: 10 | Y35: 38 | AC35: 0* | AE35: -10 | AF35: 16 | AG35: 26 | AJ35: 19 | AK35: 22 | AO35: 0 | AQ35: -10 | AS35: 0 | AU35: -10 | AW35: 0 | AY35: -10 | AZ35: 0 | BA35: 0 | BB35: 0 | BC35: 0 | BD35: 0 | BE35: 0 | BF35: 0 | BG35: 0 | BH35: 0 | BI35: 1 | BJ35: 0 | BK35: 0 | BL35: 0 | BM35: 0 | BN35: 0 | BO35: 2 | BP35: 0 | BQ35: 0 | BR35: 1 | BS35: 0 | BT35: 0 | BU35: 0 | BV35: 0 | BW35: 0 | BX35: 0 | BY35: 2 | BZ35: 0 | CA35: 0 | CB35: 0 | CC35: 0 | CD35: 0 | CE35: 1 | CF35: 0 | CG35: 0 | CH35: 0 | CI35: 0 | CJ35: 0 | CK35: 0 | CL35: 0 | CM35: 0 | CN35: 0
A36: 32 | B36: Thiago Azevedo | C36: 97 | D36: 35 | E36: 6 | H36: 22 | I36: 19 | L36: 34 | M36: 7 | P36: 27 | Q36: 14 | T36: 21 | U36: 20 | W36: -10 | Y36: 0* | AC36: 0* | AE36: -10 | AG36: 0 | AI36: -10 | AJ36: 23 | AK36: 18 | AM36: -10 | AN36: 21 | AO36: 20 | AQ36: -10 | AR36: 19 | AS36: 22 | AV36: 20 | AW36: 21 | AZ36: 0 | BA36: 0 | BB36: 0 | BC36: 0 | BD36: 0 | BE36: 0 | BF36: 0 | BG36: 0 | BH36: 0 | BI36: 0 | BJ36: 0 | BK36: 0 | BL36: 0 | BM36: 0 | BN36: 0 | BO36: 0 | BP36: 0 | BQ36: 0 | BR36: 1 | BS36: 1 | BT36: 2 | BU36: 1 | BV36: 1 | BW36: 0 | BX36: 0 | BY36: 0 | BZ36: 1 | CA36: 0 | CB36: 0 | CC36: 0 | CD36: 0 | CE36: 0 | CF36: 0 | CG36: 1 | CH36: 1 | CI36: 0 | CJ36: 0 | CK36: 0 | CL36: 0 | CM36: 0 | CN36: 0
A37: 33 | B37: Thiago Santos | C37: 84 | D37: 36 | E37: 5 | H37: 20 | I37: 21 | L37: 26 | M37: 15 | Q37: 0* | T37: 18 | U37: 23 | X37: 28 | Y37: 13 | AC37: 0* | AG37: 0 | AI37: -10 | AJ37: 24 | AK37: 17 | AO37: 0 | AS37: 0 | AW37: 0 | AZ37: 0 | BA37: 0 | BB37: 0 | BC37: 0 | BD37: 0 | BE37: 0 | BF37: 0 | BG37: 0 | BH37: 0 | BI37: 0 | BJ37: 0 | BK37: 0 | BL37: 0 | BM37: 0 | BN37: 0 | BO37: 0 | BP37: 0 | BQ37: 1 | BR37: 0 | BS37: 1 | BT37: 0 | BU37: 0 | BV37: 0 | BW37: 1 | BX37: 0 | BY37: 1 | BZ37: 0 | CA37: 1 | CB37: 0 | CC37: 0 | CD37: 0 | CE37: 0 | CF37: 0 | CG37: 0 | CH37: 0 | CI37: 1 | CJ37: 0 | CK37: 0 | CL37: 0 | CM37: 0 | CN37: 0
A38: 34 | B38: Thales Almeida | C38: 82 | D38: 22 | E38: 19 | H38: 13 | I38: 32 | L38: 22 | M38: 19 | P38: 9 | Q38: 40 | T38: 29 | U38: 12 | Y38: 0* | AA38: -10 | AC38: 0* | AG38: 0 | AI38: -10 | AK38: 0 | AO38: 0 | AQ38: -10 | AS38: 0 | AW38: 0 | AY38: -10 | AZ38: 0 | BA38: 0 | BB38: 0 | BC38: 0 | BD38: 0 | BE38: 0 | BF38: 0 | BG38: 0 | BH38: 1 | BI38: 0 | BJ38: 0 | BK38: 0 | BL38: 1 | BM38: 0 | BN38: 0 | BO38: 0 | BP38: 0 | BQ38: 0 | BR38: 0 | BS38: 0 | BT38: 0 | BU38: 2 | BV38: 0 | BW38: 0 | BX38: 0 | BY38: 0 | BZ38: 0 | CA38: 0 | CB38: 1 | CC38: 0 | CD38: 0 | CE38: 0 | CF38: 0 | CG38: 0 | CH38: 0 | CI38: 0 | CJ38: 0 | CK38: 0 | CL38: 0 | CM38: 0 | CN38: 0
A39: 35 | B39: Gustavo Barros | C39: 54 | D39: 39 | E39: 2 | I39: 0* | L39: 14 | M39: 30 | P39: 29 | Q39: 12 | S39: SIM | U39: 0* | X39: 29 | Y39: 12 | AC39: 0 | AF39: 23 | AG39: 18 | AK39: 0 | AO39: 0 | AQ39: -10 | AS39: 0 | AW39: 0 | AY39: -10 | AZ39: 0 | BA39: 0 | BB39: 0 | BC39: 0 | BD39: 0 | BE39: 0 | BF39: 0 | BG39: 0 | BH39: 0 | BI39: 0 | BJ39: 0 | BK39: 0 | BL39: 0 | BM39: 1 | BN39: 0 | BO39: 0 | BP39: 0 | BQ39: 0 | BR39: 0 | BS39: 0 | BT39: 0 | BU39: 0 | BV39: 1 | BW39: 0 | BX39: 0 | BY39: 0 | BZ39: 0 | CA39: 0 | CB39: 2 | CC39: 0 | CD39: 0 | CE39: 0 | CF39: 0 | CG39: 0 | CH39: 0 | CI39: 0 | CJ39: 0 | CK39: 0 | CL39: 1 | CM39: 0 | CN39: 0
A40: 36 | B40: Tafarel Henrique | C40: 53 | D40: 27 | E40: 14 | H40: 19 | I40: 22 | L40: 32 | M40: 9 | P40: 6 | Q40: 46 | T40: 19 | U40: 22 | Y40: 0* | AC40: 0* | AE40: -10 | AG40: 0 | AI40: -10 | AK40: 0 | AM40: -10 | AO40: 0 | AQ40: -10 | AS40: 0 | AU40: -10 | AW40: 0 | AY40: -10 | AZ40: 0 | BA40: 0 | BB40: 0 | BC40: 0 | BD40: 0 | BE40: 1 | BF40: 0 | BG40: 0 | BH40: 0 | BI40: 0 | BJ40: 0 | BK40: 0 | BL40: 0 | BM40: 0 | BN40: 0 | BO40: 0 | BP40: 0 | BQ40: 0 | BR40: 2 | BS40: 0 | BT40: 0 | BU40: 0 | BV40: 0 | BW40: 0 | BX40: 0 | BY40: 0 | BZ40: 1 | CA40: 0 | CB40: 0 | CC40: 0 | CD40: 0 | CE40: 1 | CF40: 0 | CG40: 0 | CH40: 0 | CI40: 0 | CJ40: 0 | CK40: 0 | CL40: 0 | CM40: 0 | CN40: 0
A41: 37 | B41: Luiz Azevedo | C41: 9 | D41: 21 | E41: 20 | H41: 15 | I41: 28 | K41: SIM | L41: 18 | M41: 23 | P41: 23 | Q41: 18 | U41: 0* | W41: -10 | Y41: 0* | AA41: -10 | AC41: 0 | AE41: -10 | AG41: 0 | AI41: -10 | AK41: 0 | AM41: -10 | AO41: 0 | AQ41: -10 | AS41: 0 | AU41: -10 | AW41: 0 | AY41: -10 | AZ41: 0 | BA41: 0 | BB41: 0 | BC41: 0 | BD41: 0 | BE41: 0 | BF41: 0 | BG41: 0 | BH41: 0 | BI41: 0 | BJ41: 0 | BK41: 0 | BL41: 0 | BM41: 0 | BN41: 1 | BO41: 0 | BP41: 0 | BQ41: 1 | BR41: 0 | BS41: 0 | BT41: 1 | BU41: 0 | BV41: 1 | BW41: 0 | BX41: 0 | BY41: 0 | BZ41: 0 | CA41: 0 | CB41: 0 | CC41: 0 | CD41: 0 | CE41: 0 | CF41: 0 | CG41: 0 | CH41: 0 | CI41: 0 | CJ41: 0 | CK41: 0 | CL41: 0 | CM41: 0 | CN41: 0
A42: 38 | B42: Pedro Fialho | C42: 0 | D42: 4 | E42: 50 | I42: 0* | M42: 0* | Q42: 0 | U42: 0 | Y42: 0 | AC42: 0 | AG42: 0 | AI42: -10 | AK42: 0 | AM42: -10 | AO42: 0 | AQ42: -10 | AS42: 0 | AU42: -10 | AW42: 0 | AY42: -10 | AZ42: 0 | BA42: 0 | BB42: 0 | BC42: 1 | BD42: 0 | BE42: 0 | BF42: 0 | BG42: 0 | BH42: 0 | BI42: 0 | BJ42: 0 | BK42: 0 | BL42: 0 | BM42: 0 | BN42: 0 | BO42: 0 | BP42: 0 | BQ42: 0 | BR42: 0 | BS42: 0 | BT42: 0 | BU42: 0 | BV42: 0 | BW42: 0 | BX42: 0 | BY42: 0 | BZ42: 0 | CA42: 0 | CB42: 0 | CC42: 0 | CD42: 0 | CE42: 0 | CF42: 0 | CG42: 0 | CH42: 0 | CI42: 0 | CJ42: 0 | CK42: 0 | CL42: 0 | CM42: 0 | CN42: 0
A43: 39 | B43: Marcus Silva | C43: 0 | D43: 6 | E43: 46 | I43: 0* | K43: -10 | M43: 0* | O43: -10 | P43: 10 | Q43: 38 | R43: 2 | U43: 0 | W43: -10 | Y43: 0 | AA43: -10 | AC43: 0 | AE43: -10 | AG43: 0 | AI43: -10 | AK43: 0 | AM43: -10 | AO43: 0 | AQ43: -10 | AS43: 0 | AU43: -10 | AW43: 0 | AY43: -10 | AZ43: 0 | BA43: 0 | BB43: 0 | BC43: 0 | BD43: 0 | BE43: 1 | BF43: 0 | BG43: 0 | BH43: 0 | BI43: 1 | BJ43: 0 | BK43: 0 | BL43: 0 | BM43: 0 | BN43: 0 | BO43: 0 | BP43: 0 | BQ43: 0 | BR43: 0 | BS43: 0 | BT43: 0 | BU43: 0 | BV43: 0 | BW43: 0 | BX43: 0 | BY43: 0 | BZ43: 0 | CA43: 0 | CB43: 0 | CC43: 0 | CD43: 0 | CE43: 0 | CF43: 0 | CG43: 0 | CH43: 0 | CI43: 0 | CJ43: 0 | CK43: 0 | CL43: 0 | CM43: 0 | CN43: 0
A44: 40 | B44: Luciano Robervine | C44: 0 | D44: 30 | E44: 11 | H44: 27 | I44: 14 | M44: 0* | O44: -10 | Q44: 0* | U44: 0 | W44: -10 | Y44: 0 | AA44: -10 | AC44: 0 | AE44: -10 | AG44: 0 | AI44: -10 | AK44: 0 | AM44: -10 | AO44: 0 | AQ44: -10 | AR44: 22 | AS44: 19 | AV44: 18 | AW44: 23 | AZ44: 0 | BA44: 0 | BB44: 0 | BC44: 0 | BD44: 0 | BE44: 0 | BF44: 0 | BG44: 0 | BH44: 0 | BI44: 0 | BJ44: 0 | BK44: 0 | BL44: 0 | BM44: 0 | BN44: 0 | BO44: 0 | BP44: 0 | BQ44: 1 | BR44: 0 | BS44: 0 | BT44: 0 | BU44: 1 | BV44: 0 | BW44: 0 | BX44: 0 | BY44: 0 | BZ44: 1 | CA44: 0 | CB44: 0 | CC44: 1 | CD44: 0 | CE44: 0 | CF44: 0 | CG44: 0 | CH44: 0 | CI44: 0 | CJ44: 0 | CK44: 0 | CL44: 0 | CM44: 0 | CN44: 0
A45: 41 | B45: Pedro Avelar | C45: 0 | D45: 25 | E45: 16 | I45: 0* | M45: 0* | Q45: 0 | U45: 0 | Y45: 0 | AC45: 0 | AG45: 0 | AI45: -10 | AK45: 0 | AM45: -10 | AO45: 0 | AS45: 0 | AU45: -10 | AW45: 0 | AY45: -10 | AZ45: 0 | BA45: 0 | BB45: 0 | BC45: 0 | BD45: 0 | BE45: 0 | BF45: 0 | BG45: 0 | BH45: 0 | BI45: 0 | BJ45: 0 | BK45: 0 | BL45: 0 | BM45: 0 | BN45: 0 | BO45: 0 | BP45: 0 | BQ45: 0 | BR45: 0 | BS45: 0 | BT45: 0 | BU45: 0 | BV45: 0 | BW45: 0 | BX45: 1 | BY45: 0 | BZ45: 0 | CA45: 0 | CB45: 0 | CC45: 0 | CD45: 0 | CE45: 0 | CF45: 0 | CG45: 0 | CH45: 0 | CI45: 0 | CJ45: 0 | CK45: 0 | CL45: 0 | CM45: 0 | CN45: 0
A46: 42 | B46: Edmárcio Júnior | C46: 0 | D46: 34 | E46: 7 | G46: SIM | H46: 30 | I46: 11 | L46: 30 | M46: 11 | Q46: 0* | U46: 0* | Y46: 0 | AC46: 0 | AE46: -10 | AG46: 0 | AK46: 0 | AM46: -10 | AO46: 0 | AQ46: -10 | AS46: 0 | AU46: -10 | AW46: 0 | AY46: -10 | AZ46: 0 | BA46: 0 | BB46: 0 | BC46: 0 | BD46: 0 | BE46: 0 | BF46: 0 | BG46: 0 | BH46: 0 | BI46: 0 | BJ46: 0 | BK46: 0 | BL46: 0 | BM46: 0 | BN46: 0 | BO46: 0 | BP46: 0 | BQ46: 0 | BR46: 0 | BS46: 0 | BT46: 0 | BU46: 0 | BV46: 0 | BW46: 0 | BX46: 0 | BY46: 0 | BZ46: 0 | CA46: 0 | CB46: 0 | CC46: 2 | CD46: 0 | CE46: 0 | CF46: 0 | CG46: 1 | CH46: 0 | CI46: 0 | CJ46: 0 | CK46: 0 | CL46: 0 | CM46: 0 | CN46: 0
A47: 43 | B47: Márcio Tadeu | C47: 0 | E47: 0* | G47: -10 | H47: 35 | I47: 6 | M47: 0** | O47: -10 | Q47: 0 | S47: -10 | U47: 0 | W47: -10 | Y47: 0 | AA47: -10 | AC47: 0 | AE47: -10 | AG47: 0 | AI47: -10 | AK47: 0 | AM47: -10 | AO47: 0 | AQ47: -10 | AS47: 0 | AU47: -10 | AW47: 0 | AY47: -10 | AZ47: 0 | BA47: 0 | BB47: 0 | BC47: 0 | BD47: 0 | BE47: 0 | BF47: 0 | BG47: 0 | BH47: 0 | BI47: 0 | BJ47: 0 | BK47: 0 | BL47: 0 | BM47: 0 | BN47: 0 | BO47: 0 | BP47: 0 | BQ47: 0 | BR47: 0 | BS47: 0 | BT47: 0 | BU47: 0 | BV47: 0 | BW47: 0 | BX47: 0 | BY47: 0 | BZ47: 0 | CA47: 0 | CB47: 0 | CC47: 0 | CD47: 0 | CE47: 0 | CF47: 0 | CG47: 0 | CH47: 1 | CI47: 0 | CJ47: 0 | CK47: 0 | CL47: 0 | CM47: 0 | CN47: 0
A48: 44 | B48: Carlos Gomes | C48: 0 | E48: 0* | I48: 0* | M48: 0 | Q48: 0 | U48: 0 | W48: -10 | Y48: 0 | AC48: 0 | AG48: 0 | AK48: 0 | AO48: 0 | AS48: 0 | AW48: 0 | AZ48: 0 | BA48: 0 | BB48: 0 | BC48: 0 | BD48: 0 | BE48: 0 | BF48: 0 | BG48: 0 | BH48: 0 | BI48: 0 | BJ48: 0 | BK48: 0 | BL48: 0 | BM48: 0 | BN48: 0 | BO48: 0 | BP48: 0 | BQ48: 0 | BR48: 0 | BS48: 0 | BT48: 0 | BU48: 0 | BV48: 0 | BW48: 0 | BX48: 0 | BY48: 0 | BZ48: 0 | CA48: 0 | CB48: 0 | CC48: 0 | CD48: 0 | CE48: 0 | CF48: 0 | CG48: 0 | CH48: 0 | CI48: 0 | CJ48: 0 | CK48: 0 | CL48: 0 | CM48: 0 | CN48: 0
A49: 45 | B49: Robert Freitas | C49: 0 | E49: 0* | I49: 0* | M49: 0 | Q49: 0 | S49: -10 | U49: 0 | W49: -10 | Y49: 0 | AA49: -10 | AC49: 0 | AE49: -10 | AG49: 0 | AI49: -10 | AK49: 0 | AM49: -10 | AO49: 0 | AQ49: -10 | AS49: 0 | AU49: -10 | AW49: 0 | AY49: -10 | AZ49: 0 | BA49: 0 | BB49: 0 | BC49: 0 | BD49: 0 | BE49: 0 | BF49: 0 | BG49: 0 | BH49: 0 | BI49: 0 | BJ49: 0 | BK49: 0 | BL49: 0 | BM49: 0 | BN49: 0 | BO49: 0 | BP49: 0 | BQ49: 0 | BR49: 0 | BS49: 0 | BT49: 0 | BU49: 0 | BV49: 0 | BW49: 0 | BX49: 0 | BY49: 0 | BZ49: 0 | CA49: 0 | CB49: 0 | CC49: 0 | CD49: 0 | CE49: 0 | CF49: 0 | CG49: 0 | CH49: 0 | CI49: 0 | CJ49: 0 | CK49: 0 | CL49: 0 | CM49: 0 | CN49: 0

Sheet Tabela Equipes
A1: 2021 | D1: OK | H1: OK | L1: OK | P1: OK | T1: OK | X1: OK | AB1: OK | AF1: OK | AJ1: OK | AN1: OK | AR1: OK | AV1: OK
C2: 1ª etapa | G2: 2ª etapa | K2: 3ª etapa | O2: 4ª etapa | S2: 5ª etapa | W2: 6ª etapa | AA2: 7ª etapa | AE2: 8ª etapa | AI2: 9ª etapa | AM2: 10ª etapa | AQ2: 11ª etapa | AU2: 12ª etapa
C3: 00:00:00 | G3: 00:00:00 | K3: 00:00:00 | O3: 00:00:00 | S3: 00:00:00 | W3: 00:00:00 | AA3: 00:00:00 | AE3: 00:00:00 | AI3: 00:00:00 | AM3: 00:00:00 | AQ3: 00:00:00 | AU3: 00:00:00
A4: EQUIPES | B4: Pontuação Geral | C4: Posição | D4: Pontos | E4: Bônus | F4: Penalidade | G4: Posição | H4: Pontos | I4: Bônus | J4: Penalidade | K4: Posição | L4: Pontos | M4: Bônus | N4: Penalidade | O4: Posição | P4: Pontos | Q4: Bônus | R4: Penalidade | S4: Posição | T4: Pontos | U4: Bônus | V4: Penalidade | W4: Posição | X4: Pontos | Y4: Bônus | Z4: Penalidade | AA4: Posição | AB4: Pontos | AC4: Bônus | AD4: Penalidade | AE4: Posição | AF4: Pontos | AG4: Bônus | AH4: Penalidade | AI4: Posição | AJ4: Pontos | AK4: Bônus | AL4: Penalidade | AM4: Posição | AN4: Pontos | AO4: Bônus | AP4: Penalidade | AQ4: Posição | AR4: Pontos | AS4: Bônus | AT4: Penalidade | AU4: Posição | AV4: Pontos | AW4: Bônus | AX4: Penalidade
A5: LOKAMIG | B5: 1133 | D5: 94 | E5: 2 | H5: 89 | I5: 0 | L5: 147 | M5: 0 | P5: 154 | Q5: 0 | T5: 103 | U5: 0 | X5: 99 | Y5: 0 | AB5: 0 | AC5: 0 | AF5: 89 | AG5: 0 | AJ5: 114 | AK5: 0 | AN5: 82 | AO5: 0 | AR5: 98 | AS5: 0 | AV5: 60 | AW5: 2
A6: Léo Oliveira | B6: 550 | C6: 1 | D6: 60 | E6: 2 | G6: 0 | H6: 0 | I6: 0 | K6: 3 | L6: 52 | M6: 0 | O6: 2 | P6: 55 | Q6: 0 | S6: 2 | T6: 55 | U6: 0 | W6: 4 | X6: 50 | Y6: 0 | AA6: 0 | AB6: 0 | AC6: 0 | AE6: 5 | AF6: 48 | AG6: 0 | AI6: 1 | AJ6: 60 | AK6: 0 | AM6: 1 | AN6: 60 | AO6: 0 | AQ6: 6 | AR6: 46 | AS6: 0 | AU6: 1 | AV6: 60 | AW6: 2
A7: Alan Moreira | B7: 151 | C7: 26 | D7: 15 | E7: 0 | G7: 32 | H7: 9 | I7: 0 | K7: 16 | L7: 26 | M7: 0 | O7: 26 | P7: 15 | Q7: 0 | S7: 0 | T7: 0 | U7: 0 | W7: 10 | X7: 38 | Y7: 0 | AA7: 0 | AB7: 0 | AC7: 0 | AE7: 16 | AF7: 26 | AG7: 0 | AI7: 19 | AJ7: 22 | AK7: 0 | AM7: 0 | AN7: 0 | AO7: 0 | AQ7: 0 | AR7: 0 | AS7: 0 | AU7: 0 | AV7: 0 | AW7: 0
A8: PetrÔnio Junior | B8: 310 | C8: 0 | D8: 0 | E8: 0 | G8: 5 | H8: 48 | I8: 0 | K8: 4 | L8: 50 | M8: 0 | O8: 7 | P8: 44 | Q8: 0 | S8: 11 | T8: 36 | U8: 0 | W8: 30 | X8: 11 | Y8: 0 | AA8: 0 | AB8: 0 | AC8: 0 | AE8: 26 | AF8: 15 | AG8: 0 | AI8: 13 | AJ8: 32 | AK8: 0 | AM8: 19 | AN8: 22 | AO8: 0 | AQ8: 3 | AR8: 52 | AS8: 0 | AU8: 0 | AV8: 0 | AW8: 0
A9: Thales Almeida | B9: 122 | C9: 22 | D9: 19 | E9: 0 | G9: 13 | H9: 32 | I9: 0 | K9: 22 | L9: 19 | M9: 0 | O9: 9 | P9: 40 | Q9: 0 | S9: 29 | T9: 12 | U9: 0 | W9: 0 | X9: 0 | Y9: 0 | AA9: 0 | AB9: 0 | AC9: 0 | AE9: 0 | AF9: 0 | AG9: 0 | AI9: 0 | AJ9: 0 | AK9: 0 | AM9: 0 | AN9: 0 | AO9: 0 | AQ9: 0 | AR9: 0 | AS9: 0 | AU9: 0 | AV9: 0 | AW9: 0
A10: XXXXXX | B10: 0
A11: AST ESTRUTURAS | B11: 1297 | D11: 105 | E11: 0 | H11: 31 | I11: 0 | L11: 127 | M11: 2 | P11: 166 | Q11: 2 | T11: 150 | U11: 2 | X11: 119 | Y11: 0 | AB11: 100 | AC11: 0 | AF11: 106 | AG11: 0 | AJ11: 88 | AK11: 0 | AN11: 94 | AO11: 0 | AR11: 106 | AS11: 0 | AV11: 99 | AW11: 0
A12: Anderson Teixeira | B12: 400 | C12: 17 | D12: 24 | E12: 0 | G12: 17 | H12: 24 | I12: 0 | K12: 1 | L12: 60 | M12: 2 | O12: 13 | P12: 32 | Q12: 0 | S12: 1 | T12: 60 | U12: 2 | W12: 7 | X12: 44 | Y12: 0 | AA12: 13 | AB12: 32 | AC12: 0 | AE12: 25 | AF12: 16 | AG12: 0 | AI12: 0 | AJ12: 0 | AK12: 0 | AM12: 16 | AN12: 26 | AO12: 0 | AQ12: 12 | AR12: 34 | AS12: 0 | AU12: 7 | AV12: 44 | AW12: 0
A13: Frederico Papatella | B13: 282 | C13: 24 | D13: 17 | E13: 0 | G13: 0 | H13: 0 | I13: 0 | K13: 29 | L13: 12 | M13: 0 | O13: 11 | P13: 36 | Q13: 0 | S13: 9 | T13: 40 | U13: 0 | W13: 21 | X13: 20 | Y13: 0 | AA13: 23 | AB13: 18 | AC13: 0 | AE13: 7 | AF13: 44 | AG13: 0 | AI13: 10 | AJ13: 38 | AK13: 0 | AM13: 9 | AN13: 40 | AO13: 0 | AQ13: 24 | AR13: 17 | AS13: 0 | AU13: 0 | AV13: 0 | AW13: 0
A14: Carlos Gomes | B14: 0 | C14: 0 | D14: 0 | E14: 0 | G14: 0 | H14: 0 | I14: 0 | K14: 0 | L14: 0 | M14: 0 | O14: 0 | P14: 0 | Q14: 0 | S14: 0 | T14: 0 | U14: 0 | W14: 0 | X14: 0 | Y14: 0 | AA14: 0 | AB14: 0 | AC14: 0 | AE14: 0 | AF14: 0 | AG14: 0 | AI14: 0 | AJ14: 0 | AK14: 0 | AM14: 0 | AN14: 0 | AO14: 0 | AQ14: 0 | AR14: 0 | AS14: 0 | AU14: 0 | AV14: 0 | AW14: 0
A15: Rafael Miranda | B15: 529 | C15: 23 | D15: 18 | E15: 0 | G15: 34 | H15: 7 | I15: 0 | K15: 2 | L15: 55 | M15: 0 | O15: 1 | P15: 60 | Q15: 0 | S15: 4 | T15: 50 | U15: 0 | W15: 2 | X15: 55 | Y15: 0 | AA15: 4 | AB15: 50 | AC15: 0 | AE15: 6 | AF15: 46 | AG15: 0 | AI15: 4 | AJ15: 50 | AK15: 0 | AM15: 15 | AN15: 28 | AO15: 0 | AQ15: 2 | AR15: 55 | AS15: 0 | AU15: 2 | AV15: 55 | AW15: 0
A16: Marcus Silva | B16: 86 | C16: 6 | D16: 46 | E16: 0 | G16: 0 | H16: 0 | I16: 0 | K16: 0 | L16: 0 | M16: 0 | O16: 10 | P16: 38 | Q16: 2 | S16: 0 | T16: 0 | U16: 0 | W16: 0 | X16: 0 | Y16: 0 | AA16: 0 | AB16: 0 | AC16: 0 | AE16: 0 | AF16: 0 | AG16: 0 | AI16: 0 | AJ16: 0 | AK16: 0 | AM16: 0 | AN16: 0 | AO16: 0 | AQ16: 0 | AR16: 0 | AS16: 0 | AU16: 0 | AV16: 0 | AW16: 0
A17: CLEMENTE CAR | B17: 803 | D17: 75 | E17: 0 | H17: 102 | I17: 2 | L17: 59 | M17: 0 | P17: 86 | Q17: 0 | T17: 88 | U17: 0 | X17: 32 | Y17: 0 | AB17: 60 | AC17: 2 | AF17: 38 | AG17: 0 | AJ17: 64 | AK17: 0 | AN17: 70 | AO17: 0 | AR17: 54 | AS17: 0 | AV17: 71 | AW17: 0
A18: Christian Guedes | B18: 514 | C18: 5 | D18: 48 | E18: 0 | G18: 4 | H18: 50 | I18: 2 | K18: 13 | L18: 32 | M18: 0 | O18: 16 | P18: 26 | Q18: 0 | S18: 6 | T18: 46 | U18: 0 | W18: 13 | X18: 32 | Y18: 0 | AA18: 1 | AB18: 60 | AC18: 2 | AE18: 10 | AF18: 38 | AG18: 0 | AI18: 6 | AJ18: 46 | AK18: 0 | AM18: 4 | AN18: 50 | AO18: 0 | AQ18: 13 | AR18: 32 | AS18: 0 | AU18: 4 | AV18: 50 | AW18: 0
A19: Edmárcio Júnior | B19: 29 | C19: 34 | D19: 7 | E19: 0 | G19: 30 | H19: 11 | I19: 0 | K19: 30 | L19: 11 | M19: 0 | O19: 0 | P19: 0 | Q19: 0 | S19: 0 | T19: 0 | U19: 0 | W19: 0 | X19: 0 | Y19: 0 | AA19: 0 | AB19: 0 | AC19: 0 | AE19: 0 | AF19: 0 | AG19: 0 | AI19: 0 | AJ19: 0 | AK19: 0 | AM19: 0 | AN19: 0 | AO19: 0 | AQ19: 0 | AR19: 0 | AS19: 0 | AU19: 0 | AV19: 0 | AW19: 0
A20: Tafarel Henrique | B20: 113 | C20: 27 | D20: 14 | E20: 0 | G20: 19 | H20: 22 | I20: 0 | K20: 32 | L20: 9 | M20: 0 | O20: 6 | P20: 46 | Q20: 0 | S20: 19 | T20: 22 | U20: 0 | W20: 0 | X20: 0 | Y20: 0 | AA20: 0 | AB20: 0 | AC20: 0 | AE20: 0 | AF20: 0 | AG20: 0 | AI20: 0 | AJ20: 0 | AK20: 0 | AM20: 0 | AN20: 0 | AO20: 0 | AQ20: 0 | AR20: 0 | AS20: 0 | AU20: 0 | AV20: 0 | AW20: 0
A21: Thiago Azevedo | B21: 147 | C21: 35 | D21: 6 | E21: 0 | G21: 22 | H21: 19 | I21: 0 | K21: 34 | L21: 7 | M21: 0 | O21: 27 | P21: 14 | Q21: 0 | S21: 21 | T21: 20 | U21: 0 | W21: 0 | X21: 0 | Y21: 0 | AA21: 0 | AB21: 0 | AC21: 0 | AE21: 0 | AF21: 0 | AG21: 0 | AI21: 23 | AJ21: 18 | AK21: 0 | AM21: 21 | AN21: 20 | AO21: 0 | AQ21: 19 | AR21: 22 | AS21: 0 | AU21: 20 | AV21: 21 | AW21: 0
A22: XXXXXX | B22: 0
A23: VIAKART | B23: 1247 | D23: 124 | E23: 0 | H23: 83 | I23: 0 | L23: 120 | M23: 0 | P23: 77 | Q23: 0 | T23: 144 | U23: 0 | X23: 115 | Y23: 0 | AB23: 125 | AC23: 0 | AF23: 88 | AG23: 0 | AJ23: 104 | AK23: 0 | AN23: 110 | AO23: 0 | AR23: 85 | AS23: 0 | AV23: 72 | AW23: 0
A24: Jarbas Reis | B24: 326 | C24: 19 | D24: 22 | E24: 0 | G24: 7 | H24: 44 | I24: 0 | K24: 12 | L24: 34 | M24: 0 | O24: 31 | P24: 10 | Q24: 0 | S24: 12 | T24: 34 | U24: 0 | W24: 8 | X24: 42 | Y24: 0 | AA24: 11 | AB24: 36 | AC24: 0 | AE24: 27 | AF24: 14 | AG24: 0 | AI24: 16 | AJ24: 26 | AK24: 0 | AM24: 12 | AN24: 34 | AO24: 0 | AQ24: 14 | AR24: 30 | AS24: 0 | AU24: 0 | AV24: 0 | AW24: 0
A25: Wesley Canuto | B25: 381 | C25: 20 | D25: 21 | E25: 0 | G25: 18 | H25: 23 | I25: 0 | K25: 19 | L25: 22 | M25: 0 | O25: 15 | P25: 28 | Q25: 0 | S25: 3 | T25: 52 | U25: 0 | W25: 9 | X25: 40 | Y25: 0 | AA25: 15 | AB25: 28 | AC25: 0 | AE25: 9 | AF25: 40 | AG25: 0 | AI25: 12 | AJ25: 34 | AK25: 0 | AM25: 7 | AN25: 44 | AO25: 0 | AQ25: 26 | AR25: 15 | AS25: 0 | AU25: 12 | AV25: 34 | AW25: 0
A26: Matheus Rocha | B26: 344 | C26: 16 | D26: 26 | E26: 0 | G26: 25 | H26: 16 | I26: 0 | K26: 11 | L26: 36 | M26: 0 | O26: 24 | P26: 17 | Q26: 0 | S26: 7 | T26: 44 | U26: 0 | W26: 23 | X26: 18 | Y26: 0 | AA26: 28 | AB26: 13 | AC26: 0 | AE26: 12 | AF26: 34 | AG26: 0 | AI26: 7 | AJ26: 44 | AK26: 0 | AM26: 23 | AN26: 18 | AO26: 0 | AQ26: 9 | AR26: 40 | AS26: 0 | AU26: 10 | AV26: 38 | AW26: 0
A27: Saulo Chagas | B27: 196 | C27: 2 | D27: 55 | E27: 0 | G27: 0 | H27: 0 | I27: 0 | K27: 15 | L27: 28 | M27: 0 | O27: 19 | P27: 22 | Q27: 0 | S27: 27 | T27: 14 | U27: 0 | W27: 26 | X27: 15 | Y27: 0 | AA27: 5 | AB27: 48 | AC27: 0 | AE27: 0 | AF27: 0 | AG27: 0 | AI27: 0 | AJ27: 0 | AK27: 0 | AM27: 27 | AN27: 14 | AO27: 0 | AQ27: 0 | AR27: 0 | AS27: 0 | AU27: 0 | AV27: 0 | AW27: 0
A28: XXXXXX | B28: 0
A29: TIRA GRILOS | B29: 634 | D29: 65 | E29: 0 | H29: 93 | I29: 0 | L29: 76 | M29: 0 | P29: 0 | Q29: 0 | T29: 65 | U29: 0 | X29: 49 | Y29: 0 | AB29: 75 | AC29: 0 | AF29: 53 | AG29: 0 | AJ29: 17 | AK29: 0 | AN29: 30 | AO29: 0 | AR29: 59 | AS29: 0 | AV29: 52 | AW29: 0
A30: Diego Rodrigues | B30: 389 | C30: 7 | D30: 44 | E30: 0 | G30: 6 | H30: 46 | I30: 0 | K30: 9 | L30: 40 | M30: 0 | O30: 0 | P30: 0 | Q30: 0 | S30: 8 | T30: 42 | U30: 0 | W30: 11 | X30: 36 | Y30: 0 | AA30: 2 | AB30: 55 | AC30: 0 | AE30: 18 | AF30: 23 | AG30: 0 | AI30: 0 | AJ30: 0 | AK30: 0 | AM30: 14 | AN30: 30 | AO30: 0 | AQ30: 20 | AR30: 21 | AS30: 0 | AU30: 3 | AV30: 52 | AW30: 0
A31: Thiago Santos | B31: 94 | C31: 36 | D31: 5 | E31: 0 | G31: 20 | H31: 21 | I31: 0 | K31: 26 | L31: 15 | M31: 0 | O31: 0 | P31: 0 | Q31: 0 | S31: 18 | T31: 23 | U31: 0 | W31: 28 | X31: 13 | Y31: 0 | AA31: 0 | AB31: 0 | AC31: 0 | AE31: 0 | AF31: 0 | AG31: 0 | AI31: 24 | AJ31: 17 | AK31: 0 | AM31: 0 | AN31: 0 | AO31: 0 | AQ31: 0 | AR31: 0 | AS31: 0 | AU31: 0 | AV31: 0 | AW31: 0
A32: Aparecido Arantes | B32: 135 | C32: 0 | D32: 0 | E32: 0 | G32: 16 | H32: 26 | I32: 0 | K32: 20 | L32: 21 | M32: 0 | O32: 0 | P32: 0 | Q32: 0 | S32: 0 | T32: 0 | U32: 0 | W32: 0 | X32: 0 | Y32: 0 | AA32: 21 | AB32: 20 | AC32: 0 | AE32: 14 | AF32: 30 | AG32: 0 | AI32: 0 | AJ32: 0 | AK32: 0 | AM32: 0 | AN32: 0 | AO32: 0 | AQ32: 10 | AR32: 38 | AS32: 0 | AU32: 0 | AV32: 0 | AW32: 0
A33: Pedro Avelar | B33: 16 | C33: 25 | D33: 16 | E33: 0 | G33: 0 | H33: 0 | I33: 0 | K33: 0 | L33: 0 | M33: 0 | O33: 0 | P33: 0 | Q33: 0 | S33: 0 | T33: 0 | U33: 0 | W33: 0 | X33: 0 | Y33: 0 | AA33: 0 | AB33: 0 | AC33: 0 | AE33: 0 | AF33: 0 | AG33: 0 | AI33: 0 | AJ33: 0 | AK33: 0 | AM33: 0 | AN33: 0 | AO33: 0 | AQ33: 0 | AR33: 0 | AS33: 0 | AU33: 0 | AV33: 0 | AW33: 0
A34: XXXXXX | B34: 0
A35: DELCAR | B35: 757 | D35: 80 | E35: 0 | H35: 79 | I35: 0 | L35: 48 | M35: 0 | P35: 73 | Q35: 0 | T35: 60 | U35: 0 | X35: 50 | Y35: 0 | AB35: 58 | AC35: 0 | AF35: 53 | AG35: 0 | AJ35: 63 | AK35: 0 | AN35: 57 | AO35: 0 | AR35: 74 | AS35: 0 | AV35: 62 | AW35: 0
A36: Guilherme Alves | B36: 441 | C36: 3 | D36: 52 | E36: 0 | G36: 11 | H36: 36 | I36: 0 | K36: 24 | L36: 17 | M36: 0 | O36: 8 | P36: 42 | Q36: 0 | S36: 15 | T36: 28 | U36: 0 | W36: 15 | X36: 28 | Y36: 0 | AA36: 12 | AB36: 34 | AC36: 0 | AE36: 11 | AF36: 36 | AG36: 0 | AI36: 8 | AJ36: 42 | AK36: 0 | AM36: 8 | AN36: 42 | AO36: 0 | AQ36: 5 | AR36: 48 | AS36: 0 | AU36: 11 | AV36: 36 | AW36: 0
A37: Renato Martins | B37: 227 | C37: 33 | D37: 8 | E37: 0 | G37: 26 | H37: 15 | I37: 0 | K37: 33 | L37: 8 | M37: 0 | O37: 28 | P37: 13 | Q37: 0 | S37: 13 | T37: 32 | U37: 0 | W37: 19 | X37: 22 | Y37: 0 | AA37: 17 | AB37: 24 | AC37: 0 | AE37: 24 | AF37: 17 | AG37: 0 | AI37: 20 | AJ37: 21 | AK37: 0 | AM37: 26 | AN37: 15 | AO37: 0 | AQ37: 16 | AR37: 26 | AS37: 0 | AU37: 16 | AV37: 26 | AW37: 0
A38: Luiz Azevedo | B38: 89 | C38: 21 | D38: 20 | E38: 0 | G38: 15 | H38: 28 | I38: 0 | K38: 18 | L38: 23 | M38: 0 | O38: 23 | P38: 18 | Q38: 0 | S38: 0 | T38: 0 | U38: 0 | W38: 0 | X38: 0 | Y38: 0 | AA38: 0 | AB38: 0 | AC38: 0 | AE38: 0 | AF38: 0 | AG38: 0 | AI38: 0 | AJ38: 0 | AK38: 0 | AM38: 0 | AN38: 0 | AO38: 0 | AQ38: 0 | AR38: 0 | AS38: 0 | AU38: 0 | AV38: 0 | AW38: 0
A39: Robert Freitas | B39: 0 | C39: 0 | D39: 0 | E39: 0 | G39: 0 | H39: 0 | I39: 0 | K39: 0 | L39: 0 | M39: 0 | O39: 0 | P39: 0 | Q39: 0 | S39: 0 | T39: 0 | U39: 0 | W39: 0 | X39: 0 | Y39: 0 | AA39: 0 | AB39: 0 | AC39: 0 | AE39: 0 | AF39: 0 | AG39: 0 | AI39: 0 | AJ39: 0 | AK39: 0 | AM39: 0 | AN39: 0 | AO39: 0 | AQ39: 0 | AR39: 0 | AS39: 0 | AU39: 0 | AV39: 0 | AW39: 0
A40: XXXXXX | B40: 0
A41: APLHA ENGENHARIA | B41: 1060 | D41: 104 | E41: 0 | H41: 114 | I41: 0 | L41: 42 | M41: 0 | P41: 89 | Q41: 0 | T41: 32 | U41: 0 | X41: 113 | Y41: 2 | AB41: 131 | AC41: 0 | AF41: 106 | AG41: 0 | AJ41: 77 | AK41: 0 | AN41: 90 | AO41: 0 | AR41: 88 | AS41: 0 | AV41: 72 | AW41: 0
A42: Raphael Reis | B42: 363 | C42: 14 | D42: 30 | E42: 0 | G42: 12 | H42: 34 | I42: 0 | K42: 17 | L42: 24 | M42: 0 | O42: 4 | P42: 50 | Q42: 0 | S42: 0 | T42: 0 | U42: 0 | W42: 12 | X42: 34 | Y42: 0 | AA42: 7 | AB42: 44 | AC42: 0 | AE42: 17 | AF42: 24 | AG42: 0 | AI42: 5 | AJ42: 48 | AK42: 0 | AM42: 24 | AN42: 17 | AO42: 0 | AQ42: 15 | AR42: 28 | AS42: 0 | AU42: 14 | AV42: 30 | AW42: 0
A43: Fernando Mota | B43: 303 | C43: 11 | D43: 36 | E43: 0 | G43: 0 | H43: 0 | I43: 0 | K43: 0 | L43: 0 | M43: 0 | O43: 0 | P43: 0 | Q43: 0 | S43: 26 | T43: 15 | U43: 0 | W43: 1 | X43: 60 | Y43: 2 | AA43: 9 | AB43: 40 | AC43: 0 | AE43: 0 | AF43: 0 | AG43: 0 | AI43: 0 | AJ43: 0 | AK43: 0 | AM43: 5 | AN43: 48 | AO43: 0 | AQ43: 1 | AR43: 60 | AS43: 0 | AU43: 8 | AV43: 42 | AW43: 0
A44: Jean Paul | B44: 211 | C44: 12 | D44: 34 | E44: 0 | G44: 10 | H44: 38 | I44: 0 | K44: 27 | L44: 14 | M44: 0 | O44: 21 | P44: 20 | Q44: 0 | S44: 24 | T44: 17 | U44: 0 | W44: 22 | X44: 19 | Y44: 0 | AA44: 20 | AB44: 21 | AC44: 0 | AE44: 19 | AF44: 22 | AG44: 0 | AI44: 27 | AJ44: 14 | AK44: 0 | AM44: 29 | AN44: 12 | AO44: 0 | AQ44: 0 | AR44: 0 | AS44: 0 | AU44: 0 | AV44: 0 | AW44: 0
A45: Guilherme Camarano | B45: 183 | C45: 37 | D45: 4 | E45: 0 | G45: 8 | H45: 42 | I45: 0 | K45: 37 | L45: 4 | M45: 0 | O45: 22 | P45: 19 | Q45: 0 | S45: 0 | T45: 0 | U45: 0 | W45: 0 | X45: 0 | Y45: 0 | AA45: 16 | AB45: 26 | AC45: 0 | AE45: 1 | AF45: 60 | AG45: 0 | AI45: 26 | AJ45: 15 | AK45: 0 | AM45: 28 | AN45: 13 | AO45: 0 | AQ45: 0 | AR45: 0 | AS45: 0 | AU45: 0 | AV45: 0 | AW45: 0
A46: XXXXXX | B46: 0
A47: RBC | B47: 857 | D47: 64 | E47: 0 | H47: 84 | I47: 0 | L47: 124 | M47: 0 | P47: 76 | Q47: 0 | T47: 54 | U47: 0 | X47: 29 | Y47: 0 | AB47: 84 | AC47: 0 | AF47: 60 | AG47: 0 | AJ47: 76 | AK47: 0 | AN47: 107 | AO47: 2 | AR47: 42 | AS47: 0 | AV47: 55 | AW47: 0
A48: Bruno Nosse | B48: 430 | C48: 10 | D48: 38 | E48: 0 | G48: 9 | H48: 40 | I48: 0 | K48: 5 | L48: 48 | M48: 0 | O48: 12 | P48: 34 | Q48: 0 | S48: 14 | T48: 30 | U48: 0 | W48: 24 | X48: 17 | Y48: 0 | AA48: 10 | AB48: 38 | AC48: 0 | AE48: 8 | AF48: 42 | AG48: 0 | AI48: 11 | AJ48: 36 | AK48: 0 | AM48: 3 | AN48: 52 | AO48: 0 | AQ48: 18 | AR48: 23 | AS48: 0 | AU48: 13 | AV48: 32 | AW48: 0
A49: Gustavo Barros | B49: 74 | C49: 39 | D49: 2 | E49: 0 | G49: 0 | H49: 0 | I49: 0 | K49: 14 | L49: 30 | M49: 0 | O49: 29 | P49: 12 | Q49: 0 | S49: 0 | T49: 0 | U49: 0 | W49: 29 | X49: 12 | Y49: 0 | AA49: 0 | AB49: 0 | AC49: 0 | AE49: 23 | AF49: 18 | AG49: 0 | AI49: 0 | AJ49: 0 | AK49: 0 | AM49: 0 | AN49: 0 | AO49: 0 | AQ49: 0 | AR49: 0 | AS49: 0 | AU49: 0 | AV49: 0 | AW49: 0
A50: Luciano Robervine | B50: 67 | C50: 30 | D50: 11 | E50: 0 | G50: 27 | H50: 14 | I50: 0 | K50: 0 | L50: 0 | M50: 0 | O50: 0 | P50: 0 | Q50: 0 | S50: 0 | T50: 0 | U50: 0 | W50: 0 | X50: 0 | Y50: 0 | AA50: 0 | AB50: 0 | AC50: 0 | AE50: 0 | AF50: 0 | AG50: 0 | AI50: 0 | AJ50: 0 | AK50: 0 | AM50: 0 | AN50: 0 | AO50: 0 | AQ50: 22 | AR50: 19 | AS50: 0 | AU50: 18 | AV50: 23 | AW50: 0
A51: Felipe Curi | B51: 286 | C51: 28 | D51: 13 | E51: 0 | G51: 14 | H51: 30 | I51: 0 | K51: 6 | L51: 46 | M51: 0 | O51: 14 | P51: 30 | Q51: 0 | S51: 17 | T51: 24 | U51: 0 | W51: 0 | X51: 0 | Y51: 0 | AA51: 6 | AB51: 46 | AC51: 0 | AE51: 0 | AF51: 0 | AG51: 0 | AI51: 9 | AJ51: 40 | AK51: 0 | AM51: 2 | AN51: 55 | AO51: 2 | AQ51: 0 | AR51: 0 | AS51: 0 | AU51: 0 | AV51: 0 | AW51: 0
A52: XXXXXX | B52: 0
A53: LQN | B53: 380 | D53: 53 | E53: 0 | H53: 27 | I53: 0 | L53: 23 | M53: 0 | P53: 48 | Q53: 0 | T53: 0 | U53: 0 | X53: 35 | Y53: 0 | AB53: 30 | AC53: 0 | AF53: 25 | AG53: 0 | AJ53: 42 | AK53: 0 | AN53: 35 | AO53: 0 | AR53: 20 | AS53: 0 | AV53: 42 | AW53: 0
A54: Pedro Fialho | B54: 50 | C54: 4 | D54: 50 | E54: 0 | G54: 0 | H54: 0 | I54: 0 | K54: 0 | L54: 0 | M54: 0 | O54: 0 | P54: 0 | Q54: 0 | S54: 0 | T54: 0 | U54: 0 | W54: 0 | X54: 0 | Y54: 0 | AA54: 0 | AB54: 0 | AC54: 0 | AE54: 0 | AF54: 0 | AG54: 0 | AI54: 0 | AJ54: 0 | AK54: 0 | AM54: 0 | AN54: 0 | AO54: 0 | AQ54: 0 | AR54: 0 | AS54: 0 | AU54: 0 | AV54: 0 | AW54: 0
A55: Henry Douglas | B55: 197 | C55: 0 | D55: 0 | E55: 0 | G55: 28 | H55: 13 | I55: 0 | K55: 23 | L55: 18 | M55: 0 | O55: 5 | P55: 48 | Q55: 0 | S55: 0 | T55: 0 | U55: 0 | W55: 20 | X55: 21 | Y55: 0 | AA55: 27 | AB55: 14 | AC55: 0 | AE55: 22 | AF55: 19 | AG55: 0 | AI55: 18 | AJ55: 23 | AK55: 0 | AM55: 22 | AN55: 19 | AO55: 0 | AQ55: 0 | AR55: 0 | AS55: 0 | AU55: 19 | AV55: 22 | AW55: 0
A56: Márcio Tadeu | B56: 6 | C56: 0 | D56: 0 | E56: 0 | G56: 35 | H56: 6 | I56: 0 | K56: 0 | L56: 0 | M56: 0 | O56: 0 | P56: 0 | Q56: 0 | S56: 0 | T56: 0 | U56: 0 | W56: 0 | X56: 0 | Y56: 0 | AA56: 0 | AB56: 0 | AC56: 0 | AE56: 0 | AF56: 0 | AG56: 0 | AI56: 0 | AJ56: 0 | AK56: 0 | AM56: 0 | AN56: 0 | AO56: 0 | AQ56: 0 | AR56: 0 | AS56: 0 | AU56: 0 | AV56: 0 | AW56: 0
A57: Levindo Neto | B57: 127 | C57: 38 | D57: 3 | E57: 0 | G57: 33 | H57: 8 | I57: 0 | K57: 36 | L57: 5 | M57: 0 | O57: 0 | P57: 0 | Q57: 0 | S57: 0 | T57: 0 | U57: 0 | W57: 27 | X57: 14 | Y57: 0 | AA57: 25 | AB57: 16 | AC57: 0 | AE57: 35 | AF57: 6 | AG57: 0 | AI57: 22 | AJ57: 19 | AK57: 0 | AM57: 25 | AN57: 16 | AO57: 0 | AQ57: 21 | AR57: 20 | AS57: 0 | AU57: 21 | AV57: 20 | AW57: 0
A58: XXXXXX | B58: 0
A59: GUI FIGUEIREDO | B59: 1207 | D59: 91 | E59: 0 | H59: 99 | I59: 0 | L59: 102 | M59: 0 | P59: 44 | Q59: 0 | T59: 106 | U59: 0 | X59: 144 | Y59: 0 | AB59: 88 | AC59: 0 | AF59: 101 | AG59: 0 | AJ59: 91 | AK59: 2 | AN59: 135 | AO59: 0 | AR59: 94 | AS59: 0 | AV59: 110 | AW59: 0
A60: Gui Figueiredo | B60: 523 | C60: 9 | D60: 40 | E60: 0 | G60: 1 | H60: 60 | I60: 0 | K60: 8 | L60: 42 | M60: 0 | O60: 33 | P60: 8 | Q60: 0 | S60: 5 | T60: 48 | U60: 0 | W60: 3 | X60: 52 | Y60: 0 | AA60: 14 | AB60: 30 | AC60: 0 | AE60: 3 | AF60: 52 | AG60: 0 | AI60: 2 | AJ60: 55 | AK60: 2 | AM60: 6 | AN60: 46 | AO60: 0 | AQ60: 8 | AR60: 42 | AS60: 0 | AU60: 6 | AV60: 46 | AW60: 0
A61: Samuel Farley | B61: 335 | C61: 13 | D61: 32 | E61: 0 | G61: 29 | H61: 12 | I61: 0 | K61: 10 | L61: 38 | M61: 0 | O61: 25 | P61: 16 | Q61: 0 | S61: 28 | T61: 13 | U61: 0 | W61: 6 | X61: 46 | Y61: 0 | AA61: 19 | AB61: 22 | AC61: 0 | AE61: 15 | AF61: 28 | AG61: 0 | AI61: 25 | AJ61: 16 | AK61: 0 | AM61: 11 | AN61: 36 | AO61: 0 | AQ61: 11 | AR61: 36 | AS61: 0 | AU61: 9 | AV61: 40 | AW61: 0
A62: Bruno Camargos | B62: 151 | C62: 32 | D62: 9 | E62: 0 | G62: 31 | H62: 10 | I62: 0 | K62: 25 | L62: 16 | M62: 0 | O62: 32 | P62: 9 | Q62: 0 | S62: 16 | T62: 26 | U62: 0 | W62: 14 | X62: 30 | Y62: 0 | AA62: 22 | AB62: 19 | AC62: 0 | AE62: 0 | AF62: 0 | AG62: 0 | AI62: 0 | AJ62: 0 | AK62: 0 | AM62: 13 | AN62: 32 | AO62: 0 | AQ62: 0 | AR62: 0 | AS62: 0 | AU62: 0 | AV62: 0 | AW62: 0
A63: Celso Dantas | B63: 198 | C63: 31 | D63: 10 | E63: 0 | G63: 24 | H63: 17 | I63: 0 | K63: 35 | L63: 6 | M63: 0 | O63: 30 | P63: 11 | Q63: 0 | S63: 22 | T63: 19 | U63: 0 | W63: 25 | X63: 16 | Y63: 0 | AA63: 24 | AB63: 17 | AC63: 0 | AE63: 20 | AF63: 21 | AG63: 0 | AI63: 21 | AJ63: 20 | AK63: 0 | AM63: 20 | AN63: 21 | AO63: 0 | AQ63: 25 | AR63: 16 | AS63: 0 | AU63: 17 | AV63: 24 | AW63: 0
A64: XXXXXX | B64: 0
A65: LOKAMIG1 | B65: 1406 | D65: 105 | E65: 0 | H65: 145 | I65: 0 | L65: 87 | M65: 0 | P65: 120 | Q65: 0 | T65: 93 | U65: 0 | X65: 121 | Y65: 0 | AB65: 132 | AC65: 0 | AF65: 157 | AG65: 2 | AJ65: 134 | AK65: 0 | AN65: 96 | AO65: 0 | AR65: 136 | AS65: 2 | AV65: 76 | AW65: 0
A66: Alexandre Melillo | B66: 411 | C66: 15 | D66: 28 | E66: 0 | G66: 2 | H66: 55 | I66: 0 | K66: 7 | L66: 44 | M66: 0 | O66: 17 | P66: 24 | Q66: 0 | S66: 10 | T66: 38 | U66: 0 | W66: 17 | X66: 24 | Y66: 0 | AA66: 3 | AB66: 52 | AC66: 0 | AE66: 21 | AF66: 20 | AG66: 0 | AI66: 14 | AJ66: 30 | AK66: 0 | AM66: 17 | AN66: 24 | AO66: 0 | AQ66: 7 | AR66: 44 | AS66: 0 | AU66: 15 | AV66: 28 | AW66: 0
A67: Lucio Chequer | B67: 357 | C67: 8 | D67: 42 | E67: 0 | G67: 23 | H67: 18 | I67: 0 | K67: 21 | L67: 20 | M67: 0 | O67: 18 | P67: 23 | Q67: 0 | S67: 20 | T67: 21 | U67: 0 | W67: 16 | X67: 26 | Y67: 0 | AA67: 18 | AB67: 23 | AC67: 0 | AE67: 4 | AF67: 50 | AG67: 0 | AI67: 17 | AJ67: 24 | AK67: 0 | AM67: 10 | AN67: 38 | AO67: 0 | AQ67: 17 | AR67: 24 | AS67: 0 | AU67: 5 | AV67: 48 | AW67: 0
A68: Lucas Rabelo | B68: 365 | C68: 18 | D68: 23 | E68: 0 | G68: 3 | H68: 52 | I68: 0 | K68: 28 | L68: 13 | M68: 0 | O68: 3 | P68: 52 | Q68: 0 | S68: 25 | T68: 16 | U68: 0 | W68: 5 | X68: 48 | Y68: 0 | AA68: 26 | AB68: 15 | AC68: 0 | AE68: 2 | AF68: 55 | AG68: 2 | AI68: 15 | AJ68: 28 | AK68: 0 | AM68: 30 | AN68: 11 | AO68: 0 | AQ68: 4 | AR68: 50 | AS68: 0 | AU68: 0 | AV68: 0 | AW68: 0
A69: Matheus Azevedo | B69: 273 | C69: 29 | D69: 12 | E69: 0 | G69: 21 | H69: 20 | I69: 0 | K69: 31 | L69: 10 | M69: 0 | O69: 20 | P69: 21 | Q69: 0 | S69: 23 | T69: 18 | U69: 0 | W69: 18 | X69: 23 | Y69: 0 | AA69: 8 | AB69: 42 | AC69: 0 | AE69: 13 | AF69: 32 | AG69: 0 | AI69: 3 | AJ69: 52 | AK69: 0 | AM69: 18 | AN69: 23 | AO69: 0 | AQ69: 23 | AR69: 18 | AS69: 2 | AU69: 0 | AV69: 0 | AW69: 0
A70: XXXXXX | B70: 0

Sheet Class Elimin 2 Piores Equip
A1: 2021 | D1: OK | H1: OK | L1: OK | P1: OK | T1: OK | X1: OK | AB1: OK | AF1: OK | AJ1: OK | AN1: OK | AR1: OK | AV1: OK
C2: 1ª etapa | G2: 2ª etapa | K2: 3ª etapa | O2: 4ª etapa | S2: 5ª etapa | W2: 6ª etapa | AA2: 7ª etapa | AE2: 8ª etapa | AI2: 9ª etapa | AM2: 10ª etapa | AQ2: 11ª etapa | AU2: 12ª etapa
C3: 00:00:00 | G3: 00:00:00 | K3: 00:00:00 | O3: 00:00:00 | S3: 00:00:00 | W3: 00:00:00 | AA3: 00:00:00 | AE3: 00:00:00 | AI3: 00:00:00 | AM3: 00:00:00 | AQ3: 00:00:00 | AU3: 00:00:00
A4: EQUIPES | B4: Pontuação Geral | C4: Posição | D4: Pontos | E4: Bônus | F4: Penalidade | G4: Posição | H4: Pontos | I4: Bônus | J4: Penalidade | K4: Posição | L4: Pontos | M4: Bônus | N4: Penalidade | O4: Posição | P4: Pontos | Q4: Bônus | R4: Penalidade | S4: Posição | T4: Pontos | U4: Bônus | V4: Penalidade | W4: Posição | X4: Pontos | Y4: Bônus | Z4: Penalidade | AA4: Posição | AB4: Pontos | AC4: Bônus | AD4: Penalidade | AE4: Posição | AF4: Pontos | AG4: Bônus | AH4: Penalidade | AI4: Posição | AJ4: Pontos | AK4: Bônus | AL4: Penalidade | AM4: Posição | AN4: Pontos | AO4: Bônus | AP4: Penalidade | AQ4: Posição | AR4: Pontos | AS4: Bônus | AT4: Penalidade | AU4: Posição | AV4: Pontos | AW4: Bônus | AX4: Penalidade
A5: AST ESTRUTURAS | B5: 1129 | D5: 88 | E5: 0 | H5: 31* | I5: 0 | L5: 127 | M5: 2 | P5: 134 | Q5: 2 | T5: 150 | U5: 2 | X5: 119 | Y5: 0 | AB5: 100 | AC5: 0 | AF5: 106 | AG5: 0 | AJ5: 88* | AK5: 0 | AN5: 94 | AO5: 0 | AR5: 106 | AS5: 0 | AV5: 99 | AW5: 0
A6: Anderson Teixeira | B6: 344 | C6: 17 | D6: 24 | E6: 0 | G6: 17 | H6: 24* | I6: 0 | K6: 1 | L6: 60 | M6: 2 | O6: 13 | P6: 32* | Q6: 0 | S6: 1 | T6: 60 | U6: 2 | W6: 7 | X6: 44 | Y6: 0 | AA6: 13 | AB6: 32 | AC6: 0 | AE6: 25 | AF6: 16 | AG6: 0 | AI6: 0 | AJ6: 0* | AK6: 0 | AM6: 16 | AN6: 26 | AO6: 0 | AQ6: 12 | AR6: 34 | AS6: 0 | AU6: 7 | AV6: 44 | AW6: 0
A7: Frederico Papatella | B7: 227 | C7: 24 | D7: 17* | E7: 0 | G7: 0 | H7: 0* | I7: 0 | K7: 29 | L7: 12 | M7: 0 | O7: 11 | P7: 36 | Q7: 0 | S7: 9 | T7: 40 | U7: 0 | W7: 21 | X7: 20 | Y7: 0 | AA7: 23 | AB7: 18 | AC7: 0 | AE7: 7 | AF7: 44 | AG7: 0 | AI7: 10 | AJ7: 38* | AK7: 0 | AM7: 9 | AN7: 40 | AO7: 0 | AQ7: 24 | AR7: 17 | AS7: 0 | AU7: 0 | AV7: 0 | AW7: 0
A8: Carlos Gomes | B8: 0 | C8: 0 | D8: 0 | E8: 0 | G8: 0 | H8: 0* | I8: 0 | K8: 0 | L8: 0 | M8: 0 | O8: 0 | P8: 0 | Q8: 0 | S8: 0 | T8: 0 | U8: 0 | W8: 0 | X8: 0 | Y8: 0 | AA8: 0 | AB8: 0 | AC8: 0 | AE8: 0 | AF8: 0 | AG8: 0 | AI8: 0 | AJ8: 0* | AK8: 0 | AM8: 0 | AN8: 0 | AO8: 0 | AQ8: 0 | AR8: 0 | AS8: 0 | AU8: 0 | AV8: 0 | AW8: 0
A9: Rafael Miranda | B9: 472 | C9: 23 | D9: 18 | E9: 0 | G9: 34 | H9: 7* | I9: 0 | K9: 2 | L9: 55 | M9: 0 | O9: 1 | P9: 60 | Q9: 0 | S9: 4 | T9: 50 | U9: 0 | W9: 2 | X9: 55 | Y9: 0 | AA9: 4 | AB9: 50 | AC9: 0 | AE9: 6 | AF9: 46 | AG9: 0 | AI9: 4 | AJ9: 50* | AK9: 0 | AM9: 15 | AN9: 28 | AO9: 0 | AQ9: 2 | AR9: 55 | AS9: 0 | AU9: 2 | AV9: 55 | AW9: 0
A10: Marcus Silva | B10: 86 | C10: 6 | D10: 46 | E10: 0 | G10: 0 | H10: 0* | I10: 0 | K10: 0 | L10: 0 | M10: 0 | O10: 10 | P10: 38 | Q10: 2 | S10: 0 | T10: 0 | U10: 0 | W10: 0 | X10: 0 | Y10: 0 | AA10: 0 | AB10: 0 | AC10: 0 | AE10: 0 | AF10: 0 | AG10: 0 | AI10: 0 | AJ10: 0* | AK10: 0 | AM10: 0 | AN10: 0 | AO10: 0 | AQ10: 0 | AR10: 0 | AS10: 0 | AU10: 0 | AV10: 0 | AW10: 0
A11: LOKAMIG1 | B11: 1065 | D11: 93 | E11: 0 | H11: 127 | I11: 0 | L11: 77 | M11: 0 | P11: 99 | Q11: 0 | T11: 77* | U11: 0 | X11: 98 | Y11: 0 | AB11: 117 | AC11: 0 | AF11: 137 | AG11: 2 | AJ11: 110 | AK11: 0 | AN11: 85 | AO11: 0 | AR11: 118 | AS11: 2 | AV11: 76* | AW11: 0
A12: Alexandre Melillo | B12: 325 | C12: 15 | D12: 28 | E12: 0 | G12: 2 | H12: 55 | I12: 0 | K12: 7 | L12: 44 | M12: 0 | O12: 17 | P12: 24 | Q12: 0 | S12: 10 | T12: 38* | U12: 0 | W12: 17 | X12: 24 | Y12: 0 | AA12: 3 | AB12: 52 | AC12: 0 | AE12: 21 | AF12: 20* | AG12: 0 | AI12: 14 | AJ12: 30 | AK12: 0 | AM12: 17 | AN12: 24 | AO12: 0 | AQ12: 7 | AR12: 44 | AS12: 0 | AU12: 15 | AV12: 28* | AW12: 0
A13: Lucio Chequer | B13: 246 | C13: 8 | D13: 42 | E13: 0 | G13: 23 | H13: 18* | I13: 0 | K13: 21 | L13: 20 | M13: 0 | O13: 18 | P13: 23 | Q13: 0 | S13: 20 | T13: 21* | U13: 0 | W13: 16 | X13: 26 | Y13: 0 | AA13: 18 | AB13: 23 | AC13: 0 | AE13: 4 | AF13: 50 | AG13: 0 | AI13: 17 | AJ13: 24* | AK13: 0 | AM13: 10 | AN13: 38 | AO13: 0 | AQ13: 17 | AR13: 24 | AS13: 0 | AU13: 5 | AV13: 48* | AW13: 0
A14: Lucas Rabelo | B14: 323 | C14: 18 | D14: 23 | E14: 0 | G14: 3 | H14: 52 | I14: 0 | K14: 28 | L14: 13 | M14: 0 | O14: 3 | P14: 52 | Q14: 0 | S14: 25 | T14: 16** | U14: 0 | W14: 5 | X14: 48 | Y14: 0 | AA14: 26 | AB14: 15* | AC14: 0 | AE14: 2 | AF14: 55 | AG14: 2 | AI14: 15 | AJ14: 28 | AK14: 0 | AM14: 30 | AN14: 11* | AO14: 0 | AQ14: 4 | AR14: 50 | AS14: 0 | AU14: 0 | AV14: 0* | AW14: 0
A15: Matheus Azevedo | B15: 171 | C15: 29 | D15: 12* | E15: 0 | G15: 21 | H15: 20 | I15: 0 | K15: 31 | L15: 10* | M15: 0 | O15: 20 | P15: 21* | Q15: 0 | S15: 23 | T15: 18* | U15: 0 | W15: 18 | X15: 23* | Y15: 0 | AA15: 8 | AB15: 42 | AC15: 0 | AE15: 13 | AF15: 32 | AG15: 0 | AI15: 3 | AJ15: 52 | AK15: 0 | AM15: 18 | AN15: 23 | AO15: 0 | AQ15: 23 | AR15: 18* | AS15: 2 | AU15: 0 | AV15: 0* | AW15: 0
A16: XXXXXX | B16: 0 | T16: * | AV16: *
A17: LOKAMIG | B17: 1039 | D17: 94 | E17: 2 | H17: 89 | I17: 0 | L17: 128 | M17: 0 | P17: 139 | Q17: 0 | T17: 103 | U17: 0 | X17: 99 | Y17: 0 | AB17: 0* | AC17: 0 | AF17: 89 | AG17: 0 | AJ17: 114 | AK17: 0 | AN17: 82 | AO17: 0 | AR17: 98 | AS17: 0 | AV17: 60* | AW17: 2
A18: Léo Oliveira | B18: 490 | C18: 1 | D18: 60 | E18: 2 | G18: 0 | H18: 0 | I18: 0 | K18: 3 | L18: 52 | M18: 0 | O18: 2 | P18: 55 | Q18: 0 | S18: 2 | T18: 55 | U18: 0 | W18: 4 | X18: 50 | Y18: 0 | AA18: 0 | AB18: 0* | AC18: 0 | AE18: 5 | AF18: 48 | AG18: 0 | AI18: 1 | AJ18: 60 | AK18: 0 | AM18: 1 | AN18: 60 | AO18: 0 | AQ18: 6 | AR18: 46 | AS18: 0 | AU18: 1 | AV18: 60* | AW18: 2
A19: Alan Moreira | B19: 136 | C19: 26 | D19: 15 | E19: 0 | G19: 32 | H19: 9 | I19: 0 | K19: 16 | L19: 26 | M19: 0 | O19: 26 | P19: 15* | Q19: 0 | S19: 0 | T19: 0 | U19: 0 | W19: 10 | X19: 38 | Y19: 0 | AA19: 0 | AB19: 0* | AC19: 0 | AE19: 16 | AF19: 26 | AG19: 0 | AI19: 19 | AJ19: 22 | AK19: 0 | AM19: 0 | AN19: 0 | AO19: 0 | AQ19: 0 | AR19: 0 | AS19: 0 | AU19: 0 | AV19: 0* | AW19: 0
A20: PetrÔnio Junior | B20: 310 | C20: 0 | D20: 0 | E20: 0 | G20: 5 | H20: 48 | I20: 0 | K20: 4 | L20: 50 | M20: 0 | O20: 7 | P20: 44 | Q20: 0 | S20: 11 | T20: 36 | U20: 0 | W20: 30 | X20: 11 | Y20: 0 | AA20: 0 | AB20: 0* | AC20: 0 | AE20: 26 | AF20: 15 | AG20: 0 | AI20: 13 | AJ20: 32 | AK20: 0 | AM20: 19 | AN20: 22 | AO20: 0 | AQ20: 3 | AR20: 52 | AS20: 0 | AU20: 0 | AV20: 0* | AW20: 0
A21: Thales Almeida | B21: 103 | C21: 22 | D21: 19 | E21: 0 | G21: 13 | H21: 32 | I21: 0 | K21: 22 | L21: 19* | M21: 0 | O21: 9 | P21: 40 | Q21: 0 | S21: 29 | T21: 12 | U21: 0 | W21: 0 | X21: 0 | Y21: 0 | AA21: 0 | AB21: 0* | AC21: 0 | AE21: 0 | AF21: 0 | AG21: 0 | AI21: 0 | AJ21: 0 | AK21: 0 | AM21: 0 | AN21: 0 | AO21: 0 | AQ21: 0 | AR21: 0 | AS21: 0 | AU21: 0 | AV21: 0* | AW21: 0
A22: XXXXXX | B22: 0 | AB22: * | AV22: *
A23: GUI FIGUEIREDO | B23: 1000 | D23: 82 | E23: 0 | H23: 89 | I23: 0 | L23: 96 | M23: 0 | P23: 36* | Q23: 0 | T23: 93 | U23: 0 | X23: 128 | Y23: 0 | AB23: 71* | AC23: 0 | AF23: 101 | AG23: 0 | AJ23: 91 | AK23: 2 | AN23: 114 | AO23: 0 | AR23: 94 | AS23: 0 | AV23: 110 | AW23: 0
A24: Gui Figueiredo | B24: 485 | C24: 9 | D24: 40 | E24: 0 | G24: 1 | H24: 60 | I24: 0 | K24: 8 | L24: 42 | M24: 0 | O24: 33 | P24: 8** | Q24: 0 | S24: 5 | T24: 48 | U24: 0 | W24: 3 | X24: 52 | Y24: 0 | AA24: 14 | AB24: 30* | AC24: 0 | AE24: 3 | AF24: 52 | AG24: 0 | AI24: 2 | AJ24: 55 | AK24: 2 | AM24: 6 | AN24: 46 | AO24: 0 | AQ24: 8 | AR24: 42 | AS24: 0 | AU24: 6 | AV24: 46 | AW24: 0
A25: Samuel Farley | B25: 284 | C25: 13 | D25: 32 | E25: 0 | G25: 29 | H25: 12 | I25: 0 | K25: 10 | L25: 38 | M25: 0 | O25: 25 | P25: 16* | Q25: 0 | S25: 28 | T25: 13* | U25: 0 | W25: 6 | X25: 46 | Y25: 0 | AA25: 19 | AB25: 22* | AC25: 0 | AE25: 15 | AF25: 28 | AG25: 0 | AI25: 25 | AJ25: 16 | AK25: 0 | AM25: 11 | AN25: 36 | AO25: 0 | AQ25: 11 | AR25: 36 | AS25: 0 | AU25: 9 | AV25: 40 | AW25: 0
A26: Bruno Camargos | B26: 104 | C26: 32 | D26: 9* | E26: 0 | G26: 31 | H26: 10* | I26: 0 | K26: 25 | L26: 16 | M26: 0 | O26: 32 | P26: 9* | Q26: 0 | S26: 16 | T26: 26 | U26: 0 | W26: 14 | X26: 30 | Y26: 0 | AA26: 22 | AB26: 19* | AC26: 0 | AE26: 0 | AF26: 0 | AG26: 0 | AI26: 0 | AJ26: 0 | AK26: 0 | AM26: 13 | AN26: 32 | AO26: 0 | AQ26: 0 | AR26: 0 | AS26: 0 | AU26: 0 | AV26: 0 | AW26: 0
A27: Celso Dantas | B27: 127 | C27: 31 | D27: 10 | E27: 0 | G27: 24 | H27: 17 | I27: 0 | K27: 35 | L27: 6* | M27: 0 | O27: 30 | P27: 11* | Q27: 0 | S27: 22 | T27: 19 | U27: 0 | W27: 25 | X27: 16* | Y27: 0 | AA27: 24 | AB27: 17** | AC27: 0 | AE27: 20 | AF27: 21 | AG27: 0 | AI27: 21 | AJ27: 20 | AK27: 0 | AM27: 20 | AN27: 21* | AO27: 0 | AQ27: 25 | AR27: 16 | AS27: 0 | AU27: 17 | AV27: 24 | AW27: 0
A28: XXXXXX | B28: 0 | P28: * | AB28: *
A29: VIAKART | B29: 999 | D29: 103 | E29: 0 | H29: 83 | I29: 0 | L29: 98 | M29: 0 | P29: 67* | Q29: 0 | T29: 130 | U29: 0 | X29: 100 | Y29: 0 | AB29: 112 | AC29: 0 | AF29: 88 | AG29: 0 | AJ29: 104 | AK29: 0 | AN29: 96 | AO29: 0 | AR29: 85 | AS29: 0 | AV29: 72* | AW29: 0
A30: Jarbas Reis | B30: 316 | C30: 19 | D30: 22 | E30: 0 | G30: 7 | H30: 44 | I30: 0 | K30: 12 | L30: 34 | M30: 0 | O30: 31 | P30: 10** | Q30: 0 | S30: 12 | T30: 34 | U30: 0 | W30: 8 | X30: 42 | Y30: 0 | AA30: 11 | AB30: 36 | AC30: 0 | AE30: 27 | AF30: 14 | AG30: 0 | AI30: 16 | AJ30: 26 | AK30: 0 | AM30: 12 | AN30: 34 | AO30: 0 | AQ30: 14 | AR30: 30 | AS30: 0 | AU30: 0 | AV30: 0* | AW30: 0
A31: Wesley Canuto | B31: 276 | C31: 20 | D31: 21* | E31: 0 | G31: 18 | H31: 23 | I31: 0 | K31: 19 | L31: 22* | M31: 0 | O31: 15 | P31: 28* | Q31: 0 | S31: 3 | T31: 52 | U31: 0 | W31: 9 | X31: 40 | Y31: 0 | AA31: 15 | AB31: 28 | AC31: 0 | AE31: 9 | AF31: 40 | AG31: 0 | AI31: 12 | AJ31: 34 | AK31: 0 | AM31: 7 | AN31: 44 | AO31: 0 | AQ31: 26 | AR31: 15 | AS31: 0 | AU31: 12 | AV31: 34* | AW31: 0
A32: Matheus Rocha | B32: 276 | C32: 16 | D32: 26 | E32: 0 | G32: 25 | H32: 16 | I32: 0 | K32: 11 | L32: 36 | M32: 0 | O32: 24 | P32: 17* | Q32: 0 | S32: 7 | T32: 44 | U32: 0 | W32: 23 | X32: 18 | Y32: 0 | AA32: 28 | AB32: 13* | AC32: 0 | AE32: 12 | AF32: 34 | AG32: 0 | AI32: 7 | AJ32: 44 | AK32: 0 | AM32: 23 | AN32: 18 | AO32: 0 | AQ32: 9 | AR32: 40 | AS32: 0 | AU32: 10 | AV32: 38* | AW32: 0
A33: Saulo Chagas | B33: 131 | C33: 2 | D33: 55 | E33: 0 | G33: 0 | H33: 0 | I33: 0 | K33: 15 | L33: 28 | M33: 0 | O33: 19 | P33: 22* | Q33: 0 | S33: 27 | T33: 14* | U33: 0 | W33: 26 | X33: 15* | Y33: 0 | AA33: 5 | AB33: 48 | AC33: 0 | AE33: 0 | AF33: 0 | AG33: 0 | AI33: 0 | AJ33: 0 | AK33: 0 | AM33: 27 | AN33: 14* | AO33: 0 | AQ33: 0 | AR33: 0 | AS33: 0 | AU33: 0 | AV33: 0* | AW33: 0
A34: XXXXXX | B34: 0 | P34: * | AV34: *
A35: APLHA ENGENHARIA | B35: 949 | D35: 100 | E35: 0 | H35: 114 | I35: 0 | L35: 42* | M35: 0 | P35: 89 | Q35: 0 | T35: 32* | U35: 0 | X35: 113 | Y35: 2 | AB35: 110 | AC35: 0 | AF35: 106 | AG35: 0 | AJ35: 77 | AK35: 0 | AN35: 78 | AO35: 0 | AR35: 88 | AS35: 0 | AV35: 72 | AW35: 0
A36: Raphael Reis | B36: 339 | C36: 14 | D36: 30 | E36: 0 | G36: 12 | H36: 34 | I36: 0 | K36: 17 | L36: 24* | M36: 0 | O36: 4 | P36: 50 | Q36: 0 | S36: 0 | T36: 0* | U36: 0 | W36: 12 | X36: 34 | Y36: 0 | AA36: 7 | AB36: 44 | AC36: 0 | AE36: 17 | AF36: 24 | AG36: 0 | AI36: 5 | AJ36: 48 | AK36: 0 | AM36: 24 | AN36: 17 | AO36: 0 | AQ36: 15 | AR36: 28 | AS36: 0 | AU36: 14 | AV36: 30 | AW36: 0
A37: Fernando Mota | B37: 288 | C37: 11 | D37: 36 | E37: 0 | G37: 0 | H37: 0 | I37: 0 | K37: 0 | L37: 0* | M37: 0 | O37: 0 | P37: 0 | Q37: 0 | S37: 26 | T37: 15* | U37: 0 | W37: 1 | X37: 60 | Y37: 2 | AA37: 9 | AB37: 40 | AC37: 0 | AE37: 0 | AF37: 0 | AG37: 0 | AI37: 0 | AJ37: 0 | AK37: 0 | AM37: 5 | AN37: 48 | AO37: 0 | AQ37: 1 | AR37: 60 | AS37: 0 | AU37: 8 | AV37: 42 | AW37: 0
A38: Jean Paul | B38: 147 | C38: 12 | D38: 34 | E38: 0 | G38: 10 | H38: 38 | I38: 0 | K38: 27 | L38: 14* | M38: 0 | O38: 21 | P38: 20 | Q38: 0 | S38: 24 | T38: 17* | U38: 0 | W38: 22 | X38: 19 | Y38: 0 | AA38: 20 | AB38: 21* | AC38: 0 | AE38: 19 | AF38: 22 | AG38: 0 | AI38: 27 | AJ38: 14 | AK38: 0 | AM38: 29 | AN38: 12* | AO38: 0 | AQ38: 0 | AR38: 0 | AS38: 0 | AU38: 0 | AV38: 0 | AW38: 0
A39: Guilherme Camarano | B39: 175 | C39: 37 | D39: 4* | E39: 0 | G39: 8 | H39: 42 | I39: 0 | K39: 37 | L39: 4* | M39: 0 | O39: 22 | P39: 19 | Q39: 0 | S39: 0 | T39: 0* | U39: 0 | W39: 0 | X39: 0 | Y39: 0 | AA39: 16 | AB39: 26 | AC39: 0 | AE39: 1 | AF39: 60 | AG39: 0 | AI39: 26 | AJ39: 15 | AK39: 0 | AM39: 28 | AN39: 13 | AO39: 0 | AQ39: 0 | AR39: 0 | AS39: 0 | AU39: 0 | AV39: 0 | AW39: 0
A40: XXXXXX | B40: 0 | L40: * | T40: *
A41: RBC | B41: 784 | D41: 62 | E41: 0 | H41: 84 | I41: 0 | L41: 124 | M41: 0 | P41: 76 | Q41: 0 | T41: 54 | U41: 0 | X41: 29* | Y41: 0 | AB41: 84 | AC41: 0 | AF41: 60 | AG41: 0 | AJ41: 76 | AK41: 0 | AN41: 107 | AO41: 2 | AR41: 42* | AS41: 0 | AV41: 55 | AW41: 0
A42: Bruno Nosse | B42: 390 | C42: 10 | D42: 38 | E42: 0 | G42: 9 | H42: 40 | I42: 0 | K42: 5 | L42: 48 | M42: 0 | O42: 12 | P42: 34 | Q42: 0 | S42: 14 | T42: 30 | U42: 0 | W42: 24 | X42: 17* | Y42: 0 | AA42: 10 | AB42: 38 | AC42: 0 | AE42: 8 | AF42: 42 | AG42: 0 | AI42: 11 | AJ42: 36 | AK42: 0 | AM42: 3 | AN42: 52 | AO42: 0 | AQ42: 18 | AR42: 23* | AS42: 0 | AU42: 13 | AV42: 32 | AW42: 0
A43: Gustavo Barros | B43: 60 | C43: 39 | D43: 2* | E43: 0 | G43: 0 | H43: 0 | I43: 0 | K43: 14 | L43: 30 | M43: 0 | O43: 29 | P43: 12 | Q43: 0 | S43: 0 | T43: 0 | U43: 0 | W43: 29 | X43: 12* | Y43: 0 | AA43: 0 | AB43: 0 | AC43: 0 | AE43: 23 | AF43: 18 | AG43: 0 | AI43: 0 | AJ43: 0 | AK43: 0 | AM43: 0 | AN43: 0 | AO43: 0 | AQ43: 0 | AR43: 0* | AS43: 0 | AU43: 0 | AV43: 0 | AW43: 0
A44: Luciano Robervine | B44: 48 | C44: 30 | D44: 11 | E44: 0 | G44: 27 | H44: 14 | I44: 0 | K44: 0 | L44: 0 | M44: 0 | O44: 0 | P44: 0 | Q44: 0 | S44: 0 | T44: 0 | U44: 0 | W44: 0 | X44: 0* | Y44: 0 | AA44: 0 | AB44: 0 | AC44: 0 | AE44: 0 | AF44: 0 | AG44: 0 | AI44: 0 | AJ44: 0 | AK44: 0 | AM44: 0 | AN44: 0 | AO44: 0 | AQ44: 22 | AR44: 19* | AS44: 0 | AU44: 18 | AV44: 23 | AW44: 0
A45: Felipe Curi | B45: 286 | C45: 28 | D45: 13 | E45: 0 | G45: 14 | H45: 30 | I45: 0 | K45: 6 | L45: 46 | M45: 0 | O45: 14 | P45: 30 | Q45: 0 | S45: 17 | T45: 24 | U45: 0 | W45: 0 | X45: 0* | Y45: 0 | AA45: 6 | AB45: 46 | AC45: 0 | AE45: 0 | AF45: 0 | AG45: 0 | AI45: 9 | AJ45: 40 | AK45: 0 | AM45: 2 | AN45: 55 | AO45: 2 | AQ45: 0 | AR45: 0* | AS45: 0 | AU45: 0 | AV45: 0 | AW45: 0
A46: XXXXXX | B46: 0 | X46: * | AR46: *
A47: CLEMENTE CAR | B47: 709 | D47: 69 | E47: 0 | H47: 91 | I47: 2 | L47: 52 | M47: 0 | P47: 86 | Q47: 0 | T47: 88 | U47: 0 | X47: 32* | Y47: 0 | AB47: 60 | AC47: 2 | AF47: 38* | AG47: 0 | AJ47: 64 | AK47: 0 | AN47: 70 | AO47: 0 | AR47: 54 | AS47: 0 | AV47: 71 | AW47: 0
A48: Christian Guedes | B48: 444 | C48: 5 | D48: 48 | E48: 0 | G48: 4 | H48: 50 | I48: 2 | K48: 13 | L48: 32 | M48: 0 | O48: 16 | P48: 26 | Q48: 0 | S48: 6 | T48: 46 | U48: 0 | W48: 13 | X48: 32* | Y48: 0 | AA48: 1 | AB48: 60 | AC48: 2 | AE48: 10 | AF48: 38* | AG48: 0 | AI48: 6 | AJ48: 46 | AK48: 0 | AM48: 4 | AN48: 50 | AO48: 0 | AQ48: 13 | AR48: 32 | AS48: 0 | AU48: 4 | AV48: 50 | AW48: 0
A49: Edmárcio Júnior | B49: 18 | C49: 34 | D49: 7 | E49: 0 | G49: 30 | H49: 11* | I49: 0 | K49: 30 | L49: 11 | M49: 0 | O49: 0 | P49: 0 | Q49: 0 | S49: 0 | T49: 0 | U49: 0 | W49: 0 | X49: 0* | Y49: 0 | AA49: 0 | AB49: 0 | AC49: 0 | AE49: 0 | AF49: 0* | AG49: 0 | AI49: 0 | AJ49: 0 | AK49: 0 | AM49: 0 | AN49: 0 | AO49: 0 | AQ49: 0 | AR49: 0 | AS49: 0 | AU49: 0 | AV49: 0 | AW49: 0
A50: Tafarel Henrique | B50: 113 | C50: 27 | D50: 14 | E50: 0 | G50: 19 | H50: 22 | I50: 0 | K50: 32 | L50: 9 | M50: 0 | O50: 6 | P50: 46 | Q50: 0 | S50: 19 | T50: 22 | U50: 0 | W50: 0 | X50: 0* | Y50: 0 | AA50: 0 | AB50: 0 | AC50: 0 | AE50: 0 | AF50: 0* | AG50: 0 | AI50: 0 | AJ50: 0 | AK50: 0 | AM50: 0 | AN50: 0 | AO50: 0 | AQ50: 0 | AR50: 0 | AS50: 0 | AU50: 0 | AV50: 0 | AW50: 0
A51: Thiago Azevedo | B51: 134 | C51: 35 | D51: 6* | E51: 0 | G51: 22 | H51: 19 | I51: 0 | K51: 34 | L51: 7* | M51: 0 | O51: 27 | P51: 14 | Q51: 0 | S51: 21 | T51: 20 | U51: 0 | W51: 0 | X51: 0* | Y51: 0 | AA51: 0 | AB51: 0 | AC51: 0 | AE51: 0 | AF51: 0* | AG51: 0 | AI51: 23 | AJ51: 18 | AK51: 0 | AM51: 21 | AN51: 20 | AO51: 0 | AQ51: 19 | AR51: 22 | AS51: 0 | AU51: 20 | AV51: 21 | AW51: 0
A52: XXXXXX | B52: 0 | X52: * | AF52: *
A53: DELCAR | B53: 659 | D53: 80 | E53: 0 | H53: 79 | I53: 0 | L53: 48* | M53: 0 | P53: 73 | Q53: 0 | T53: 60 | U53: 0 | X53: 50* | Y53: 0 | AB53: 58 | AC53: 0 | AF53: 53 | AG53: 0 | AJ53: 63 | AK53: 0 | AN53: 57 | AO53: 0 | AR53: 74 | AS53: 0 | AV53: 62 | AW53: 0
A54: Guilherme Alves | B54: 396 | C54: 3 | D54: 52 | E54: 0 | G54: 11 | H54: 36 | I54: 0 | K54: 24 | L54: 17* | M54: 0 | O54: 8 | P54: 42 | Q54: 0 | S54: 15 | T54: 28 | U54: 0 | W54: 15 | X54: 28* | Y54: 0 | AA54: 12 | AB54: 34 | AC54: 0 | AE54: 11 | AF54: 36 | AG54: 0 | AI54: 8 | AJ54: 42 | AK54: 0 | AM54: 8 | AN54: 42 | AO54: 0 | AQ54: 5 | AR54: 48 | AS54: 0 | AU54: 11 | AV54: 36 | AW54: 0
A55: Renato Martins | B55: 197 | C55: 33 | D55: 8 | E55: 0 | G55: 26 | H55: 15 | I55: 0 | K55: 33 | L55: 8* | M55: 0 | O55: 28 | P55: 13 | Q55: 0 | S55: 13 | T55: 32 | U55: 0 | W55: 19 | X55: 22* | Y55: 0 | AA55: 17 | AB55: 24 | AC55: 0 | AE55: 24 | AF55: 17 | AG55: 0 | AI55: 20 | AJ55: 21 | AK55: 0 | AM55: 26 | AN55: 15 | AO55: 0 | AQ55: 16 | AR55: 26 | AS55: 0 | AU55: 16 | AV55: 26 | AW55: 0
A56: Luiz Azevedo | B56: 66 | C56: 21 | D56: 20 | E56: 0 | G56: 15 | H56: 28 | I56: 0 | K56: 18 | L56: 23* | M56: 0 | O56: 23 | P56: 18 | Q56: 0 | S56: 0 | T56: 0 | U56: 0 | W56: 0 | X56: 0* | Y56: 0 | AA56: 0 | AB56: 0 | AC56: 0 | AE56: 0 | AF56: 0 | AG56: 0 | AI56: 0 | AJ56: 0 | AK56: 0 | AM56: 0 | AN56: 0 | AO56: 0 | AQ56: 0 | AR56: 0 | AS56: 0 | AU56: 0 | AV56: 0 | AW56: 0
A57: Robert Freitas | B57: 0 | C57: 0 | D57: 0 | E57: 0 | G57: 0 | H57: 0 | I57: 0 | K57: 0 | L57: 0* | M57: 0 | O57: 0 | P57: 0 | Q57: 0 | S57: 0 | T57: 0 | U57: 0 | W57: 0 | X57: 0* | Y57: 0 | AA57: 0 | AB57: 0 | AC57: 0 | AE57: 0 | AF57: 0 | AG57: 0 | AI57: 0 | AJ57: 0 | AK57: 0 | AM57: 0 | AN57: 0 | AO57: 0 | AQ57: 0 | AR57: 0 | AS57: 0 | AU57: 0 | AV57: 0 | AW57: 0
A58: XXXXXX | B58: 0 | L58: * | X58: *
A59: TIRA GRILOS | B59: 617 | D59: 65 | E59: 0 | H59: 93 | I59: 0 | L59: 76 | M59: 0 | P59: 0* | Q59: 0 | T59: 65 | U59: 0 | X59: 49 | Y59: 0 | AB59: 75 | AC59: 0 | AF59: 53 | AG59: 0 | AJ59: 17* | AK59: 0 | AN59: 30 | AO59: 0 | AR59: 59 | AS59: 0 | AV59: 52 | AW59: 0
A60: Diego Rodrigues | B60: 389 | C60: 7 | D60: 44 | E60: 0 | G60: 6 | H60: 46 | I60: 0 | K60: 9 | L60: 40 | M60: 0 | O60: 0 | P60: 0* | Q60: 0 | S60: 8 | T60: 42 | U60: 0 | W60: 11 | X60: 36 | Y60: 0 | AA60: 2 | AB60: 55 | AC60: 0 | AE60: 18 | AF60: 23 | AG60: 0 | AI60: 0 | AJ60: 0* | AK60: 0 | AM60: 14 | AN60: 30 | AO60: 0 | AQ60: 20 | AR60: 21 | AS60: 0 | AU60: 3 | AV60: 52 | AW60: 0
A61: Thiago Santos | B61: 77 | C61: 36 | D61: 5 | E61: 0 | G61: 20 | H61: 21 | I61: 0 | K61: 26 | L61: 15 | M61: 0 | O61: 0 | P61: 0* | Q61: 0 | S61: 18 | T61: 23 | U61: 0 | W61: 28 | X61: 13 | Y61: 0 | AA61: 0 | AB61: 0 | AC61: 0 | AE61: 0 | AF61: 0 | AG61: 0 | AI61: 24 | AJ61: 17* | AK61: 0 | AM61: 0 | AN61: 0 | AO61: 0 | AQ61: 0 | AR61: 0 | AS61: 0 | AU61: 0 | AV61: 0 | AW61: 0
A62: Aparecido Arantes | B62: 135 | C62: 0 | D62: 0 | E62: 0 | G62: 16 | H62: 26 | I62: 0 | K62: 20 | L62: 21 | M62: 0 | O62: 0 | P62: 0* | Q62: 0 | S62: 0 | T62: 0 | U62: 0 | W62: 0 | X62: 0 | Y62: 0 | AA62: 21 | AB62: 20 | AC62: 0 | AE62: 14 | AF62: 30 | AG62: 0 | AI62: 0 | AJ62: 0* | AK62: 0 | AM62: 0 | AN62: 0 | AO62: 0 | AQ62: 10 | AR62: 38 | AS62: 0 | AU62: 0 | AV62: 0 | AW62: 0
A63: Pedro Avelar | B63: 16 | C63: 25 | D63: 16 | E63: 0 | G63: 0 | H63: 0 | I63: 0 | K63: 0 | L63: 0 | M63: 0 | O63: 0 | P63: 0* | Q63: 0 | S63: 0 | T63: 0 | U63: 0 | W63: 0 | X63: 0 | Y63: 0 | AA63: 0 | AB63: 0 | AC63: 0 | AE63: 0 | AF63: 0 | AG63: 0 | AI63: 0 | AJ63: 0* | AK63: 0 | AM63: 0 | AN63: 0 | AO63: 0 | AQ63: 0 | AR63: 0 | AS63: 0 | AU63: 0 | AV63: 0 | AW63: 0
A64: XXXXXX | B64: 0 | P64: * | AJ64: *
A65: LQN | B65: 360 | D65: 53 | E65: 0 | H65: 27 | I65: 0 | L65: 23 | M65: 0 | P65: 48 | Q65: 0 | T65: 0* | U65: 0 | X65: 35 | Y65: 0 | AB65: 30 | AC65: 0 | AF65: 25 | AG65: 0 | AJ65: 42 | AK65: 0 | AN65: 35 | AO65: 0 | AR65: 20* | AS65: 0 | AV65: 42 | AW65: 0
A66: Pedro Fialho | B66: 50 | C66: 4 | D66: 50 | E66: 0 | G66: 0 | H66: 0 | I66: 0 | K66: 0 | L66: 0 | M66: 0 | O66: 0 | P66: 0 | Q66: 0 | S66: 0 | T66: 0* | U66: 0 | W66: 0 | X66: 0 | Y66: 0 | AA66: 0 | AB66: 0 | AC66: 0 | AE66: 0 | AF66: 0 | AG66: 0 | AI66: 0 | AJ66: 0 | AK66: 0 | AM66: 0 | AN66: 0 | AO66: 0 | AQ66: 0 | AR66: 0* | AS66: 0 | AU66: 0 | AV66: 0 | AW66: 0
A67: Henry Douglas | B67: 197 | C67: 0 | D67: 0 | E67: 0 | G67: 28 | H67: 13 | I67: 0 | K67: 23 | L67: 18 | M67: 0 | O67: 5 | P67: 48 | Q67: 0 | S67: 0 | T67: 0* | U67: 0 | W67: 20 | X67: 21 | Y67: 0 | AA67: 27 | AB67: 14 | AC67: 0 | AE67: 22 | AF67: 19 | AG67: 0 | AI67: 18 | AJ67: 23 | AK67: 0 | AM67: 22 | AN67: 19 | AO67: 0 | AQ67: 0 | AR67: 0* | AS67: 0 | AU67: 19 | AV67: 22 | AW67: 0
A68: Márcio Tadeu | B68: 6 | C68: 0 | D68: 0 | E68: 0 | G68: 35 | H68: 6 | I68: 0 | K68: 0 | L68: 0 | M68: 0 | O68: 0 | P68: 0 | Q68: 0 | S68: 0 | T68: 0* | U68: 0 | W68: 0 | X68: 0 | Y68: 0 | AA68: 0 | AB68: 0 | AC68: 0 | AE68: 0 | AF68: 0 | AG68: 0 | AI68: 0 | AJ68: 0 | AK68: 0 | AM68: 0 | AN68: 0 | AO68: 0 | AQ68: 0 | AR68: 0* | AS68: 0 | AU68: 0 | AV68: 0 | AW68: 0
A69: Levindo Neto | B69: 107 | C69: 38 | D69: 3 | E69: 0 | G69: 33 | H69: 8 | I69: 0 | K69: 36 | L69: 5 | M69: 0 | O69: 0 | P69: 0 | Q69: 0 | S69: 0 | T69: 0* | U69: 0 | W69: 27 | X69: 14 | Y69: 0 | AA69: 25 | AB69: 16 | AC69: 0 | AE69: 35 | AF69: 6 | AG69: 0 | AI69: 22 | AJ69: 19 | AK69: 0 | AM69: 25 | AN69: 16 | AO69: 0 | AQ69: 21 | AR69: 20* | AS69: 0 | AU69: 21 | AV69: 20 | AW69: 0
A70: XXXXXX | B70: 0 | T70: * | AR70: *

Sheet Posição x Pontos
H1: Posição | I1: Pontos
H2: 1 | I2: 45
H3: 2 | I3: 40
H4: 3 | I4: 37
H5: 4 | I5: 35
H6: 5 | I6: 33
H7: 6 | I7: 31
H8: 7 | I8: 29
H9: 8 | I9: 28
H10: 9 | I10: 27
H11: 10 | I11: 26
H12: 11 | I12: 25
H13: 12 | I13: 24
H14: 13 | I14: 23
H15: 14 | I15: 22
H16: 15 | I16: 21
H17: 16 | I17: 20
H18: 17 | I18: 19
H19: 18 | I19: 18
H20: 19 | I20: 17
H21: 20 | I21: 16
H22: 21 | I22: 15
H23: 22 | I23: 14
H24: 23 | I24: 13
H25: 24 | I25: 12
H26: 25 | I26: 11
H27: 26 | I27: 10
H28: 27 | I28: 9
H29: 28 | I29: 8
H30: 29 | I30: 7
H31: 30 | I31: 6
H32: 31 | I32: 5
H33: 32 | I33: 4
H34: 33 | I34: 3
H35: 34 | I35: 2
H36: 35 | I36: 1
H37: 36 | I37: 1
